Workbook

Sheet Accueil
C1: 1
A50: 2018
A51: 2019
A52: 2020
A53: 2021
A54: 2022
A55: 2023
A56: 2024
A57: 2025
A58: 2026
A59: 2027
A60: 2028
A61: 2029
A62: 2030
A63: 2031
A64: 2032
A65: 2033
A66: 2034
A67: 2035
A68: 2036
A69: 2037
A70: 2038
A71: 2039
A72: 2040
A73: 2041
A74: 2042
A75: 2043
A76: 2044
A77: 2045
A78: 2046
A79: 2047
A80: 2048
A81: 2049
A82: 2050
A83: 2051
A84: 2052
A85: 2053
A86: 2054
A87: 2055
A88: 2056
A89: 2057
A90: 2058
A91: 2059
A92: 2060

Sheet BD
A1: NOM & PRENOM | B1: SERVICE | C1: CONTRAT | D1: ENTREE | E1: SORTIE | F1: HEURES TRAVAILLEES | G1: HEURES PAYEES | H1: TAUX D'ACTIVITE | I1: PESEE | J1: SALAIRE BRUT | K1: RIS EN % | L1: INDEM TECHNICITE | M1: INDEM PASSAGE | N1: ASSIDUITE | O1: PRIME VOLANTE | P1: MUTUELLE | Q1: PRECARITE | R1: INDEM C.P. | S1: STC
A2: SALARIE 1 | B2: 1 | C2: CDI | D2: 42736 | E2: 43190 | F2: 39 | G2: 35 | I2: 293 | J2: =IF(Tableau1[[#This Row],[NOM & PRENOM]]="","",VLOOKUP(I2,NOMENCLATURE!$J$6:$L$515,3)) -> 1509.75 | K2: 0.02
A3: SALARIE 2 | B3: 2 | C3: CDD | D3: 43374 | E3: 43404 | F3: 35 | G3: 35 | I3: 350 | J3: =IF(Tableau1[[#This Row],[NOM & PRENOM]]="","",VLOOKUP(I3,NOMENCLATURE!$J$6:$L$515,3)) -> 1581 | K3: 0.015
A4: SALARIE 3 | B4: 3 | C4: CDI | D4: 42767 | F4: 37 | G4: 35 | I4: 401 | J4: =IF(Tableau1[[#This Row],[NOM & PRENOM]]="","",VLOOKUP(I4,NOMENCLATURE!$J$6:$L$515,3)) -> 1806.17 | K4: 0.02
A5: SALARIE 4 | B5: 1 | C5: CDD | D5: 43344 | E5: 43388 | F5: 35 | G5: 35 | I5: 530 | J5: =IF(Tableau1[[#This Row],[NOM & PRENOM]]="","",VLOOKUP(I5,NOMENCLATURE!$J$6:$L$515,3)) -> 2387.21 | K5: 0.005
A6: SALARIE 5 | B6: 2 | C6: CDI | D6: 42736 | F6: 39 | G6: 35 | I6: 400 | J6: =IF(Tableau1[[#This Row],[NOM & PRENOM]]="","",VLOOKUP(I6,NOMENCLATURE!$J$6:$L$515,3)) -> 1801.67 | K6: 0.01
A7: SALARIE 6 | B7: 3 | C7: CDI | D7: 42736 | F7: 37 | G7: 35 | I7: 310 | J7: =IF(Tableau1[[#This Row],[NOM & PRENOM]]="","",VLOOKUP(I7,NOMENCLATURE!$J$6:$L$515,3)) -> 1531 | K7: 0.005
A8: SALARIE 7 | B8: 1 | C8: CDI | D8: 42736 | F8: 39 | G8: 35 | I8: 299 | J8: =IF(Tableau1[[#This Row],[NOM & PRENOM]]="","",VLOOKUP(I8,NOMENCLATURE!$J$6:$L$515,3)) -> 1517.25 | K8: 0.005
A9: SALARIE 8 | B9: 2 | C9: CDD | D9: 43282 | E9: 43465 | F9: 35 | G9: 35 | I9: 292 | J9: =IF(Tableau1[[#This Row],[NOM & PRENOM]]="","",VLOOKUP(I9,NOMENCLATURE!$J$6:$L$515,3)) -> 1508.5 | K9: 0.01
A10: SALARIE 9 | B10: 3 | C10: CDD | D10: 43282 | E10: 43434 | F10: 35 | G10: 35 | I10: 292 | J10: =IF(Tableau1[[#This Row],[NOM & PRENOM]]="","",VLOOKUP(I10,NOMENCLATURE!$J$6:$L$515,3)) -> 1508.5 | K10: 0.01
A11: SALARIE 10 | I11: 302 | J11: =IF(Tableau1[[#This Row],[NOM & PRENOM]]="","",VLOOKUP(I11,NOMENCLATURE!$J$6:$L$515,3)) -> 1521 | K11: 0.01
A12: SALARIE 11 | I12: 600 | J12: =IF(Tableau1[[#This Row],[NOM & PRENOM]]="","",VLOOKUP(I12,NOMENCLATURE!$J$6:$L$515,3)) -> 2702.5 | K12: 0.02
J13: =IF(Tableau1[[#This Row],[NOM & PRENOM]]="","",VLOOKUP(I13,NOMENCLATURE!$J$6:$L$515,3)) -> 
J14: =IF(Tableau1[[#This Row],[NOM & PRENOM]]="","",VLOOKUP(I14,NOMENCLATURE!$J$6:$L$515,3)) -> 
J15: =IF(Tableau1[[#This Row],[NOM & PRENOM]]="","",VLOOKUP(I15,NOMENCLATURE!$J$6:$L$515,3)) -> 
J16: =IF(Tableau1[[#This Row],[NOM & PRENOM]]="","",VLOOKUP(I16,NOMENCLATURE!$J$6:$L$515,3)) -> 
J17: =IF(Tableau1[[#This Row],[NOM & PRENOM]]="","",VLOOKUP(I17,NOMENCLATURE!$J$6:$L$515,3)) -> 
J18: =IF(Tableau1[[#This Row],[NOM & PRENOM]]="","",VLOOKUP(I18,NOMENCLATURE!$J$6:$L$515,3)) -> 
J19: =IF(Tableau1[[#This Row],[NOM & PRENOM]]="","",VLOOKUP(I19,NOMENCLATURE!$J$6:$L$515,3)) -> 
J20: =IF(Tableau1[[#This Row],[NOM & PRENOM]]="","",VLOOKUP(I20,NOMENCLATURE!$J$6:$L$515,3)) -> 
J21: =IF(Tableau1[[#This Row],[NOM & PRENOM]]="","",VLOOKUP(I21,NOMENCLATURE!$J$6:$L$515,3)) -> 
J22: =IF(Tableau1[[#This Row],[NOM & PRENOM]]="","",VLOOKUP(I22,NOMENCLATURE!$J$6:$L$515,3)) -> 
J23: =IF(Tableau1[[#This Row],[NOM & PRENOM]]="","",VLOOKUP(I23,NOMENCLATURE!$J$6:$L$515,3)) -> 
J24: =IF(Tableau1[[#This Row],[NOM & PRENOM]]="","",VLOOKUP(I24,NOMENCLATURE!$J$6:$L$515,3)) -> 
J25: =IF(Tableau1[[#This Row],[NOM & PRENOM]]="","",VLOOKUP(I25,NOMENCLATURE!$J$6:$L$515,3)) -> 
J26: =IF(Tableau1[[#This Row],[NOM & PRENOM]]="","",VLOOKUP(I26,NOMENCLATURE!$J$6:$L$515,3)) -> 
J27: =IF(Tableau1[[#This Row],[NOM & PRENOM]]="","",VLOOKUP(I27,NOMENCLATURE!$J$6:$L$515,3)) -> 
J28: =IF(Tableau1[[#This Row],[NOM & PRENOM]]="","",VLOOKUP(I28,NOMENCLATURE!$J$6:$L$515,3)) -> 
J29: =IF(Tableau1[[#This Row],[NOM & PRENOM]]="","",VLOOKUP(I29,NOMENCLATURE!$J$6:$L$515,3)) -> 
J30: =IF(Tableau1[[#This Row],[NOM & PRENOM]]="","",VLOOKUP(I30,NOMENCLATURE!$J$6:$L$515,3)) -> 
J31: =IF(Tableau1[[#This Row],[NOM & PRENOM]]="","",VLOOKUP(I31,NOMENCLATURE!$J$6:$L$515,3)) -> 
J32: =IF(Tableau1[[#This Row],[NOM & PRENOM]]="","",VLOOKUP(I32,NOMENCLATURE!$J$6:$L$515,3)) -> 
J33: =IF(Tableau1[[#This Row],[NOM & PRENOM]]="","",VLOOKUP(I33,NOMENCLATURE!$J$6:$L$515,3)) -> 
J34: =IF(Tableau1[[#This Row],[NOM & PRENOM]]="","",VLOOKUP(I34,NOMENCLATURE!$J$6:$L$515,3)) -> 
J35: =IF(Tableau1[[#This Row],[NOM & PRENOM]]="","",VLOOKUP(I35,NOMENCLATURE!$J$6:$L$515,3)) -> 
J36: =IF(Tableau1[[#This Row],[NOM & PRENOM]]="","",VLOOKUP(I36,NOMENCLATURE!$J$6:$L$515,3)) -> 
J37: =IF(Tableau1[[#This Row],[NOM & PRENOM]]="","",VLOOKUP(I37,NOMENCLATURE!$J$6:$L$515,3)) -> 
J38: =IF(Tableau1[[#This Row],[NOM & PRENOM]]="","",VLOOKUP(I38,NOMENCLATURE!$J$6:$L$515,3)) -> 
J39: =IF(Tableau1[[#This Row],[NOM & PRENOM]]="","",VLOOKUP(I39,NOMENCLATURE!$J$6:$L$515,3)) -> 
J40: =IF(Tableau1[[#This Row],[NOM & PRENOM]]="","",VLOOKUP(I40,NOMENCLATURE!$J$6:$L$515,3)) -> 
J41: =IF(Tableau1[[#This Row],[NOM & PRENOM]]="","",VLOOKUP(I41,NOMENCLATURE!$J$6:$L$515,3)) -> 
J42: =IF(Tableau1[[#This Row],[NOM & PRENOM]]="","",VLOOKUP(I42,NOMENCLATURE!$J$6:$L$515,3)) -> 
J43: =IF(Tableau1[[#This Row],[NOM & PRENOM]]="","",VLOOKUP(I43,NOMENCLATURE!$J$6:$L$515,3)) -> 
J44: =IF(Tableau1[[#This Row],[NOM & PRENOM]]="","",VLOOKUP(I44,NOMENCLATURE!$J$6:$L$515,3)) -> 
J45: =IF(Tableau1[[#This Row],[NOM & PRENOM]]="","",VLOOKUP(I45,NOMENCLATURE!$J$6:$L$515,3)) -> 
J46: =IF(Tableau1[[#This Row],[NOM & PRENOM]]="","",VLOOKUP(I46,NOMENCLATURE!$J$6:$L$515,3)) -> 
J47: =IF(Tableau1[[#This Row],[NOM & PRENOM]]="","",VLOOKUP(I47,NOMENCLATURE!$J$6:$L$515,3)) -> 
J48: =IF(Tableau1[[#This Row],[NOM & PRENOM]]="","",VLOOKUP(I48,NOMENCLATURE!$J$6:$L$515,3)) -> 
J49: =IF(Tableau1[[#This Row],[NOM & PRENOM]]="","",VLOOKUP(I49,NOMENCLATURE!$J$6:$L$515,3)) -> 
J50: =IF(Tableau1[[#This Row],[NOM & PRENOM]]="","",VLOOKUP(I50,NOMENCLATURE!$J$6:$L$515,3)) -> 
J51: =IF(Tableau1[[#This Row],[NOM & PRENOM]]="","",VLOOKUP(I51,NOMENCLATURE!$J$6:$L$515,3)) -> 
J52: =IF(Tableau1[[#This Row],[NOM & PRENOM]]="","",VLOOKUP(I52,NOMENCLATURE!$J$6:$L$515,3)) -> 
J53: =IF(Tableau1[[#This Row],[NOM & PRENOM]]="","",VLOOKUP(I53,NOMENCLATURE!$J$6:$L$515,3)) -> 
J54: =IF(Tableau1[[#This Row],[NOM & PRENOM]]="","",VLOOKUP(I54,NOMENCLATURE!$J$6:$L$515,3)) -> 
J55: =IF(Tableau1[[#This Row],[NOM & PRENOM]]="","",VLOOKUP(I55,NOMENCLATURE!$J$6:$L$515,3)) -> 
J56: =IF(Tableau1[[#This Row],[NOM & PRENOM]]="","",VLOOKUP(I56,NOMENCLATURE!$J$6:$L$515,3)) -> 
J57: =IF(Tableau1[[#This Row],[NOM & PRENOM]]="","",VLOOKUP(I57,NOMENCLATURE!$J$6:$L$515,3)) -> 
J58: =IF(Tableau1[[#This Row],[NOM & PRENOM]]="","",VLOOKUP(I58,NOMENCLATURE!$J$6:$L$515,3)) -> 
J59: =IF(Tableau1[[#This Row],[NOM & PRENOM]]="","",VLOOKUP(I59,NOMENCLATURE!$J$6:$L$515,3)) -> 
J60: =IF(Tableau1[[#This Row],[NOM & PRENOM]]="","",VLOOKUP(I60,NOMENCLATURE!$J$6:$L$515,3)) -> 
J61: =IF(Tableau1[[#This Row],[NOM & PRENOM]]="","",VLOOKUP(I61,NOMENCLATURE!$J$6:$L$515,3)) -> 
J62: =IF(Tableau1[[#This Row],[NOM & PRENOM]]="","",VLOOKUP(I62,NOMENCLATURE!$J$6:$L$515,3)) -> 
J63: =IF(Tableau1[[#This Row],[NOM & PRENOM]]="","",VLOOKUP(I63,NOMENCLATURE!$J$6:$L$515,3)) -> 
J64: =IF(Tableau1[[#This Row],[NOM & PRENOM]]="","",VLOOKUP(I64,NOMENCLATURE!$J$6:$L$515,3)) -> 
J65: =IF(Tableau1[[#This Row],[NOM & PRENOM]]="","",VLOOKUP(I65,NOMENCLATURE!$J$6:$L$515,3)) -> 
J66: =IF(Tableau1[[#This Row],[NOM & PRENOM]]="","",VLOOKUP(I66,NOMENCLATURE!$J$6:$L$515,3)) -> 
J67: =IF(Tableau1[[#This Row],[NOM & PRENOM]]="","",VLOOKUP(I67,NOMENCLATURE!$J$6:$L$515,3)) -> 
J68: =IF(Tableau1[[#This Row],[NOM & PRENOM]]="","",VLOOKUP(I68,NOMENCLATURE!$J$6:$L$515,3)) -> 
J69: =IF(Tableau1[[#This Row],[NOM & PRENOM]]="","",VLOOKUP(I69,NOMENCLATURE!$J$6:$L$515,3)) -> 
J70: =IF(Tableau1[[#This Row],[NOM & PRENOM]]="","",VLOOKUP(I70,NOMENCLATURE!$J$6:$L$515,3)) -> 
J71: =IF(Tableau1[[#This Row],[NOM & PRENOM]]="","",VLOOKUP(I71,NOMENCLATURE!$J$6:$L$515,3)) -> 
J72: =IF(Tableau1[[#This Row],[NOM & PRENOM]]="","",VLOOKUP(I72,NOMENCLATURE!$J$6:$L$515,3)) -> 
J73: =IF(Tableau1[[#This Row],[NOM & PRENOM]]="","",VLOOKUP(I73,NOMENCLATURE!$J$6:$L$515,3)) -> 
J74: =IF(Tableau1[[#This Row],[NOM & PRENOM]]="","",VLOOKUP(I74,NOMENCLATURE!$J$6:$L$515,3)) -> 
J75: =IF(Tableau1[[#This Row],[NOM & PRENOM]]="","",VLOOKUP(I75,NOMENCLATURE!$J$6:$L$515,3)) -> 
J76: =IF(Tableau1[[#This Row],[NOM & PRENOM]]="","",VLOOKUP(I76,NOMENCLATURE!$J$6:$L$515,3)) -> 
J77: =IF(Tableau1[[#This Row],[NOM & PRENOM]]="","",VLOOKUP(I77,NOMENCLATURE!$J$6:$L$515,3)) -> 
J78: =IF(Tableau1[[#This Row],[NOM & PRENOM]]="","",VLOOKUP(I78,NOMENCLATURE!$J$6:$L$515,3)) -> 
J79: =IF(Tableau1[[#This Row],[NOM & PRENOM]]="","",VLOOKUP(I79,NOMENCLATURE!$J$6:$L$515,3)) -> 
J80: =IF(Tableau1[[#This Row],[NOM & PRENOM]]="","",VLOOKUP(I80,NOMENCLATURE!$J$6:$L$515,3)) -> 
J81: =IF(Tableau1[[#This Row],[NOM & PRENOM]]="","",VLOOKUP(I81,NOMENCLATURE!$J$6:$L$515,3)) -> 
J82: =IF(Tableau1[[#This Row],[NOM & PRENOM]]="","",VLOOKUP(I82,NOMENCLATURE!$J$6:$L$515,3)) -> 
J83: =IF(Tableau1[[#This Row],[NOM & PRENOM]]="","",VLOOKUP(I83,NOMENCLATURE!$J$6:$L$515,3)) -> 
J84: =IF(Tableau1[[#This Row],[NOM & PRENOM]]="","",VLOOKUP(I84,NOMENCLATURE!$J$6:$L$515,3)) -> 
J85: =IF(Tableau1[[#This Row],[NOM & PRENOM]]="","",VLOOKUP(I85,NOMENCLATURE!$J$6:$L$515,3)) -> 
J86: =IF(Tableau1[[#This Row],[NOM & PRENOM]]="","",VLOOKUP(I86,NOMENCLATURE!$J$6:$L$515,3)) -> 
J87: =IF(Tableau1[[#This Row],[NOM & PRENOM]]="","",VLOOKUP(I87,NOMENCLATURE!$J$6:$L$515,3)) -> 
J88: =IF(Tableau1[[#This Row],[NOM & PRENOM]]="","",VLOOKUP(I88,NOMENCLATURE!$J$6:$L$515,3)) -> 
J89: =IF(Tableau1[[#This Row],[NOM & PRENOM]]="","",VLOOKUP(I89,NOMENCLATURE!$J$6:$L$515,3)) -> 
J90: =IF(Tableau1[[#This Row],[NOM & PRENOM]]="","",VLOOKUP(I90,NOMENCLATURE!$J$6:$L$515,3)) -> 
J91: =IF(Tableau1[[#This Row],[NOM & PRENOM]]="","",VLOOKUP(I91,NOMENCLATURE!$J$6:$L$515,3)) -> 
J92: =IF(Tableau1[[#This Row],[NOM & PRENOM]]="","",VLOOKUP(I92,NOMENCLATURE!$J$6:$L$515,3)) -> 
J93: =IF(Tableau1[[#This Row],[NOM & PRENOM]]="","",VLOOKUP(I93,NOMENCLATURE!$J$6:$L$515,3)) -> 
J94: =IF(Tableau1[[#This Row],[NOM & PRENOM]]="","",VLOOKUP(I94,NOMENCLATURE!$J$6:$L$515,3)) -> 
J95: =IF(Tableau1[[#This Row],[NOM & PRENOM]]="","",VLOOKUP(I95,NOMENCLATURE!$J$6:$L$515,3)) -> 
J96: =IF(Tableau1[[#This Row],[NOM & PRENOM]]="","",VLOOKUP(I96,NOMENCLATURE!$J$6:$L$515,3)) -> 
J97: =IF(Tableau1[[#This Row],[NOM & PRENOM]]="","",VLOOKUP(I97,NOMENCLATURE!$J$6:$L$515,3)) -> 
J98: =IF(Tableau1[[#This Row],[NOM & PRENOM]]="","",VLOOKUP(I98,NOMENCLATURE!$J$6:$L$515,3)) -> 
J99: =IF(Tableau1[[#This Row],[NOM & PRENOM]]="","",VLOOKUP(I99,NOMENCLATURE!$J$6:$L$515,3)) -> 
J100: =IF(Tableau1[[#This Row],[NOM & PRENOM]]="","",VLOOKUP(I100,NOMENCLATURE!$J$6:$L$515,3)) -> 
J101: =IF(Tableau1[[#This Row],[NOM & PRENOM]]="","",VLOOKUP(I101,NOMENCLATURE!$J$6:$L$515,3)) -> 
J102: =IF(Tableau1[[#This Row],[NOM & PRENOM]]="","",VLOOKUP(I102,NOMENCLATURE!$J$6:$L$515,3)) -> 
J103: =IF(Tableau1[[#This Row],[NOM & PRENOM]]="","",VLOOKUP(I103,NOMENCLATURE!$J$6:$L$515,3)) -> 
J104: =IF(Tableau1[[#This Row],[NOM & PRENOM]]="","",VLOOKUP(I104,NOMENCLATURE!$J$6:$L$515,3)) -> 
J105: =IF(Tableau1[[#This Row],[NOM & PRENOM]]="","",VLOOKUP(I105,NOMENCLATURE!$J$6:$L$515,3)) -> 
J106: =IF(Tableau1[[#This Row],[NOM & PRENOM]]="","",VLOOKUP(I106,NOMENCLATURE!$J$6:$L$515,3)) -> 
J107: =IF(Tableau1[[#This Row],[NOM & PRENOM]]="","",VLOOKUP(I107,NOMENCLATURE!$J$6:$L$515,3)) -> 
J108: =IF(Tableau1[[#This Row],[NOM & PRENOM]]="","",VLOOKUP(I108,NOMENCLATURE!$J$6:$L$515,3)) -> 
J109: =IF(Tableau1[[#This Row],[NOM & PRENOM]]="","",VLOOKUP(I109,NOMENCLATURE!$J$6:$L$515,3)) -> 
J110: =IF(Tableau1[[#This Row],[NOM & PRENOM]]="","",VLOOKUP(I110,NOMENCLATURE!$J$6:$L$515,3)) -> 
J111: =IF(Tableau1[[#This Row],[NOM & PRENOM]]="","",VLOOKUP(I111,NOMENCLATURE!$J$6:$L$515,3)) -> 
J112: =IF(Tableau1[[#This Row],[NOM & PRENOM]]="","",VLOOKUP(I112,NOMENCLATURE!$J$6:$L$515,3)) -> 
J113: =IF(Tableau1[[#This Row],[NOM & PRENOM]]="","",VLOOKUP(I113,NOMENCLATURE!$J$6:$L$515,3)) -> 
J114: =IF(Tableau1[[#This Row],[NOM & PRENOM]]="","",VLOOKUP(I114,NOMENCLATURE!$J$6:$L$515,3)) -> 
J115: =IF(Tableau1[[#This Row],[NOM & PRENOM]]="","",VLOOKUP(I115,NOMENCLATURE!$J$6:$L$515,3)) -> 
J116: =IF(Tableau1[[#This Row],[NOM & PRENOM]]="","",VLOOKUP(I116,NOMENCLATURE!$J$6:$L$515,3)) -> 
J117: =IF(Tableau1[[#This Row],[NOM & PRENOM]]="","",VLOOKUP(I117,NOMENCLATURE!$J$6:$L$515,3)) -> 
J118: =IF(Tableau1[[#This Row],[NOM & PRENOM]]="","",VLOOKUP(I118,NOMENCLATURE!$J$6:$L$515,3)) -> 
J119: =IF(Tableau1[[#This Row],[NOM & PRENOM]]="","",VLOOKUP(I119,NOMENCLATURE!$J$6:$L$515,3)) -> 
J120: =IF(Tableau1[[#This Row],[NOM & PRENOM]]="","",VLOOKUP(I120,NOMENCLATURE!$J$6:$L$515,3)) -> 
J121: =IF(Tableau1[[#This Row],[NOM & PRENOM]]="","",VLOOKUP(I121,NOMENCLATURE!$J$6:$L$515,3)) -> 
J122: =IF(Tableau1[[#This Row],[NOM & PRENOM]]="","",VLOOKUP(I122,NOMENCLATURE!$J$6:$L$515,3)) -> 
J123: =IF(Tableau1[[#This Row],[NOM & PRENOM]]="","",VLOOKUP(I123,NOMENCLATURE!$J$6:$L$515,3)) -> 
J124: =IF(Tableau1[[#This Row],[NOM & PRENOM]]="","",VLOOKUP(I124,NOMENCLATURE!$J$6:$L$515,3)) -> 
J125: =IF(Tableau1[[#This Row],[NOM & PRENOM]]="","",VLOOKUP(I125,NOMENCLATURE!$J$6:$L$515,3)) -> 
J126: =IF(Tableau1[[#This Row],[NOM & PRENOM]]="","",VLOOKUP(I126,NOMENCLATURE!$J$6:$L$515,3)) -> 
J127: =IF(Tableau1[[#This Row],[NOM & PRENOM]]="","",VLOOKUP(I127,NOMENCLATURE!$J$6:$L$515,3)) -> 
J128: =IF(Tableau1[[#This Row],[NOM & PRENOM]]="","",VLOOKUP(I128,NOMENCLATURE!$J$6:$L$515,3)) -> 
J129: =IF(Tableau1[[#This Row],[NOM & PRENOM]]="","",VLOOKUP(I129,NOMENCLATURE!$J$6:$L$515,3)) -> 
J130: =IF(Tableau1[[#This Row],[NOM & PRENOM]]="","",VLOOKUP(I130,NOMENCLATURE!$J$6:$L$515,3)) -> 
J131: =IF(Tableau1[[#This Row],[NOM & PRENOM]]="","",VLOOKUP(I131,NOMENCLATURE!$J$6:$L$515,3)) -> 
J132: =IF(Tableau1[[#This Row],[NOM & PRENOM]]="","",VLOOKUP(I132,NOMENCLATURE!$J$6:$L$515,3)) -> 
J133: =IF(Tableau1[[#This Row],[NOM & PRENOM]]="","",VLOOKUP(I133,NOMENCLATURE!$J$6:$L$515,3)) -> 
J134: =IF(Tableau1[[#This Row],[NOM & PRENOM]]="","",VLOOKUP(I134,NOMENCLATURE!$J$6:$L$515,3)) -> 
J135: =IF(Tableau1[[#This Row],[NOM & PRENOM]]="","",VLOOKUP(I135,NOMENCLATURE!$J$6:$L$515,3)) -> 
J136: =IF(Tableau1[[#This Row],[NOM & PRENOM]]="","",VLOOKUP(I136,NOMENCLATURE!$J$6:$L$515,3)) -> 
J137: =IF(Tableau1[[#This Row],[NOM & PRENOM]]="","",VLOOKUP(I137,NOMENCLATURE!$J$6:$L$515,3)) -> 
J138: =IF(Tableau1[[#This Row],[NOM & PRENOM]]="","",VLOOKUP(I138,NOMENCLATURE!$J$6:$L$515,3)) -> 
J139: =IF(Tableau1[[#This Row],[NOM & PRENOM]]="","",VLOOKUP(I139,NOMENCLATURE!$J$6:$L$515,3)) -> 
J140: =IF(Tableau1[[#This Row],[NOM & PRENOM]]="","",VLOOKUP(I140,NOMENCLATURE!$J$6:$L$515,3)) -> 
J141: =IF(Tableau1[[#This Row],[NOM & PRENOM]]="","",VLOOKUP(I141,NOMENCLATURE!$J$6:$L$515,3)) -> 
J142: =IF(Tableau1[[#This Row],[NOM & PRENOM]]="","",VLOOKUP(I142,NOMENCLATURE!$J$6:$L$515,3)) -> 
J143: =IF(Tableau1[[#This Row],[NOM & PRENOM]]="","",VLOOKUP(I143,NOMENCLATURE!$J$6:$L$515,3)) -> 
J144: =IF(Tableau1[[#This Row],[NOM & PRENOM]]="","",VLOOKUP(I144,NOMENCLATURE!$J$6:$L$515,3)) -> 
J145: =IF(Tableau1[[#This Row],[NOM & PRENOM]]="","",VLOOKUP(I145,NOMENCLATURE!$J$6:$L$515,3)) -> 
J146: =IF(Tableau1[[#This Row],[NOM & PRENOM]]="","",VLOOKUP(I146,NOMENCLATURE!$J$6:$L$515,3)) -> 
J147: =IF(Tableau1[[#This Row],[NOM & PRENOM]]="","",VLOOKUP(I147,NOMENCLATURE!$J$6:$L$515,3)) -> 
J148: =IF(Tableau1[[#This Row],[NOM & PRENOM]]="","",VLOOKUP(I148,NOMENCLATURE!$J$6:$L$515,3)) -> 
J149: =IF(Tableau1[[#This Row],[NOM & PRENOM]]="","",VLOOKUP(I149,NOMENCLATURE!$J$6:$L$515,3)) -> 
J150: =IF(Tableau1[[#This Row],[NOM & PRENOM]]="","",VLOOKUP(I150,NOMENCLATURE!$J$6:$L$515,3)) -> 
J151: =IF(Tableau1[[#This Row],[NOM & PRENOM]]="","",VLOOKUP(I151,NOMENCLATURE!$J$6:$L$515,3)) -> 
J152: =IF(Tableau1[[#This Row],[NOM & PRENOM]]="","",VLOOKUP(I152,NOMENCLATURE!$J$6:$L$515,3)) -> 
J153: =IF(Tableau1[[#This Row],[NOM & PRENOM]]="","",VLOOKUP(I153,NOMENCLATURE!$J$6:$L$515,3)) -> 
J154: =IF(Tableau1[[#This Row],[NOM & PRENOM]]="","",VLOOKUP(I154,NOMENCLATURE!$J$6:$L$515,3)) -> 
J155: =IF(Tableau1[[#This Row],[NOM & PRENOM]]="","",VLOOKUP(I155,NOMENCLATURE!$J$6:$L$515,3)) -> 
J156: =IF(Tableau1[[#This Row],[NOM & PRENOM]]="","",VLOOKUP(I156,NOMENCLATURE!$J$6:$L$515,3)) -> 
J157: =IF(Tableau1[[#This Row],[NOM & PRENOM]]="","",VLOOKUP(I157,NOMENCLATURE!$J$6:$L$515,3)) -> 
J158: =IF(Tableau1[[#This Row],[NOM & PRENOM]]="","",VLOOKUP(I158,NOMENCLATURE!$J$6:$L$515,3)) -> 
J159: =IF(Tableau1[[#This Row],[NOM & PRENOM]]="","",VLOOKUP(I159,NOMENCLATURE!$J$6:$L$515,3)) -> 
J160: =IF(Tableau1[[#This Row],[NOM & PRENOM]]="","",VLOOKUP(I160,NOMENCLATURE!$J$6:$L$515,3)) -> 
J161: =IF(Tableau1[[#This Row],[NOM & PRENOM]]="","",VLOOKUP(I161,NOMENCLATURE!$J$6:$L$515,3)) -> 
J162: =IF(Tableau1[[#This Row],[NOM & PRENOM]]="","",VLOOKUP(I162,NOMENCLATURE!$J$6:$L$515,3)) -> 
J163: =IF(Tableau1[[#This Row],[NOM & PRENOM]]="","",VLOOKUP(I163,NOMENCLATURE!$J$6:$L$515,3)) -> 
J164: =IF(Tableau1[[#This Row],[NOM & PRENOM]]="","",VLOOKUP(I164,NOMENCLATURE!$J$6:$L$515,3)) -> 
J165: =IF(Tableau1[[#This Row],[NOM & PRENOM]]="","",VLOOKUP(I165,NOMENCLATURE!$J$6:$L$515,3)) -> 
J166: =IF(Tableau1[[#This Row],[NOM & PRENOM]]="","",VLOOKUP(I166,NOMENCLATURE!$J$6:$L$515,3)) -> 
J167: =IF(Tableau1[[#This Row],[NOM & PRENOM]]="","",VLOOKUP(I167,NOMENCLATURE!$J$6:$L$515,3)) -> 
J168: =IF(Tableau1[[#This Row],[NOM & PRENOM]]="","",VLOOKUP(I168,NOMENCLATURE!$J$6:$L$515,3)) -> 
J169: =IF(Tableau1[[#This Row],[NOM & PRENOM]]="","",VLOOKUP(I169,NOMENCLATURE!$J$6:$L$515,3)) -> 
J170: =IF(Tableau1[[#This Row],[NOM & PRENOM]]="","",VLOOKUP(I170,NOMENCLATURE!$J$6:$L$515,3)) -> 
J171: =IF(Tableau1[[#This Row],[NOM & PRENOM]]="","",VLOOKUP(I171,NOMENCLATURE!$J$6:$L$515,3)) -> 
J172: =IF(Tableau1[[#This Row],[NOM & PRENOM]]="","",VLOOKUP(I172,NOMENCLATURE!$J$6:$L$515,3)) -> 
J173: =IF(Tableau1[[#This Row],[NOM & PRENOM]]="","",VLOOKUP(I173,NOMENCLATURE!$J$6:$L$515,3)) -> 
J174: =IF(Tableau1[[#This Row],[NOM & PRENOM]]="","",VLOOKUP(I174,NOMENCLATURE!$J$6:$L$515,3)) -> 
J175: =IF(Tableau1[[#This Row],[NOM & PRENOM]]="","",VLOOKUP(I175,NOMENCLATURE!$J$6:$L$515,3)) -> 
J176: =IF(Tableau1[[#This Row],[NOM & PRENOM]]="","",VLOOKUP(I176,NOMENCLATURE!$J$6:$L$515,3)) -> 
J177: =IF(Tableau1[[#This Row],[NOM & PRENOM]]="","",VLOOKUP(I177,NOMENCLATURE!$J$6:$L$515,3)) -> 
J178: =IF(Tableau1[[#This Row],[NOM & PRENOM]]="","",VLOOKUP(I178,NOMENCLATURE!$J$6:$L$515,3)) -> 
J179: =IF(Tableau1[[#This Row],[NOM & PRENOM]]="","",VLOOKUP(I179,NOMENCLATURE!$J$6:$L$515,3)) -> 
J180: =IF(Tableau1[[#This Row],[NOM & PRENOM]]="","",VLOOKUP(I180,NOMENCLATURE!$J$6:$L$515,3)) -> 
J181: =IF(Tableau1[[#This Row],[NOM & PRENOM]]="","",VLOOKUP(I181,NOMENCLATURE!$J$6:$L$515,3)) -> 
J182: =IF(Tableau1[[#This Row],[NOM & PRENOM]]="","",VLOOKUP(I182,NOMENCLATURE!$J$6:$L$515,3)) -> 
J183: =IF(Tableau1[[#This Row],[NOM & PRENOM]]="","",VLOOKUP(I183,NOMENCLATURE!$J$6:$L$515,3)) -> 
J184: =IF(Tableau1[[#This Row],[NOM & PRENOM]]="","",VLOOKUP(I184,NOMENCLATURE!$J$6:$L$515,3)) -> 
J185: =IF(Tableau1[[#This Row],[NOM & PRENOM]]="","",VLOOKUP(I185,NOMENCLATURE!$J$6:$L$515,3)) -> 
J186: =IF(Tableau1[[#This Row],[NOM & PRENOM]]="","",VLOOKUP(I186,NOMENCLATURE!$J$6:$L$515,3)) -> 
J187: =IF(Tableau1[[#This Row],[NOM & PRENOM]]="","",VLOOKUP(I187,NOMENCLATURE!$J$6:$L$515,3)) -> 
J188: =IF(Tableau1[[#This Row],[NOM & PRENOM]]="","",VLOOKUP(I188,NOMENCLATURE!$J$6:$L$515,3)) -> 
J189: =IF(Tableau1[[#This Row],[NOM & PRENOM]]="","",VLOOKUP(I189,NOMENCLATURE!$J$6:$L$515,3)) -> 
J190: =IF(Tableau1[[#This Row],[NOM & PRENOM]]="","",VLOOKUP(I190,NOMENCLATURE!$J$6:$L$515,3)) -> 
J191: =IF(Tableau1[[#This Row],[NOM & PRENOM]]="","",VLOOKUP(I191,NOMENCLATURE!$J$6:$L$515,3)) -> 
J192: =IF(Tableau1[[#This Row],[NOM & PRENOM]]="","",VLOOKUP(I192,NOMENCLATURE!$J$6:$L$515,3)) -> 
J193: =IF(Tableau1[[#This Row],[NOM & PRENOM]]="","",VLOOKUP(I193,NOMENCLATURE!$J$6:$L$515,3)) -> 
J194: =IF(Tableau1[[#This Row],[NOM & PRENOM]]="","",VLOOKUP(I194,NOMENCLATURE!$J$6:$L$515,3)) -> 
J195: =IF(Tableau1[[#This Row],[NOM & PRENOM]]="","",VLOOKUP(I195,NOMENCLATURE!$J$6:$L$515,3)) -> 
J196: =IF(Tableau1[[#This Row],[NOM & PRENOM]]="","",VLOOKUP(I196,NOMENCLATURE!$J$6:$L$515,3)) -> 
J197: =IF(Tableau1[[#This Row],[NOM & PRENOM]]="","",VLOOKUP(I197,NOMENCLATURE!$J$6:$L$515,3)) -> 
J198: =IF(Tableau1[[#This Row],[NOM & PRENOM]]="","",VLOOKUP(I198,NOMENCLATURE!$J$6:$L$515,3)) -> 
J199: =IF(Tableau1[[#This Row],[NOM & PRENOM]]="","",VLOOKUP(I199,NOMENCLATURE!$J$6:$L$515,3)) -> 
J200: =IF(Tableau1[[#This Row],[NOM & PRENOM]]="","",VLOOKUP(I200,NOMENCLATURE!$J$6:$L$515,3)) -> 
... 800 more rows

Sheet PREVI
A1: =DATE(Accueil!C1+2017,1,1) -> 2018-01-01
A7: DATE DE RECHERCHE | E7: =$E$8 -> 2017-12-01 | AJ7: JANVIER | BO7: FEVRIER | CQ7: MARS | DV7: AVRIL | EZ7: MAI | GE7: JUIN | HI7: JUILLET | IN7: AOUT | JS7: SEPTEMBRE | KW7: OCTOBRE | MB7: NOVEMBRE | NF7: DECEMBRE | OK7: =$OK$8 -> 2019-01-01
E8: =DATE(Accueil!C1+2017,1,1)-31 -> 2017-12-01 | F8: =E8+1 -> 2017-12-02 | G8: 2017-12-03 | H8: 2017-12-04 | I8: 2017-12-05 | J8: 2017-12-06 | K8: 2017-12-07 | L8: 2017-12-08 | M8: 2017-12-09 | N8: 2017-12-10 | O8: 2017-12-11 | P8: 2017-12-12 | Q8: 2017-12-13 | R8: 2017-12-14 | S8: 2017-12-15 | T8: 2017-12-16 | U8: 2017-12-17 | V8: 2017-12-18 | W8: 2017-12-19 | X8: 2017-12-20 | Y8: 2017-12-21 | Z8: 2017-12-22 | AA8: 2017-12-23 | AB8: 2017-12-24 | AC8: 2017-12-25 | AD8: 2017-12-26 | AE8: 2017-12-27 | AF8: 2017-12-28 | AG8: 2017-12-29 | AH8: 2017-12-30 | AI8: 2017-12-31 | AJ8: 2018-01-01 | AK8: 2018-01-02 | AL8: =AK8+1 -> 2018-01-03 | AM8: 2018-01-04 | AN8: =AM8+1 -> 2018-01-05 | AO8: 2018-01-06 | AP8: 2018-01-07 | AQ8: 2018-01-08 | AR8: 2018-01-09 | AS8: 2018-01-10 | AT8: 2018-01-11 | AU8: 2018-01-12 | AV8: 2018-01-13 | AW8: 2018-01-14 | AX8: 2018-01-15 | AY8: 2018-01-16 | AZ8: 2018-01-17 | BA8: 2018-01-18 | BB8: 2018-01-19 | BC8: 2018-01-20 | BD8: 2018-01-21 | BE8: 2018-01-22 | BF8: 2018-01-23 | BG8: 2018-01-24 | BH8: 2018-01-25 | BI8: 2018-01-26 | BJ8: 2018-01-27 | BK8: 2018-01-28 | BL8: 2018-01-29 | BM8: 2018-01-30 | BN8: 2018-01-31 | BO8: 2018-02-01 | BP8: 2018-02-02 | BQ8: 2018-02-03 | BR8: 2018-02-04 | BS8: 2018-02-05 | BT8: 2018-02-06 | BU8: 2018-02-07 | BV8: 2018-02-08 | BW8: 2018-02-09 | BX8: 2018-02-10 | BY8: 2018-02-11 | BZ8: 2018-02-12 | CA8: 2018-02-13 | CB8: 2018-02-14 | CC8: 2018-02-15 | CD8: 2018-02-16 | CE8: 2018-02-17 | CF8: 2018-02-18 | CG8: 2018-02-19 | CH8: 2018-02-20 | CI8: 2018-02-21 | CJ8: 2018-02-22 | CK8: 2018-02-23 | CL8: 2018-02-24 | CM8: 2018-02-25 | CN8: 2018-02-26 | CO8: 2018-02-27 | CP8: 2018-02-28 | CQ8: 2018-03-01 | CR8: 2018-03-02 | CS8: 2018-03-03 | CT8: 2018-03-04 | CU8: 2018-03-05 | CV8: 2018-03-06 | CW8: 2018-03-07 | CX8: 2018-03-08 | CY8: 2018-03-09 | CZ8: =CY8+1 -> 2018-03-10 | DA8: 2018-03-11 | DB8: 2018-03-12 | DC8: 2018-03-13 | DD8: 2018-03-14 | DE8: 2018-03-15 | DF8: 2018-03-16 | DG8: 2018-03-17 | DH8: 2018-03-18 | DI8: 2018-03-19 | DJ8: 2018-03-20 | DK8: 2018-03-21 | DL8: 2018-03-22 | DM8: 2018-03-23 | DN8: 2018-03-24 | DO8: 2018-03-25 | DP8: 2018-03-26 | DQ8: 2018-03-27 | DR8: 2018-03-28 | DS8: 2018-03-29 | DT8: 2018-03-30 | DU8: 2018-03-31 | DV8: 2018-04-01 | DW8: 2018-04-02 | DX8: 2018-04-03 | DY8: 2018-04-04 | DZ8: 2018-04-05 | EA8: 2018-04-06 | EB8: 2018-04-07 | EC8: 2018-04-08 | ED8: 2018-04-09 | EE8: 2018-04-10 | EF8: 2018-04-11 | EG8: 2018-04-12 | EH8: 2018-04-13 | EI8: 2018-04-14 | EJ8: 2018-04-15 | EK8: 2018-04-16 | EL8: 2018-04-17 | EM8: 2018-04-18 | EN8: 2018-04-19 | EO8: 2018-04-20 | EP8: 2018-04-21 | EQ8: 2018-04-22 | ER8: 2018-04-23 | ES8: 2018-04-24 | ET8: 2018-04-25 | EU8: 2018-04-26 | EV8: 2018-04-27 | EW8: 2018-04-28 | EX8: 2018-04-29 | EY8: 2018-04-30 | EZ8: 2018-05-01 | FA8: 2018-05-02 | FB8: 2018-05-03 | FC8: 2018-05-04 | FD8: 2018-05-05 | FE8: 2018-05-06 | FF8: 2018-05-07 | FG8: 2018-05-08 | FH8: 2018-05-09 | FI8: 2018-05-10 | FJ8: 2018-05-11 | FK8: 2018-05-12 | FL8: =FK8+1 -> 2018-05-13 | FM8: 2018-05-14 | FN8: 2018-05-15 | FO8: 2018-05-16 | FP8: 2018-05-17 | FQ8: 2018-05-18 | FR8: 2018-05-19 | FS8: 2018-05-20 | FT8: 2018-05-21 | FU8: 2018-05-22 | FV8: 2018-05-23 | FW8: 2018-05-24 | FX8: 2018-05-25 | FY8: 2018-05-26 | FZ8: 2018-05-27 | GA8: 2018-05-28 | GB8: 2018-05-29 | GC8: 2018-05-30 | GD8: 2018-05-31 | GE8: 2018-06-01 | GF8: 2018-06-02 | GG8: 2018-06-03 | GH8: 2018-06-04 | GI8: 2018-06-05 | GJ8: 2018-06-06 | GK8: 2018-06-07 | GL8: 2018-06-08 | GM8: 2018-06-09 | GN8: 2018-06-10 | GO8: 2018-06-11 | GP8: 2018-06-12 | GQ8: 2018-06-13 | GR8: 2018-06-14 | GS8: 2018-06-15 | GT8: 2018-06-16 | GU8: 2018-06-17 | GV8: 2018-06-18 | GW8: 2018-06-19 | GX8: 2018-06-20 | GY8: 2018-06-21 | GZ8: 2018-06-22 | HA8: 2018-06-23 | HB8: 2018-06-24 | HC8: 2018-06-25 | HD8: 2018-06-26 | HE8: 2018-06-27 | HF8: 2018-06-28 | HG8: 2018-06-29 | HH8: 2018-06-30 | HI8: 2018-07-01 | HJ8: 2018-07-02 | HK8: 2018-07-03 | HL8: 2018-07-04 | HM8: 2018-07-05 | HN8: 2018-07-06 | HO8: 2018-07-07 | HP8: 2018-07-08 | HQ8: 2018-07-09 | HR8: 2018-07-10 | HS8: 2018-07-11 | HT8: 2018-07-12 | HU8: 2018-07-13 | HV8: 2018-07-14 | HW8: 2018-07-15 | HX8: =HW8+1 -> 2018-07-16 | HY8: 2018-07-17 | HZ8: 2018-07-18 | IA8: 2018-07-19 | IB8: 2018-07-20 | IC8: 2018-07-21 | ID8: 2018-07-22 | IE8: 2018-07-23 | IF8: 2018-07-24 | IG8: 2018-07-25 | IH8: 2018-07-26 | II8: 2018-07-27 | IJ8: 2018-07-28 | IK8: 2018-07-29 | IL8: 2018-07-30 | IM8: 2018-07-31 | IN8: 2018-08-01 | IO8: 2018-08-02 | IP8: 2018-08-03 | IQ8: 2018-08-04 | IR8: 2018-08-05 | IS8: 2018-08-06 | IT8: 2018-08-07 | IU8: 2018-08-08 | IV8: 2018-08-09 | IW8: 2018-08-10 | IX8: 2018-08-11 | IY8: 2018-08-12 | IZ8: 2018-08-13 | JA8: 2018-08-14 | JB8: 2018-08-15 | JC8: 2018-08-16 | JD8: 2018-08-17 | JE8: 2018-08-18 | JF8: 2018-08-19 | JG8: 2018-08-20 | JH8: 2018-08-21 | JI8: 2018-08-22 | JJ8: 2018-08-23 | JK8: 2018-08-24 | JL8: 2018-08-25 | JM8: 2018-08-26 | JN8: 2018-08-27 | JO8: 2018-08-28 | JP8: 2018-08-29 | JQ8: 2018-08-30 | JR8: 2018-08-31 | JS8: 2018-09-01 | JT8: 2018-09-02 | JU8: 2018-09-03 | JV8: 2018-09-04 | JW8: 2018-09-05 | JX8: 2018-09-06 | JY8: 2018-09-07 | JZ8: 2018-09-08 | KA8: 2018-09-09 | KB8: 2018-09-10 | KC8: 2018-09-11 | KD8: 2018-09-12 | KE8: 2018-09-13 | KF8: 2018-09-14 | KG8: 2018-09-15 | KH8: 2018-09-16 | KI8: 2018-09-17 | KJ8: =KI8+1 -> 2018-09-18 | KK8: 2018-09-19 | KL8: 2018-09-20 | KM8: 2018-09-21 | KN8: 2018-09-22 | KO8: 2018-09-23 | KP8: 2018-09-24 | KQ8: 2018-09-25 | KR8: 2018-09-26 | KS8: 2018-09-27 | KT8: 2018-09-28 | KU8: 2018-09-29 | KV8: 2018-09-30 | KW8: 2018-10-01 | KX8: 2018-10-02 | KY8: 2018-10-03 | KZ8: 2018-10-04 | LA8: 2018-10-05 | LB8: 2018-10-06 | LC8: 2018-10-07 | LD8: 2018-10-08 | LE8: 2018-10-09 | LF8: 2018-10-10 | LG8: 2018-10-11 | LH8: 2018-10-12 | LI8: 2018-10-13 | LJ8: 2018-10-14 | LK8: 2018-10-15 | LL8: 2018-10-16 | LM8: 2018-10-17 | LN8: 2018-10-18 | LO8: 2018-10-19 | LP8: 2018-10-20 | LQ8: 2018-10-21 | LR8: 2018-10-22 | LS8: 2018-10-23 | LT8: 2018-10-24 | LU8: 2018-10-25 | LV8: 2018-10-26 | LW8: 2018-10-27 | LX8: 2018-10-28 | LY8: 2018-10-29 | LZ8: 2018-10-30 | MA8: 2018-10-31 | MB8: 2018-11-01 | MC8: 2018-11-02 | MD8: 2018-11-03 | ME8: 2018-11-04 | MF8: 2018-11-05 | MG8: 2018-11-06 | MH8: 2018-11-07 | MI8: 2018-11-08 | MJ8: 2018-11-09 | MK8: 2018-11-10 | ML8: 2018-11-11 | MM8: 2018-11-12 | MN8: 2018-11-13 | MO8: 2018-11-14 | MP8: 2018-11-15 | MQ8: 2018-11-16 | MR8: 2018-11-17 | MS8: 2018-11-18 | MT8: 2018-11-19 | MU8: 2018-11-20 | MV8: =MU8+1 -> 2018-11-21 | MW8: 2018-11-22 | MX8: 2018-11-23 | MY8: 2018-11-24 | MZ8: 2018-11-25 | NA8: 2018-11-26 | NB8: 2018-11-27 | NC8: 2018-11-28 | ND8: 2018-11-29 | NE8: 2018-11-30 | NF8: 2018-12-01 | NG8: 2018-12-02 | NH8: 2018-12-03 | NI8: 2018-12-04 | NJ8: 2018-12-05 | NK8: 2018-12-06 | NL8: 2018-12-07 | NM8: 2018-12-08 | NN8: 2018-12-09 | NO8: 2018-12-10 | NP8: 2018-12-11 | NQ8: 2018-12-12 | NR8: 2018-12-13 | NS8: 2018-12-14 | NT8: 2018-12-15 | NU8: 2018-12-16 | NV8: 2018-12-17 | NW8: 2018-12-18 | NX8: 2018-12-19 | NY8: 2018-12-20 | NZ8: 2018-12-21 | OA8: 2018-12-22 | OB8: 2018-12-23 | OC8: 2018-12-24 | OD8: 2018-12-25 | OE8: 2018-12-26 | OF8: 2018-12-27 | OG8: 2018-12-28 | OH8: 2018-12-29 | OI8: 2018-12-30 | OJ8: 2018-12-31 | OK8: 2019-01-01 | OL8: 2019-01-02 | OM8: 2019-01-03 | ON8: 2019-01-04 | OO8: 2019-01-05 | OP8: 2019-01-06 | OQ8: 2019-01-07 | OR8: 2019-01-08 | OS8: 2019-01-09 | OT8: 2019-01-10 | OU8: 2019-01-11 | OV8: 2019-01-12 | OW8: 2019-01-13 | OX8: 2019-01-14 | OY8: 2019-01-15 | OZ8: 2019-01-16 | PA8: 2019-01-17 | PB8: 2019-01-18 | PC8: 2019-01-19 | PD8: 2019-01-20 | PE8: 2019-01-21 | PF8: 2019-01-22 | PG8: 2019-01-23 | PH8: =PG8+1 -> 2019-01-24 | PI8: 2019-01-25 | PJ8: 2019-01-26 | PK8: 2019-01-27 | PL8: 2019-01-28 | PM8: 2019-01-29 | PN8: 2019-01-30 | PO8: 2019-01-31
E9: =DATE(Accueil!C1+2017,1,1)-31 -> 2017-12-01 | F9: =E9+1 -> 2017-12-02 | G9: 2017-12-03 | H9: 2017-12-04 | I9: 2017-12-05 | J9: 2017-12-06 | K9: 2017-12-07 | L9: 2017-12-08 | M9: 2017-12-09 | N9: 2017-12-10 | O9: 2017-12-11 | P9: 2017-12-12 | Q9: 2017-12-13 | R9: 2017-12-14 | S9: 2017-12-15 | T9: 2017-12-16 | U9: 2017-12-17 | V9: 2017-12-18 | W9: 2017-12-19 | X9: 2017-12-20 | Y9: 2017-12-21 | Z9: 2017-12-22 | AA9: 2017-12-23 | AB9: 2017-12-24 | AC9: 2017-12-25 | AD9: 2017-12-26 | AE9: 2017-12-27 | AF9: 2017-12-28 | AG9: 2017-12-29 | AH9: 2017-12-30 | AI9: 2017-12-31 | AJ9: 2018-01-01 | AK9: 2018-01-02 | AL9: =AK9+1 -> 2018-01-03 | AM9: 2018-01-04 | AN9: =AM9+1 -> 2018-01-05 | AO9: 2018-01-06 | AP9: 2018-01-07 | AQ9: 2018-01-08 | AR9: 2018-01-09 | AS9: 2018-01-10 | AT9: 2018-01-11 | AU9: 2018-01-12 | AV9: 2018-01-13 | AW9: 2018-01-14 | AX9: 2018-01-15 | AY9: 2018-01-16 | AZ9: 2018-01-17 | BA9: 2018-01-18 | BB9: 2018-01-19 | BC9: 2018-01-20 | BD9: 2018-01-21 | BE9: 2018-01-22 | BF9: 2018-01-23 | BG9: 2018-01-24 | BH9: 2018-01-25 | BI9: 2018-01-26 | BJ9: 2018-01-27 | BK9: 2018-01-28 | BL9: 2018-01-29 | BM9: 2018-01-30 | BN9: 2018-01-31 | BO9: 2018-02-01 | BP9: 2018-02-02 | BQ9: 2018-02-03 | BR9: 2018-02-04 | BS9: 2018-02-05 | BT9: 2018-02-06 | BU9: 2018-02-07 | BV9: 2018-02-08 | BW9: 2018-02-09 | BX9: 2018-02-10 | BY9: 2018-02-11 | BZ9: 2018-02-12 | CA9: 2018-02-13 | CB9: 2018-02-14 | CC9: 2018-02-15 | CD9: 2018-02-16 | CE9: 2018-02-17 | CF9: 2018-02-18 | CG9: 2018-02-19 | CH9: 2018-02-20 | CI9: 2018-02-21 | CJ9: 2018-02-22 | CK9: 2018-02-23 | CL9: 2018-02-24 | CM9: 2018-02-25 | CN9: 2018-02-26 | CO9: 2018-02-27 | CP9: 2018-02-28 | CQ9: 2018-03-01 | CR9: 2018-03-02 | CS9: 2018-03-03 | CT9: 2018-03-04 | CU9: 2018-03-05 | CV9: 2018-03-06 | CW9: 2018-03-07 | CX9: 2018-03-08 | CY9: 2018-03-09 | CZ9: =CY9+1 -> 2018-03-10 | DA9: 2018-03-11 | DB9: 2018-03-12 | DC9: 2018-03-13 | DD9: 2018-03-14 | DE9: 2018-03-15 | DF9: 2018-03-16 | DG9: 2018-03-17 | DH9: 2018-03-18 | DI9: 2018-03-19 | DJ9: 2018-03-20 | DK9: 2018-03-21 | DL9: 2018-03-22 | DM9: 2018-03-23 | DN9: 2018-03-24 | DO9: 2018-03-25 | DP9: 2018-03-26 | DQ9: 2018-03-27 | DR9: 2018-03-28 | DS9: 2018-03-29 | DT9: 2018-03-30 | DU9: 2018-03-31 | DV9: 2018-04-01 | DW9: 2018-04-02 | DX9: 2018-04-03 | DY9: 2018-04-04 | DZ9: 2018-04-05 | EA9: 2018-04-06 | EB9: 2018-04-07 | EC9: 2018-04-08 | ED9: 2018-04-09 | EE9: 2018-04-10 | EF9: 2018-04-11 | EG9: 2018-04-12 | EH9: 2018-04-13 | EI9: 2018-04-14 | EJ9: 2018-04-15 | EK9: 2018-04-16 | EL9: 2018-04-17 | EM9: 2018-04-18 | EN9: 2018-04-19 | EO9: 2018-04-20 | EP9: 2018-04-21 | EQ9: 2018-04-22 | ER9: 2018-04-23 | ES9: 2018-04-24 | ET9: 2018-04-25 | EU9: 2018-04-26 | EV9: 2018-04-27 | EW9: 2018-04-28 | EX9: 2018-04-29 | EY9: 2018-04-30 | EZ9: 2018-05-01 | FA9: 2018-05-02 | FB9: 2018-05-03 | FC9: 2018-05-04 | FD9: 2018-05-05 | FE9: 2018-05-06 | FF9: 2018-05-07 | FG9: 2018-05-08 | FH9: 2018-05-09 | FI9: 2018-05-10 | FJ9: 2018-05-11 | FK9: 2018-05-12 | FL9: =FK9+1 -> 2018-05-13 | FM9: 2018-05-14 | FN9: 2018-05-15 | FO9: 2018-05-16 | FP9: 2018-05-17 | FQ9: 2018-05-18 | FR9: 2018-05-19 | FS9: 2018-05-20 | FT9: 2018-05-21 | FU9: 2018-05-22 | FV9: 2018-05-23 | FW9: 2018-05-24 | FX9: 2018-05-25 | FY9: 2018-05-26 | FZ9: 2018-05-27 | GA9: 2018-05-28 | GB9: 2018-05-29 | GC9: 2018-05-30 | GD9: 2018-05-31 | GE9: 2018-06-01 | GF9: 2018-06-02 | GG9: 2018-06-03 | GH9: 2018-06-04 | GI9: 2018-06-05 | GJ9: 2018-06-06 | GK9: 2018-06-07 | GL9: 2018-06-08 | GM9: 2018-06-09 | GN9: 2018-06-10 | GO9: 2018-06-11 | GP9: 2018-06-12 | GQ9: 2018-06-13 | GR9: 2018-06-14 | GS9: 2018-06-15 | GT9: 2018-06-16 | GU9: 2018-06-17 | GV9: 2018-06-18 | GW9: 2018-06-19 | GX9: 2018-06-20 | GY9: 2018-06-21 | GZ9: 2018-06-22 | HA9: 2018-06-23 | HB9: 2018-06-24 | HC9: 2018-06-25 | HD9: 2018-06-26 | HE9: 2018-06-27 | HF9: 2018-06-28 | HG9: 2018-06-29 | HH9: 2018-06-30 | HI9: 2018-07-01 | HJ9: 2018-07-02 | HK9: 2018-07-03 | HL9: 2018-07-04 | HM9: 2018-07-05 | HN9: 2018-07-06 | HO9: 2018-07-07 | HP9: 2018-07-08 | HQ9: 2018-07-09 | HR9: 2018-07-10 | HS9: 2018-07-11 | HT9: 2018-07-12 | HU9: 2018-07-13 | HV9: 2018-07-14 | HW9: 2018-07-15 | HX9: =HW9+1 -> 2018-07-16 | HY9: 2018-07-17 | HZ9: 2018-07-18 | IA9: 2018-07-19 | IB9: 2018-07-20 | IC9: 2018-07-21 | ID9: 2018-07-22 | IE9: 2018-07-23 | IF9: 2018-07-24 | IG9: 2018-07-25 | IH9: 2018-07-26 | II9: 2018-07-27 | IJ9: 2018-07-28 | IK9: 2018-07-29 | IL9: 2018-07-30 | IM9: 2018-07-31 | IN9: 2018-08-01 | IO9: 2018-08-02 | IP9: 2018-08-03 | IQ9: 2018-08-04 | IR9: 2018-08-05 | IS9: 2018-08-06 | IT9: 2018-08-07 | IU9: 2018-08-08 | IV9: 2018-08-09 | IW9: 2018-08-10 | IX9: 2018-08-11 | IY9: 2018-08-12 | IZ9: 2018-08-13 | JA9: 2018-08-14 | JB9: 2018-08-15 | JC9: 2018-08-16 | JD9: 2018-08-17 | JE9: 2018-08-18 | JF9: 2018-08-19 | JG9: 2018-08-20 | JH9: 2018-08-21 | JI9: 2018-08-22 | JJ9: 2018-08-23 | JK9: 2018-08-24 | JL9: 2018-08-25 | JM9: 2018-08-26 | JN9: 2018-08-27 | JO9: 2018-08-28 | JP9: 2018-08-29 | JQ9: 2018-08-30 | JR9: 2018-08-31 | JS9: 2018-09-01 | JT9: 2018-09-02 | JU9: 2018-09-03 | JV9: 2018-09-04 | JW9: 2018-09-05 | JX9: 2018-09-06 | JY9: 2018-09-07 | JZ9: 2018-09-08 | KA9: 2018-09-09 | KB9: 2018-09-10 | KC9: 2018-09-11 | KD9: 2018-09-12 | KE9: 2018-09-13 | KF9: 2018-09-14 | KG9: 2018-09-15 | KH9: 2018-09-16 | KI9: 2018-09-17 | KJ9: =KI9+1 -> 2018-09-18 | KK9: 2018-09-19 | KL9: 2018-09-20 | KM9: 2018-09-21 | KN9: 2018-09-22 | KO9: 2018-09-23 | KP9: 2018-09-24 | KQ9: 2018-09-25 | KR9: 2018-09-26 | KS9: 2018-09-27 | KT9: 2018-09-28 | KU9: 2018-09-29 | KV9: 2018-09-30 | KW9: 2018-10-01 | KX9: 2018-10-02 | KY9: 2018-10-03 | KZ9: 2018-10-04 | LA9: 2018-10-05 | LB9: 2018-10-06 | LC9: 2018-10-07 | LD9: 2018-10-08 | LE9: 2018-10-09 | LF9: 2018-10-10 | LG9: 2018-10-11 | LH9: 2018-10-12 | LI9: 2018-10-13 | LJ9: 2018-10-14 | LK9: 2018-10-15 | LL9: 2018-10-16 | LM9: 2018-10-17 | LN9: 2018-10-18 | LO9: 2018-10-19 | LP9: 2018-10-20 | LQ9: 2018-10-21 | LR9: 2018-10-22 | LS9: 2018-10-23 | LT9: 2018-10-24 | LU9: 2018-10-25 | LV9: 2018-10-26 | LW9: 2018-10-27 | LX9: 2018-10-28 | LY9: 2018-10-29 | LZ9: 2018-10-30 | MA9: 2018-10-31 | MB9: 2018-11-01 | MC9: 2018-11-02 | MD9: 2018-11-03 | ME9: 2018-11-04 | MF9: 2018-11-05 | MG9: 2018-11-06 | MH9: 2018-11-07 | MI9: 2018-11-08 | MJ9: 2018-11-09 | MK9: 2018-11-10 | ML9: 2018-11-11 | MM9: 2018-11-12 | MN9: 2018-11-13 | MO9: 2018-11-14 | MP9: 2018-11-15 | MQ9: 2018-11-16 | MR9: 2018-11-17 | MS9: 2018-11-18 | MT9: 2018-11-19 | MU9: 2018-11-20 | MV9: =MU9+1 -> 2018-11-21 | MW9: 2018-11-22 | MX9: 2018-11-23 | MY9: 2018-11-24 | MZ9: 2018-11-25 | NA9: 2018-11-26 | NB9: 2018-11-27 | NC9: 2018-11-28 | ND9: 2018-11-29 | NE9: 2018-11-30 | NF9: 2018-12-01 | NG9: 2018-12-02 | NH9: 2018-12-03 | NI9: 2018-12-04 | NJ9: 2018-12-05 | NK9: 2018-12-06 | NL9: 2018-12-07 | NM9: 2018-12-08 | NN9: 2018-12-09 | NO9: 2018-12-10 | NP9: 2018-12-11 | NQ9: 2018-12-12 | NR9: 2018-12-13 | NS9: 2018-12-14 | NT9: 2018-12-15 | NU9: 2018-12-16 | NV9: 2018-12-17 | NW9: 2018-12-18 | NX9: 2018-12-19 | NY9: 2018-12-20 | NZ9: 2018-12-21 | OA9: 2018-12-22 | OB9: 2018-12-23 | OC9: 2018-12-24 | OD9: 2018-12-25 | OE9: 2018-12-26 | OF9: 2018-12-27 | OG9: 2018-12-28 | OH9: 2018-12-29 | OI9: 2018-12-30 | OJ9: 2018-12-31 | OK9: 2019-01-01 | OL9: 2019-01-02 | OM9: 2019-01-03 | ON9: 2019-01-04 | OO9: 2019-01-05 | OP9: 2019-01-06 | OQ9: 2019-01-07 | OR9: 2019-01-08 | OS9: 2019-01-09 | OT9: 2019-01-10 | OU9: 2019-01-11 | OV9: 2019-01-12 | OW9: 2019-01-13 | OX9: 2019-01-14 | OY9: 2019-01-15 | OZ9: 2019-01-16 | PA9: 2019-01-17 | PB9: 2019-01-18 | PC9: 2019-01-19 | PD9: 2019-01-20 | PE9: 2019-01-21 | PF9: 2019-01-22 | PG9: 2019-01-23 | PH9: =PG9+1 -> 2019-01-24 | PI9: 2019-01-25 | PJ9: 2019-01-26 | PK9: 2019-01-27 | PL9: 2019-01-28 | PM9: 2019-01-29 | PN9: 2019-01-30 | PO9: 2019-01-31
A10: NOM & PRENOM | B10: SERVICE | C10: ENTREE | D10: SORTIE | E10: Colonne1 | F10: Colonne3 | G10: Colonne5 | H10: Colonne7 | I10: Colonne9 | J10: Colonne11 | K10: Colonne13 | L10: Colonne15 | M10: Colonne17 | N10: Colonne19 | O10: Colonne21 | P10: Colonne23 | Q10: Colonne25 | R10: Colonne27 | S10: Colonne29 | T10: Colonne31 | U10: Colonne33 | V10: Colonne35 | W10: Colonne37 | X10: Colonne39 | Y10: Colonne41 | Z10: Colonne43 | AA10: Colonne45 | AB10: Colonne47 | AC10: Colonne49 | AD10: Colonne51 | AE10: Colonne53 | AF10: Colonne55 | AG10: Colonne57 | AH10: Colonne59 | AI10: Colonne61 | AJ10: Colonne63 | AK10: Colonne66 | AL10: Colonne67 | AM10: Colonne68 | AN10: Colonne69 | AO10: Colonne70 | AP10: Colonne71 | AQ10: Colonne72 | AR10: Colonne73 | AS10: Colonne74 | AT10: Colonne75 | AU10: Colonne76 | AV10: Colonne77 | AW10: Colonne78 | AX10: Colonne79 | AY10: Colonne80 | AZ10: Colonne81 | BA10: Colonne82 | BB10: Colonne83 | BC10: Colonne84 | BD10: Colonne85 | BE10: Colonne86 | BF10: Colonne87 | BG10: Colonne88 | BH10: Colonne89 | BI10: Colonne90 | BJ10: Colonne91 | BK10: Colonne92 | BL10: Colonne93 | BM10: Colonne94 | BN10: Colonne95 | BO10: Colonne96 | BP10: Colonne97 | BQ10: Colonne98 | BR10: Colonne99 | BS10: Colonne100 | BT10: Colonne101 | BU10: Colonne102 | BV10: Colonne103 | BW10: Colonne104 | BX10: Colonne105 | BY10: Colonne106 | BZ10: Colonne107 | CA10: Colonne108 | CB10: Colonne109 | CC10: Colonne110 | CD10: Colonne111 | CE10: Colonne112 | CF10: Colonne113 | CG10: Colonne114 | CH10: Colonne115 | CI10: Colonne116 | CJ10: Colonne117 | CK10: Colonne118 | CL10: Colonne119 | CM10: Colonne120 | CN10: Colonne121 | CO10: Colonne122 | CP10: Colonne123 | CQ10: Colonne124 | CR10: Colonne125 | CS10: Colonne126 | CT10: Colonne127 | CU10: Colonne128 | CV10: Colonne129 | CW10: Colonne130 | CX10: Colonne131 | CY10: Colonne132 | CZ10: Colonne133 | DA10: Colonne134 | DB10: Colonne135 | DC10: Colonne136 | DD10: Colonne137 | DE10: Colonne138 | DF10: Colonne139 | DG10: Colonne140 | DH10: Colonne141 | DI10: Colonne142 | DJ10: Colonne143 | DK10: Colonne144 | DL10: Colonne145 | DM10: Colonne146 | DN10: Colonne147 | DO10: Colonne148 | DP10: Colonne149 | DQ10: Colonne150 | DR10: Colonne151 | DS10: Colonne152 | DT10: Colonne153 | DU10: Colonne154 | DV10: Colonne155 | DW10: Colonne156 | DX10: Colonne157 | DY10: Colonne158 | DZ10: Colonne159 | EA10: Colonne160 | EB10: Colonne161 | EC10: Colonne162 | ED10: Colonne163 | EE10: Colonne164 | EF10: Colonne165 | EG10: Colonne166 | EH10: Colonne167 | EI10: Colonne168 | EJ10: Colonne169 | EK10: Colonne170 | EL10: Colonne171 | EM10: Colonne172 | EN10: Colonne173 | EO10: Colonne174 | EP10: Colonne175 | EQ10: Colonne176 | ER10: Colonne177 | ES10: Colonne178 | ET10: Colonne179 | EU10: Colonne180 | EV10: Colonne181 | EW10: Colonne182 | EX10: Colonne183 | EY10: Colonne184 | EZ10: Colonne185 | FA10: Colonne186 | FB10: Colonne187 | FC10: Colonne188 | FD10: Colonne189 | FE10: Colonne190 | FF10: Colonne191 | FG10: Colonne192 | FH10: Colonne193 | FI10: Colonne194 | FJ10: Colonne195 | FK10: Colonne196 | FL10: Colonne197 | FM10: Colonne198 | FN10: Colonne199 | FO10: Colonne200 | FP10: Colonne201 | FQ10: Colonne202 | FR10: Colonne203 | FS10: Colonne204 | FT10: Colonne205 | FU10: Colonne206 | FV10: Colonne207 | FW10: Colonne208 | FX10: Colonne209 | FY10: Colonne210 | FZ10: Colonne211 | GA10: Colonne212 | GB10: Colonne213 | GC10: Colonne214 | GD10: Colonne215 | GE10: Colonne216 | GF10: Colonne217 | GG10: Colonne218 | GH10: Colonne219 | GI10: Colonne220 | GJ10: Colonne221 | GK10: Colonne222 | GL10: Colonne223 | GM10: Colonne224 | GN10: Colonne225 | GO10: Colonne226 | GP10: Colonne227 | GQ10: Colonne228 | GR10: Colonne229 | GS10: Colonne230 | GT10: Colonne231 | GU10: Colonne232 | GV10: Colonne233 | GW10: Colonne234 | GX10: Colonne235 | GY10: Colonne236 | GZ10: Colonne237 | HA10: Colonne238 | HB10: Colonne239 | HC10: Colonne240 | HD10: Colonne241 | HE10: Colonne242 | HF10: Colonne243 | HG10: Colonne244 | HH10: Colonne245 | HI10: Colonne246 | HJ10: Colonne247 | HK10: Colonne248 | HL10: Colonne249 | HM10: Colonne250 | HN10: Colonne251 | HO10: Colonne252 | HP10: Colonne253 | HQ10: Colonne254 | HR10: Colonne255 | HS10: Colonne256 | HT10: Colonne257 | HU10: Colonne258 | HV10: Colonne259 | HW10: Colonne260 | HX10: Colonne261 | HY10: Colonne262 | HZ10: Colonne263 | IA10: Colonne264 | IB10: Colonne265 | IC10: Colonne266 | ID10: Colonne267 | IE10: Colonne268 | IF10: Colonne269 | IG10: Colonne270 | IH10: Colonne271 | II10: Colonne272 | IJ10: Colonne273 | IK10: Colonne274 | IL10: Colonne275 | IM10: Colonne276 | IN10: Colonne277 | IO10: Colonne278 | IP10: Colonne279 | IQ10: Colonne280 | IR10: Colonne281 | IS10: Colonne282 | IT10: Colonne283 | IU10: Colonne284 | IV10: Colonne285 | IW10: Colonne286 | IX10: Colonne287 | IY10: Colonne288 | IZ10: Colonne289 | JA10: Colonne290 | JB10: Colonne291 | JC10: Colonne292 | JD10: Colonne293 | JE10: Colonne294 | JF10: Colonne295 | JG10: Colonne296 | JH10: Colonne297 | JI10: Colonne298 | JJ10: Colonne299 | JK10: Colonne300 | JL10: Colonne301 | JM10: Colonne302 | JN10: Colonne303 | JO10: Colonne304 | JP10: Colonne305 | JQ10: Colonne306 | JR10: Colonne307 | JS10: Colonne308 | JT10: Colonne309 | JU10: Colonne310 | JV10: Colonne311 | JW10: Colonne312 | JX10: Colonne313 | JY10: Colonne314 | JZ10: Colonne315 | KA10: Colonne316 | KB10: Colonne317 | KC10: Colonne318 | KD10: Colonne319 | KE10: Colonne320 | KF10: Colonne321 | KG10: Colonne322 | KH10: Colonne323 | KI10: Colonne324 | KJ10: Colonne325 | KK10: Colonne326 | KL10: Colonne327 | KM10: Colonne328 | KN10: Colonne329 | KO10: Colonne330 | KP10: Colonne331 | KQ10: Colonne332 | KR10: Colonne333 | KS10: Colonne334 | KT10: Colonne335 | KU10: Colonne336 | KV10: Colonne337 | KW10: Colonne338 | KX10: Colonne339 | KY10: Colonne340 | KZ10: Colonne341 | LA10: Colonne342 | LB10: Colonne343 | LC10: Colonne344 | LD10: Colonne345 | LE10: Colonne346 | LF10: Colonne347 | LG10: Colonne348 | LH10: Colonne349 | LI10: Colonne350 | LJ10: Colonne351 | LK10: Colonne352 | LL10: Colonne353 | LM10: Colonne354 | LN10: Colonne355 | LO10: Colonne356 | LP10: Colonne357 | LQ10: Colonne358 | LR10: Colonne359 | LS10: Colonne360 | LT10: Colonne361 | LU10: Colonne362 | LV10: Colonne363 | LW10: Colonne364 | LX10: Colonne365 | LY10: Colonne366 | LZ10: Colonne367 | MA10: Colonne368 | MB10: Colonne369 | MC10: Colonne370 | MD10: Colonne371 | ME10: Colonne372 | MF10: Colonne373 | MG10: Colonne374 | MH10: Colonne375 | MI10: Colonne376 | MJ10: Colonne377 | MK10: Colonne378 | ML10: Colonne379 | MM10: Colonne380 | MN10: Colonne381 | MO10: Colonne382 | MP10: Colonne383 | MQ10: Colonne384 | MR10: Colonne385 | MS10: Colonne386 | MT10: Colonne387 | MU10: Colonne388 | MV10: Colonne389 | MW10: Colonne390 | MX10: Colonne391 | MY10: Colonne392 | MZ10: Colonne393 | NA10: Colonne394 | NB10: Colonne395 | NC10: Colonne396 | ND10: Colonne397 | NE10: Colonne398 | NF10: Colonne399 | NG10: Colonne400 | NH10: Colonne401 | NI10: Colonne402 | NJ10: Colonne403 | NK10: Colonne404 | NL10: Colonne405 | NM10: Colonne406 | NN10: Colonne407 | NO10: Colonne408 | NP10: Colonne409 | NQ10: Colonne410 | NR10: Colonne411 | NS10: Colonne412 | NT10: Colonne413 | NU10: Colonne414 | NV10: Colonne415 | NW10: Colonne416 | NX10: Colonne417 | NY10: Colonne418 | NZ10: Colonne419 | OA10: Colonne420 | OB10: Colonne421 | OC10: Colonne422 | OD10: Colonne423 | OE10: Colonne424 | OF10: Colonne425 | OG10: Colonne426 | OH10: Colonne427 | OI10: Colonne428 | OJ10: Colonne429 | OK10: Colonne430 | OL10: Colonne431 | OM10: Colonne432 | ON10: Colonne433 | OO10: Colonne434 | OP10: Colonne435 | OQ10: Colonne436 | OR10: Colonne437 | OS10: Colonne438 | OT10: Colonne439 | OU10: Colonne440 | OV10: Colonne441 | OW10: Colonne442 | OX10: Colonne443 | OY10: Colonne444 | OZ10: Colonne445 | PA10: Colonne446 | PB10: Colonne447 | PC10: Colonne448 | PD10: Colonne449 | PE10: Colonne450 | PF10: Colonne451 | PG10: Colonne452 | PH10: Colonne453 | PI10: Colonne454 | PJ10: Colonne455 | PK10: Colonne456 | PL10: Colonne457 | PM10: Colonne458 | PN10: Colonne459 | PO10: Colonne460

Sheet ABSENCE
A1: =DATE(Accueil!C1+2017,1,1) -> 2018-01-01
A5: DATE DE RECHERCHE | B5: 43194
E10: =$E$11 -> 2017-12-01 | AJ10: JANVIER | BO10: FEVRIER | CQ10: MARS | DV10: AVRIL | EZ10: MAI | GE10: JUIN | HI10: JUILLET | IN10: AOUT | JS10: SEPTEMBRE | KW10: OCTOBRE | MB10: NOVEMBRE | NF10: DECEMBRE | OK10: =$OK$11 -> 2019-01-01
E11: =DATE(Accueil!C1+2017,1,1)-31 -> 2017-12-01 | F11: =E11+1 -> 2017-12-02 | G11: 2017-12-03 | H11: 2017-12-04 | I11: 2017-12-05 | J11: 2017-12-06 | K11: 2017-12-07 | L11: 2017-12-08 | M11: 2017-12-09 | N11: 2017-12-10 | O11: 2017-12-11 | P11: 2017-12-12 | Q11: 2017-12-13 | R11: 2017-12-14 | S11: 2017-12-15 | T11: 2017-12-16 | U11: 2017-12-17 | V11: 2017-12-18 | W11: 2017-12-19 | X11: 2017-12-20 | Y11: 2017-12-21 | Z11: 2017-12-22 | AA11: 2017-12-23 | AB11: 2017-12-24 | AC11: 2017-12-25 | AD11: 2017-12-26 | AE11: 2017-12-27 | AF11: 2017-12-28 | AG11: 2017-12-29 | AH11: 2017-12-30 | AI11: 2017-12-31 | AJ11: 2018-01-01 | AK11: 2018-01-02 | AL11: 2018-01-03 | AM11: 2018-01-04 | AN11: 2018-01-05 | AO11: 2018-01-06 | AP11: 2018-01-07 | AQ11: 2018-01-08 | AR11: 2018-01-09 | AS11: 2018-01-10 | AT11: 2018-01-11 | AU11: 2018-01-12 | AV11: 2018-01-13 | AW11: 2018-01-14 | AX11: 2018-01-15 | AY11: 2018-01-16 | AZ11: 2018-01-17 | BA11: 2018-01-18 | BB11: 2018-01-19 | BC11: 2018-01-20 | BD11: 2018-01-21 | BE11: 2018-01-22 | BF11: 2018-01-23 | BG11: 2018-01-24 | BH11: 2018-01-25 | BI11: 2018-01-26 | BJ11: 2018-01-27 | BK11: 2018-01-28 | BL11: 2018-01-29 | BM11: 2018-01-30 | BN11: 2018-01-31 | BO11: 2018-02-01 | BP11: 2018-02-02 | BQ11: 2018-02-03 | BR11: =BQ11+1 -> 2018-02-04 | BS11: 2018-02-05 | BT11: 2018-02-06 | BU11: 2018-02-07 | BV11: 2018-02-08 | BW11: 2018-02-09 | BX11: 2018-02-10 | BY11: 2018-02-11 | BZ11: 2018-02-12 | CA11: 2018-02-13 | CB11: 2018-02-14 | CC11: 2018-02-15 | CD11: 2018-02-16 | CE11: 2018-02-17 | CF11: 2018-02-18 | CG11: 2018-02-19 | CH11: 2018-02-20 | CI11: 2018-02-21 | CJ11: 2018-02-22 | CK11: 2018-02-23 | CL11: 2018-02-24 | CM11: 2018-02-25 | CN11: 2018-02-26 | CO11: 2018-02-27 | CP11: 2018-02-28 | CQ11: 2018-03-01 | CR11: 2018-03-02 | CS11: 2018-03-03 | CT11: 2018-03-04 | CU11: 2018-03-05 | CV11: 2018-03-06 | CW11: 2018-03-07 | CX11: 2018-03-08 | CY11: 2018-03-09 | CZ11: 2018-03-10 | DA11: 2018-03-11 | DB11: 2018-03-12 | DC11: 2018-03-13 | DD11: 2018-03-14 | DE11: 2018-03-15 | DF11: 2018-03-16 | DG11: 2018-03-17 | DH11: 2018-03-18 | DI11: 2018-03-19 | DJ11: 2018-03-20 | DK11: 2018-03-21 | DL11: 2018-03-22 | DM11: 2018-03-23 | DN11: 2018-03-24 | DO11: 2018-03-25 | DP11: 2018-03-26 | DQ11: 2018-03-27 | DR11: 2018-03-28 | DS11: 2018-03-29 | DT11: 2018-03-30 | DU11: 2018-03-31 | DV11: 2018-04-01 | DW11: 2018-04-02 | DX11: 2018-04-03 | DY11: 2018-04-04 | DZ11: 2018-04-05 | EA11: 2018-04-06 | EB11: 2018-04-07 | EC11: 2018-04-08 | ED11: =EC11+1 -> 2018-04-09 | EE11: 2018-04-10 | EF11: 2018-04-11 | EG11: 2018-04-12 | EH11: 2018-04-13 | EI11: 2018-04-14 | EJ11: 2018-04-15 | EK11: 2018-04-16 | EL11: 2018-04-17 | EM11: 2018-04-18 | EN11: 2018-04-19 | EO11: 2018-04-20 | EP11: 2018-04-21 | EQ11: 2018-04-22 | ER11: 2018-04-23 | ES11: 2018-04-24 | ET11: 2018-04-25 | EU11: 2018-04-26 | EV11: 2018-04-27 | EW11: 2018-04-28 | EX11: 2018-04-29 | EY11: 2018-04-30 | EZ11: 2018-05-01 | FA11: 2018-05-02 | FB11: 2018-05-03 | FC11: 2018-05-04 | FD11: 2018-05-05 | FE11: 2018-05-06 | FF11: 2018-05-07 | FG11: 2018-05-08 | FH11: 2018-05-09 | FI11: 2018-05-10 | FJ11: 2018-05-11 | FK11: 2018-05-12 | FL11: 2018-05-13 | FM11: 2018-05-14 | FN11: 2018-05-15 | FO11: 2018-05-16 | FP11: 2018-05-17 | FQ11: 2018-05-18 | FR11: 2018-05-19 | FS11: 2018-05-20 | FT11: 2018-05-21 | FU11: 2018-05-22 | FV11: 2018-05-23 | FW11: 2018-05-24 | FX11: 2018-05-25 | FY11: 2018-05-26 | FZ11: 2018-05-27 | GA11: 2018-05-28 | GB11: 2018-05-29 | GC11: 2018-05-30 | GD11: 2018-05-31 | GE11: 2018-06-01 | GF11: 2018-06-02 | GG11: 2018-06-03 | GH11: 2018-06-04 | GI11: 2018-06-05 | GJ11: 2018-06-06 | GK11: 2018-06-07 | GL11: 2018-06-08 | GM11: 2018-06-09 | GN11: 2018-06-10 | GO11: 2018-06-11 | GP11: =GO11+1 -> 2018-06-12 | GQ11: 2018-06-13 | GR11: 2018-06-14 | GS11: 2018-06-15 | GT11: 2018-06-16 | GU11: 2018-06-17 | GV11: 2018-06-18 | GW11: 2018-06-19 | GX11: 2018-06-20 | GY11: 2018-06-21 | GZ11: 2018-06-22 | HA11: 2018-06-23 | HB11: 2018-06-24 | HC11: 2018-06-25 | HD11: 2018-06-26 | HE11: 2018-06-27 | HF11: 2018-06-28 | HG11: 2018-06-29 | HH11: 2018-06-30 | HI11: 2018-07-01 | HJ11: 2018-07-02 | HK11: 2018-07-03 | HL11: 2018-07-04 | HM11: 2018-07-05 | HN11: 2018-07-06 | HO11: 2018-07-07 | HP11: 2018-07-08 | HQ11: 2018-07-09 | HR11: 2018-07-10 | HS11: 2018-07-11 | HT11: 2018-07-12 | HU11: 2018-07-13 | HV11: 2018-07-14 | HW11: 2018-07-15 | HX11: 2018-07-16 | HY11: 2018-07-17 | HZ11: 2018-07-18 | IA11: 2018-07-19 | IB11: 2018-07-20 | IC11: 2018-07-21 | ID11: 2018-07-22 | IE11: 2018-07-23 | IF11: 2018-07-24 | IG11: 2018-07-25 | IH11: 2018-07-26 | II11: 2018-07-27 | IJ11: 2018-07-28 | IK11: 2018-07-29 | IL11: 2018-07-30 | IM11: 2018-07-31 | IN11: 2018-08-01 | IO11: 2018-08-02 | IP11: 2018-08-03 | IQ11: 2018-08-04 | IR11: 2018-08-05 | IS11: 2018-08-06 | IT11: 2018-08-07 | IU11: 2018-08-08 | IV11: 2018-08-09 | IW11: 2018-08-10 | IX11: 2018-08-11 | IY11: 2018-08-12 | IZ11: 2018-08-13 | JA11: 2018-08-14 | JB11: =JA11+1 -> 2018-08-15 | JC11: 2018-08-16 | JD11: 2018-08-17 | JE11: 2018-08-18 | JF11: 2018-08-19 | JG11: 2018-08-20 | JH11: 2018-08-21 | JI11: 2018-08-22 | JJ11: 2018-08-23 | JK11: 2018-08-24 | JL11: 2018-08-25 | JM11: 2018-08-26 | JN11: 2018-08-27 | JO11: 2018-08-28 | JP11: 2018-08-29 | JQ11: 2018-08-30 | JR11: 2018-08-31 | JS11: 2018-09-01 | JT11: 2018-09-02 | JU11: 2018-09-03 | JV11: 2018-09-04 | JW11: 2018-09-05 | JX11: 2018-09-06 | JY11: 2018-09-07 | JZ11: 2018-09-08 | KA11: 2018-09-09 | KB11: 2018-09-10 | KC11: 2018-09-11 | KD11: 2018-09-12 | KE11: 2018-09-13 | KF11: 2018-09-14 | KG11: 2018-09-15 | KH11: 2018-09-16 | KI11: 2018-09-17 | KJ11: 2018-09-18 | KK11: 2018-09-19 | KL11: 2018-09-20 | KM11: 2018-09-21 | KN11: 2018-09-22 | KO11: 2018-09-23 | KP11: 2018-09-24 | KQ11: 2018-09-25 | KR11: 2018-09-26 | KS11: 2018-09-27 | KT11: 2018-09-28 | KU11: 2018-09-29 | KV11: 2018-09-30 | KW11: 2018-10-01 | KX11: 2018-10-02 | KY11: 2018-10-03 | KZ11: 2018-10-04 | LA11: 2018-10-05 | LB11: 2018-10-06 | LC11: 2018-10-07 | LD11: 2018-10-08 | LE11: 2018-10-09 | LF11: 2018-10-10 | LG11: 2018-10-11 | LH11: 2018-10-12 | LI11: 2018-10-13 | LJ11: 2018-10-14 | LK11: 2018-10-15 | LL11: 2018-10-16 | LM11: 2018-10-17 | LN11: =LM11+1 -> 2018-10-18 | LO11: 2018-10-19 | LP11: 2018-10-20 | LQ11: 2018-10-21 | LR11: 2018-10-22 | LS11: 2018-10-23 | LT11: 2018-10-24 | LU11: 2018-10-25 | LV11: 2018-10-26 | LW11: 2018-10-27 | LX11: 2018-10-28 | LY11: 2018-10-29 | LZ11: 2018-10-30 | MA11: 2018-10-31 | MB11: 2018-11-01 | MC11: 2018-11-02 | MD11: 2018-11-03 | ME11: 2018-11-04 | MF11: 2018-11-05 | MG11: 2018-11-06 | MH11: 2018-11-07 | MI11: 2018-11-08 | MJ11: 2018-11-09 | MK11: 2018-11-10 | ML11: 2018-11-11 | MM11: 2018-11-12 | MN11: 2018-11-13 | MO11: 2018-11-14 | MP11: 2018-11-15 | MQ11: 2018-11-16 | MR11: 2018-11-17 | MS11: 2018-11-18 | MT11: 2018-11-19 | MU11: 2018-11-20 | MV11: 2018-11-21 | MW11: 2018-11-22 | MX11: 2018-11-23 | MY11: 2018-11-24 | MZ11: 2018-11-25 | NA11: 2018-11-26 | NB11: 2018-11-27 | NC11: 2018-11-28 | ND11: 2018-11-29 | NE11: 2018-11-30 | NF11: 2018-12-01 | NG11: 2018-12-02 | NH11: 2018-12-03 | NI11: 2018-12-04 | NJ11: 2018-12-05 | NK11: 2018-12-06 | NL11: 2018-12-07 | NM11: 2018-12-08 | NN11: 2018-12-09 | NO11: 2018-12-10 | NP11: 2018-12-11 | NQ11: 2018-12-12 | NR11: 2018-12-13 | NS11: 2018-12-14 | NT11: 2018-12-15 | NU11: 2018-12-16 | NV11: 2018-12-17 | NW11: 2018-12-18 | NX11: 2018-12-19 | NY11: 2018-12-20 | NZ11: =NY11+1 -> 2018-12-21 | OA11: 2018-12-22 | OB11: 2018-12-23 | OC11: 2018-12-24 | OD11: 2018-12-25 | OE11: 2018-12-26 | OF11: 2018-12-27 | OG11: 2018-12-28 | OH11: 2018-12-29 | OI11: 2018-12-30 | OJ11: 2018-12-31 | OK11: 2019-01-01 | OL11: 2019-01-02 | OM11: 2019-01-03 | ON11: 2019-01-04 | OO11: 2019-01-05 | OP11: 2019-01-06 | OQ11: 2019-01-07 | OR11: 2019-01-08 | OS11: 2019-01-09 | OT11: 2019-01-10 | OU11: 2019-01-11 | OV11: 2019-01-12 | OW11: 2019-01-13 | OX11: 2019-01-14 | OY11: 2019-01-15 | OZ11: 2019-01-16 | PA11: 2019-01-17 | PB11: 2019-01-18 | PC11: 2019-01-19 | PD11: 2019-01-20 | PE11: 2019-01-21 | PF11: 2019-01-22 | PG11: 2019-01-23 | PH11: 2019-01-24 | PI11: 2019-01-25 | PJ11: 2019-01-26 | PK11: 2019-01-27 | PL11: 2019-01-28 | PM11: 2019-01-29 | PN11: 2019-01-30 | PO11: 2019-01-31
E12: =DATE(Accueil!C1+2017,1,1)-31 -> 2017-12-01 | F12: 2017-12-02 | G12: 2017-12-03 | H12: 2017-12-04 | I12: 2017-12-05 | J12: 2017-12-06 | K12: 2017-12-07 | L12: 2017-12-08 | M12: 2017-12-09 | N12: 2017-12-10 | O12: 2017-12-11 | P12: 2017-12-12 | Q12: 2017-12-13 | R12: 2017-12-14 | S12: 2017-12-15 | T12: 2017-12-16 | U12: 2017-12-17 | V12: 2017-12-18 | W12: 2017-12-19 | X12: 2017-12-20 | Y12: 2017-12-21 | Z12: 2017-12-22 | AA12: 2017-12-23 | AB12: 2017-12-24 | AC12: 2017-12-25 | AD12: 2017-12-26 | AE12: 2017-12-27 | AF12: 2017-12-28 | AG12: 2017-12-29 | AH12: 2017-12-30 | AI12: 2017-12-31 | AJ12: 2018-01-01 | AK12: 2018-01-02 | AL12: 2018-01-03 | AM12: 2018-01-04 | AN12: 2018-01-05 | AO12: 2018-01-06 | AP12: 2018-01-07 | AQ12: 2018-01-08 | AR12: 2018-01-09 | AS12: 2018-01-10 | AT12: 2018-01-11 | AU12: 2018-01-12 | AV12: 2018-01-13 | AW12: 2018-01-14 | AX12: 2018-01-15 | AY12: 2018-01-16 | AZ12: 2018-01-17 | BA12: 2018-01-18 | BB12: 2018-01-19 | BC12: 2018-01-20 | BD12: 2018-01-21 | BE12: 2018-01-22 | BF12: 2018-01-23 | BG12: 2018-01-24 | BH12: 2018-01-25 | BI12: 2018-01-26 | BJ12: 2018-01-27 | BK12: 2018-01-28 | BL12: 2018-01-29 | BM12: 2018-01-30 | BN12: 2018-01-31 | BO12: 2018-02-01 | BP12: 2018-02-02 | BQ12: 2018-02-03 | BR12: 2018-02-04 | BS12: 2018-02-05 | BT12: 2018-02-06 | BU12: 2018-02-07 | BV12: 2018-02-08 | BW12: 2018-02-09 | BX12: 2018-02-10 | BY12: 2018-02-11 | BZ12: 2018-02-12 | CA12: 2018-02-13 | CB12: 2018-02-14 | CC12: 2018-02-15 | CD12: 2018-02-16 | CE12: 2018-02-17 | CF12: 2018-02-18 | CG12: 2018-02-19 | CH12: 2018-02-20 | CI12: 2018-02-21 | CJ12: 2018-02-22 | CK12: 2018-02-23 | CL12: 2018-02-24 | CM12: 2018-02-25 | CN12: 2018-02-26 | CO12: 2018-02-27 | CP12: 2018-02-28 | CQ12: 2018-03-01 | CR12: 2018-03-02 | CS12: 2018-03-03 | CT12: 2018-03-04 | CU12: 2018-03-05 | CV12: 2018-03-06 | CW12: 2018-03-07 | CX12: 2018-03-08 | CY12: 2018-03-09 | CZ12: 2018-03-10 | DA12: 2018-03-11 | DB12: 2018-03-12 | DC12: 2018-03-13 | DD12: 2018-03-14 | DE12: 2018-03-15 | DF12: 2018-03-16 | DG12: 2018-03-17 | DH12: 2018-03-18 | DI12: 2018-03-19 | DJ12: 2018-03-20 | DK12: 2018-03-21 | DL12: 2018-03-22 | DM12: 2018-03-23 | DN12: 2018-03-24 | DO12: 2018-03-25 | DP12: 2018-03-26 | DQ12: 2018-03-27 | DR12: 2018-03-28 | DS12: 2018-03-29 | DT12: 2018-03-30 | DU12: 2018-03-31 | DV12: 2018-04-01 | DW12: 2018-04-02 | DX12: 2018-04-03 | DY12: 2018-04-04 | DZ12: 2018-04-05 | EA12: 2018-04-06 | EB12: 2018-04-07 | EC12: 2018-04-08 | ED12: 2018-04-09 | EE12: 2018-04-10 | EF12: 2018-04-11 | EG12: 2018-04-12 | EH12: 2018-04-13 | EI12: 2018-04-14 | EJ12: 2018-04-15 | EK12: 2018-04-16 | EL12: 2018-04-17 | EM12: 2018-04-18 | EN12: 2018-04-19 | EO12: 2018-04-20 | EP12: 2018-04-21 | EQ12: 2018-04-22 | ER12: 2018-04-23 | ES12: 2018-04-24 | ET12: 2018-04-25 | EU12: 2018-04-26 | EV12: 2018-04-27 | EW12: 2018-04-28 | EX12: 2018-04-29 | EY12: 2018-04-30 | EZ12: 2018-05-01 | FA12: 2018-05-02 | FB12: 2018-05-03 | FC12: 2018-05-04 | FD12: 2018-05-05 | FE12: 2018-05-06 | FF12: 2018-05-07 | FG12: 2018-05-08 | FH12: 2018-05-09 | FI12: 2018-05-10 | FJ12: 2018-05-11 | FK12: 2018-05-12 | FL12: 2018-05-13 | FM12: 2018-05-14 | FN12: 2018-05-15 | FO12: 2018-05-16 | FP12: 2018-05-17 | FQ12: 2018-05-18 | FR12: 2018-05-19 | FS12: 2018-05-20 | FT12: 2018-05-21 | FU12: 2018-05-22 | FV12: 2018-05-23 | FW12: 2018-05-24 | FX12: 2018-05-25 | FY12: 2018-05-26 | FZ12: 2018-05-27 | GA12: 2018-05-28 | GB12: 2018-05-29 | GC12: 2018-05-30 | GD12: 2018-05-31 | GE12: 2018-06-01 | GF12: 2018-06-02 | GG12: 2018-06-03 | GH12: 2018-06-04 | GI12: 2018-06-05 | GJ12: 2018-06-06 | GK12: 2018-06-07 | GL12: 2018-06-08 | GM12: 2018-06-09 | GN12: 2018-06-10 | GO12: 2018-06-11 | GP12: 2018-06-12 | GQ12: 2018-06-13 | GR12: 2018-06-14 | GS12: 2018-06-15 | GT12: 2018-06-16 | GU12: 2018-06-17 | GV12: 2018-06-18 | GW12: 2018-06-19 | GX12: 2018-06-20 | GY12: 2018-06-21 | GZ12: 2018-06-22 | HA12: 2018-06-23 | HB12: 2018-06-24 | HC12: 2018-06-25 | HD12: 2018-06-26 | HE12: 2018-06-27 | HF12: 2018-06-28 | HG12: 2018-06-29 | HH12: 2018-06-30 | HI12: 2018-07-01 | HJ12: 2018-07-02 | HK12: 2018-07-03 | HL12: 2018-07-04 | HM12: 2018-07-05 | HN12: 2018-07-06 | HO12: 2018-07-07 | HP12: 2018-07-08 | HQ12: 2018-07-09 | HR12: 2018-07-10 | HS12: 2018-07-11 | HT12: 2018-07-12 | HU12: 2018-07-13 | HV12: 2018-07-14 | HW12: 2018-07-15 | HX12: 2018-07-16 | HY12: 2018-07-17 | HZ12: 2018-07-18 | IA12: 2018-07-19 | IB12: 2018-07-20 | IC12: 2018-07-21 | ID12: 2018-07-22 | IE12: 2018-07-23 | IF12: 2018-07-24 | IG12: 2018-07-25 | IH12: 2018-07-26 | II12: 2018-07-27 | IJ12: 2018-07-28 | IK12: 2018-07-29 | IL12: 2018-07-30 | IM12: 2018-07-31 | IN12: 2018-08-01 | IO12: 2018-08-02 | IP12: 2018-08-03 | IQ12: 2018-08-04 | IR12: 2018-08-05 | IS12: 2018-08-06 | IT12: 2018-08-07 | IU12: 2018-08-08 | IV12: 2018-08-09 | IW12: 2018-08-10 | IX12: 2018-08-11 | IY12: 2018-08-12 | IZ12: 2018-08-13 | JA12: 2018-08-14 | JB12: 2018-08-15 | JC12: 2018-08-16 | JD12: 2018-08-17 | JE12: 2018-08-18 | JF12: 2018-08-19 | JG12: 2018-08-20 | JH12: 2018-08-21 | JI12: 2018-08-22 | JJ12: 2018-08-23 | JK12: 2018-08-24 | JL12: 2018-08-25 | JM12: 2018-08-26 | JN12: 2018-08-27 | JO12: 2018-08-28 | JP12: 2018-08-29 | JQ12: 2018-08-30 | JR12: 2018-08-31 | JS12: 2018-09-01 | JT12: 2018-09-02 | JU12: 2018-09-03 | JV12: 2018-09-04 | JW12: 2018-09-05 | JX12: 2018-09-06 | JY12: 2018-09-07 | JZ12: 2018-09-08 | KA12: 2018-09-09 | KB12: 2018-09-10 | KC12: 2018-09-11 | KD12: 2018-09-12 | KE12: 2018-09-13 | KF12: 2018-09-14 | KG12: 2018-09-15 | KH12: 2018-09-16 | KI12: 2018-09-17 | KJ12: 2018-09-18 | KK12: 2018-09-19 | KL12: 2018-09-20 | KM12: 2018-09-21 | KN12: 2018-09-22 | KO12: 2018-09-23 | KP12: 2018-09-24 | KQ12: 2018-09-25 | KR12: 2018-09-26 | KS12: 2018-09-27 | KT12: 2018-09-28 | KU12: 2018-09-29 | KV12: 2018-09-30 | KW12: 2018-10-01 | KX12: 2018-10-02 | KY12: 2018-10-03 | KZ12: 2018-10-04 | LA12: 2018-10-05 | LB12: 2018-10-06 | LC12: 2018-10-07 | LD12: 2018-10-08 | LE12: 2018-10-09 | LF12: 2018-10-10 | LG12: 2018-10-11 | LH12: 2018-10-12 | LI12: 2018-10-13 | LJ12: 2018-10-14 | LK12: 2018-10-15 | LL12: 2018-10-16 | LM12: 2018-10-17 | LN12: 2018-10-18 | LO12: 2018-10-19 | LP12: 2018-10-20 | LQ12: 2018-10-21 | LR12: 2018-10-22 | LS12: 2018-10-23 | LT12: 2018-10-24 | LU12: 2018-10-25 | LV12: 2018-10-26 | LW12: 2018-10-27 | LX12: 2018-10-28 | LY12: 2018-10-29 | LZ12: 2018-10-30 | MA12: 2018-10-31 | MB12: 2018-11-01 | MC12: 2018-11-02 | MD12: 2018-11-03 | ME12: 2018-11-04 | MF12: 2018-11-05 | MG12: 2018-11-06 | MH12: 2018-11-07 | MI12: 2018-11-08 | MJ12: 2018-11-09 | MK12: 2018-11-10 | ML12: 2018-11-11 | MM12: 2018-11-12 | MN12: 2018-11-13 | MO12: 2018-11-14 | MP12: 2018-11-15 | MQ12: 2018-11-16 | MR12: 2018-11-17 | MS12: 2018-11-18 | MT12: 2018-11-19 | MU12: 2018-11-20 | MV12: 2018-11-21 | MW12: 2018-11-22 | MX12: 2018-11-23 | MY12: 2018-11-24 | MZ12: 2018-11-25 | NA12: 2018-11-26 | NB12: 2018-11-27 | NC12: 2018-11-28 | ND12: 2018-11-29 | NE12: 2018-11-30 | NF12: 2018-12-01 | NG12: 2018-12-02 | NH12: 2018-12-03 | NI12: 2018-12-04 | NJ12: 2018-12-05 | NK12: 2018-12-06 | NL12: 2018-12-07 | NM12: 2018-12-08 | NN12: 2018-12-09 | NO12: 2018-12-10 | NP12: 2018-12-11 | NQ12: 2018-12-12 | NR12: 2018-12-13 | NS12: 2018-12-14 | NT12: 2018-12-15 | NU12: 2018-12-16 | NV12: 2018-12-17 | NW12: 2018-12-18 | NX12: 2018-12-19 | NY12: 2018-12-20 | NZ12: 2018-12-21 | OA12: 2018-12-22 | OB12: 2018-12-23 | OC12: 2018-12-24 | OD12: 2018-12-25 | OE12: 2018-12-26 | OF12: 2018-12-27 | OG12: 2018-12-28 | OH12: 2018-12-29 | OI12: 2018-12-30 | OJ12: 2018-12-31 | OK12: 2019-01-01 | OL12: 2019-01-02 | OM12: 2019-01-03 | ON12: 2019-01-04 | OO12: 2019-01-05 | OP12: 2019-01-06 | OQ12: 2019-01-07 | OR12: 2019-01-08 | OS12: 2019-01-09 | OT12: 2019-01-10 | OU12: 2019-01-11 | OV12: 2019-01-12 | OW12: 2019-01-13 | OX12: 2019-01-14 | OY12: 2019-01-15 | OZ12: 2019-01-16 | PA12: 2019-01-17 | PB12: 2019-01-18 | PC12: 2019-01-19 | PD12: 2019-01-20 | PE12: 2019-01-21 | PF12: 2019-01-22 | PG12: 2019-01-23 | PH12: 2019-01-24 | PI12: 2019-01-25 | PJ12: 2019-01-26 | PK12: 2019-01-27 | PL12: 2019-01-28 | PM12: 2019-01-29 | PN12: 2019-01-30 | PO12: 2019-01-31
A13: NOM & PRENOM | B13: SERVICE | C13: ENTREE | D13: SORTIE | E13: Colonne1 | F13: Colonne3 | G13: Colonne5 | H13: Colonne7 | I13: Colonne9 | J13: Colonne11 | K13: Colonne13 | L13: Colonne15 | M13: Colonne17 | N13: Colonne19 | O13: Colonne21 | P13: Colonne23 | Q13: Colonne25 | R13: Colonne27 | S13: Colonne29 | T13: Colonne31 | U13: Colonne33 | V13: Colonne35 | W13: Colonne37 | X13: Colonne39 | Y13: Colonne41 | Z13: Colonne43 | AA13: Colonne45 | AB13: Colonne47 | AC13: Colonne49 | AD13: Colonne51 | AE13: Colonne53 | AF13: Colonne55 | AG13: Colonne57 | AH13: Colonne59 | AI13: Colonne61 | AJ13: Colonne63 | AK13: Colonne66 | AL13: Colonne67 | AM13: Colonne68 | AN13: Colonne69 | AO13: Colonne70 | AP13: Colonne71 | AQ13: Colonne72 | AR13: Colonne73 | AS13: Colonne74 | AT13: Colonne75 | AU13: Colonne76 | AV13: Colonne77 | AW13: Colonne78 | AX13: Colonne79 | AY13: Colonne80 | AZ13: Colonne81 | BA13: Colonne82 | BB13: Colonne83 | BC13: Colonne84 | BD13: Colonne85 | BE13: Colonne86 | BF13: Colonne87 | BG13: Colonne88 | BH13: Colonne89 | BI13: Colonne90 | BJ13: Colonne91 | BK13: Colonne92 | BL13: Colonne93 | BM13: Colonne94 | BN13: Colonne95 | BO13: Colonne96 | BP13: Colonne97 | BQ13: Colonne98 | BR13: Colonne99 | BS13: Colonne100 | BT13: Colonne101 | BU13: Colonne102 | BV13: Colonne103 | BW13: Colonne104 | BX13: Colonne105 | BY13: Colonne106 | BZ13: Colonne107 | CA13: Colonne108 | CB13: Colonne109 | CC13: Colonne110 | CD13: Colonne111 | CE13: Colonne112 | CF13: Colonne113 | CG13: Colonne114 | CH13: Colonne115 | CI13: Colonne116 | CJ13: Colonne117 | CK13: Colonne118 | CL13: Colonne119 | CM13: Colonne120 | CN13: Colonne121 | CO13: Colonne122 | CP13: Colonne123 | CQ13: Colonne124 | CR13: Colonne125 | CS13: Colonne126 | CT13: Colonne127 | CU13: Colonne128 | CV13: Colonne129 | CW13: Colonne130 | CX13: Colonne131 | CY13: Colonne132 | CZ13: Colonne133 | DA13: Colonne134 | DB13: Colonne135 | DC13: Colonne136 | DD13: Colonne137 | DE13: Colonne138 | DF13: Colonne139 | DG13: Colonne140 | DH13: Colonne141 | DI13: Colonne142 | DJ13: Colonne143 | DK13: Colonne144 | DL13: Colonne145 | DM13: Colonne146 | DN13: Colonne147 | DO13: Colonne148 | DP13: Colonne149 | DQ13: Colonne150 | DR13: Colonne151 | DS13: Colonne152 | DT13: Colonne153 | DU13: Colonne154 | DV13: Colonne155 | DW13: Colonne156 | DX13: Colonne157 | DY13: Colonne158 | DZ13: Colonne159 | EA13: Colonne160 | EB13: Colonne161 | EC13: Colonne162 | ED13: Colonne163 | EE13: Colonne164 | EF13: Colonne165 | EG13: Colonne166 | EH13: Colonne167 | EI13: Colonne168 | EJ13: Colonne169 | EK13: Colonne170 | EL13: Colonne171 | EM13: Colonne172 | EN13: Colonne173 | EO13: Colonne174 | EP13: Colonne175 | EQ13: Colonne176 | ER13: Colonne177 | ES13: Colonne178 | ET13: Colonne179 | EU13: Colonne180 | EV13: Colonne181 | EW13: Colonne182 | EX13: Colonne183 | EY13: Colonne184 | EZ13: Colonne185 | FA13: Colonne186 | FB13: Colonne187 | FC13: Colonne188 | FD13: Colonne189 | FE13: Colonne190 | FF13: Colonne191 | FG13: Colonne192 | FH13: Colonne193 | FI13: Colonne194 | FJ13: Colonne195 | FK13: Colonne196 | FL13: Colonne197 | FM13: Colonne198 | FN13: Colonne199 | FO13: Colonne200 | FP13: Colonne201 | FQ13: Colonne202 | FR13: Colonne203 | FS13: Colonne204 | FT13: Colonne205 | FU13: Colonne206 | FV13: Colonne207 | FW13: Colonne208 | FX13: Colonne209 | FY13: Colonne210 | FZ13: Colonne211 | GA13: Colonne212 | GB13: Colonne213 | GC13: Colonne214 | GD13: Colonne215 | GE13: Colonne216 | GF13: Colonne217 | GG13: Colonne218 | GH13: Colonne219 | GI13: Colonne220 | GJ13: Colonne221 | GK13: Colonne222 | GL13: Colonne223 | GM13: Colonne224 | GN13: Colonne225 | GO13: Colonne226 | GP13: Colonne227 | GQ13: Colonne228 | GR13: Colonne229 | GS13: Colonne230 | GT13: Colonne231 | GU13: Colonne232 | GV13: Colonne233 | GW13: Colonne234 | GX13: Colonne235 | GY13: Colonne236 | GZ13: Colonne237 | HA13: Colonne238 | HB13: Colonne239 | HC13: Colonne240 | HD13: Colonne241 | HE13: Colonne242 | HF13: Colonne243 | HG13: Colonne244 | HH13: Colonne245 | HI13: Colonne246 | HJ13: Colonne247 | HK13: Colonne248 | HL13: Colonne249 | HM13: Colonne250 | HN13: Colonne251 | HO13: Colonne252 | HP13: Colonne253 | HQ13: Colonne254 | HR13: Colonne255 | HS13: Colonne256 | HT13: Colonne257 | HU13: Colonne258 | HV13: Colonne259 | HW13: Colonne260 | HX13: Colonne261 | HY13: Colonne262 | HZ13: Colonne263 | IA13: Colonne264 | IB13: Colonne265 | IC13: Colonne266 | ID13: Colonne267 | IE13: Colonne268 | IF13: Colonne269 | IG13: Colonne270 | IH13: Colonne271 | II13: Colonne272 | IJ13: Colonne273 | IK13: Colonne274 | IL13: Colonne275 | IM13: Colonne276 | IN13: Colonne277 | IO13: Colonne278 | IP13: Colonne279 | IQ13: Colonne280 | IR13: Colonne281 | IS13: Colonne282 | IT13: Colonne283 | IU13: Colonne284 | IV13: Colonne285 | IW13: Colonne286 | IX13: Colonne287 | IY13: Colonne288 | IZ13: Colonne289 | JA13: Colonne290 | JB13: Colonne291 | JC13: Colonne292 | JD13: Colonne293 | JE13: Colonne294 | JF13: Colonne295 | JG13: Colonne296 | JH13: Colonne297 | JI13: Colonne298 | JJ13: Colonne299 | JK13: Colonne300 | JL13: Colonne301 | JM13: Colonne302 | JN13: Colonne303 | JO13: Colonne304 | JP13: Colonne305 | JQ13: Colonne306 | JR13: Colonne307 | JS13: Colonne308 | JT13: Colonne309 | JU13: Colonne310 | JV13: Colonne311 | JW13: Colonne312 | JX13: Colonne313 | JY13: Colonne314 | JZ13: Colonne315 | KA13: Colonne316 | KB13: Colonne317 | KC13: Colonne318 | KD13: Colonne319 | KE13: Colonne320 | KF13: Colonne321 | KG13: Colonne322 | KH13: Colonne323 | KI13: Colonne324 | KJ13: Colonne325 | KK13: Colonne326 | KL13: Colonne327 | KM13: Colonne328 | KN13: Colonne329 | KO13: Colonne330 | KP13: Colonne331 | KQ13: Colonne332 | KR13: Colonne333 | KS13: Colonne334 | KT13: Colonne335 | KU13: Colonne336 | KV13: Colonne337 | KW13: Colonne338 | KX13: Colonne339 | KY13: Colonne340 | KZ13: Colonne341 | LA13: Colonne342 | LB13: Colonne343 | LC13: Colonne344 | LD13: Colonne345 | LE13: Colonne346 | LF13: Colonne347 | LG13: Colonne348 | LH13: Colonne349 | LI13: Colonne350 | LJ13: Colonne351 | LK13: Colonne352 | LL13: Colonne353 | LM13: Colonne354 | LN13: Colonne355 | LO13: Colonne356 | LP13: Colonne357 | LQ13: Colonne358 | LR13: Colonne359 | LS13: Colonne360 | LT13: Colonne361 | LU13: Colonne362 | LV13: Colonne363 | LW13: Colonne364 | LX13: Colonne365 | LY13: Colonne366 | LZ13: Colonne367 | MA13: Colonne368 | MB13: Colonne369 | MC13: Colonne370 | MD13: Colonne371 | ME13: Colonne372 | MF13: Colonne373 | MG13: Colonne374 | MH13: Colonne375 | MI13: Colonne376 | MJ13: Colonne377 | MK13: Colonne378 | ML13: Colonne379 | MM13: Colonne380 | MN13: Colonne381 | MO13: Colonne382 | MP13: Colonne383 | MQ13: Colonne384 | MR13: Colonne385 | MS13: Colonne386 | MT13: Colonne387 | MU13: Colonne388 | MV13: Colonne389 | MW13: Colonne390 | MX13: Colonne391 | MY13: Colonne392 | MZ13: Colonne393 | NA13: Colonne394 | NB13: Colonne395 | NC13: Colonne396 | ND13: Colonne397 | NE13: Colonne398 | NF13: Colonne399 | NG13: Colonne400 | NH13: Colonne401 | NI13: Colonne402 | NJ13: Colonne403 | NK13: Colonne404 | NL13: Colonne405 | NM13: Colonne406 | NN13: Colonne407 | NO13: Colonne408 | NP13: Colonne409 | NQ13: Colonne410 | NR13: Colonne411 | NS13: Colonne412 | NT13: Colonne413 | NU13: Colonne414 | NV13: Colonne415 | NW13: Colonne416 | NX13: Colonne417 | NY13: Colonne418 | NZ13: Colonne419 | OA13: Colonne420 | OB13: Colonne421 | OC13: Colonne422 | OD13: Colonne423 | OE13: Colonne424 | OF13: Colonne425 | OG13: Colonne426 | OH13: Colonne427 | OI13: Colonne428 | OJ13: Colonne429 | OK13: Colonne430 | OL13: Colonne431 | OM13: Colonne432 | ON13: Colonne433 | OO13: Colonne434 | OP13: Colonne435 | OQ13: Colonne436 | OR13: Colonne437 | OS13: Colonne438 | OT13: Colonne439 | OU13: Colonne440 | OV13: Colonne441 | OW13: Colonne442 | OX13: Colonne443 | OY13: Colonne444 | OZ13: Colonne445 | PA13: Colonne446 | PB13: Colonne447 | PC13: Colonne448 | PD13: Colonne449 | PE13: Colonne450 | PF13: Colonne451 | PG13: Colonne452 | PH13: Colonne453 | PI13: Colonne454 | PJ13: Colonne455 | PK13: Colonne456 | PL13: Colonne457 | PM13: Colonne458 | PN13: Colonne459 | PO13: Colonne460
A14: SALARIE 1 | V14: MAL | W14: MAL | X14: MAL | Y14: MAL | Z14: MAL | AC14: MAL | AD14: MAL | AE14: MAL | AF14: MAL | AG14: MAL | AK14: MAL | AL14: MAL | AM14: MAL | AN14: MAL | AQ14: MAL | AR14: MAL | AS14: MAL | AT14: MAL | AU14: MAL | AX14: MAL | AY14: MAL | AZ14: MAL | BA14: MAL | BB14: MAL | BE14: MAL | BF14: MAL | BG14: MAL | BH14: MAL | BI14: MAL | BL14: MAL | BM14: MAL | BN14: MAL

Sheet HEURE SUP
A1: =DATE(Accueil!C1+2017,1,1) -> 2018-01-01
A7: DATE DE RECHERCHE | E7: =$E$8 -> 2017-12-01 | AJ7: JANVIER | BO7: FEVRIER | CQ7: MARS | DV7: AVRIL | EZ7: MAI | GE7: JUIN | HI7: JUILLET | IN7: AOUT | JS7: SEPTEMBRE | KW7: OCTOBRE | MB7: NOVEMBRE | NF7: DECEMBRE | OK7: =$OK$8 -> 2019-01-01
E8: =DATE(Accueil!C1+2017,1,1)-31 -> 2017-12-01 | F8: =E8+1 -> 2017-12-02 | G8: 2017-12-03 | H8: 2017-12-04 | I8: 2017-12-05 | J8: 2017-12-06 | K8: 2017-12-07 | L8: 2017-12-08 | M8: 2017-12-09 | N8: 2017-12-10 | O8: 2017-12-11 | P8: 2017-12-12 | Q8: 2017-12-13 | R8: 2017-12-14 | S8: 2017-12-15 | T8: 2017-12-16 | U8: 2017-12-17 | V8: 2017-12-18 | W8: 2017-12-19 | X8: 2017-12-20 | Y8: 2017-12-21 | Z8: 2017-12-22 | AA8: 2017-12-23 | AB8: 2017-12-24 | AC8: 2017-12-25 | AD8: 2017-12-26 | AE8: 2017-12-27 | AF8: 2017-12-28 | AG8: 2017-12-29 | AH8: 2017-12-30 | AI8: 2017-12-31 | AJ8: 2018-01-01 | AK8: 2018-01-02 | AL8: 2018-01-03 | AM8: 2018-01-04 | AN8: 2018-01-05 | AO8: 2018-01-06 | AP8: 2018-01-07 | AQ8: 2018-01-08 | AR8: 2018-01-09 | AS8: 2018-01-10 | AT8: 2018-01-11 | AU8: 2018-01-12 | AV8: 2018-01-13 | AW8: 2018-01-14 | AX8: 2018-01-15 | AY8: 2018-01-16 | AZ8: 2018-01-17 | BA8: 2018-01-18 | BB8: 2018-01-19 | BC8: 2018-01-20 | BD8: 2018-01-21 | BE8: 2018-01-22 | BF8: 2018-01-23 | BG8: 2018-01-24 | BH8: 2018-01-25 | BI8: 2018-01-26 | BJ8: 2018-01-27 | BK8: 2018-01-28 | BL8: 2018-01-29 | BM8: 2018-01-30 | BN8: 2018-01-31 | BO8: 2018-02-01 | BP8: 2018-02-02 | BQ8: 2018-02-03 | BR8: =BQ8+1 -> 2018-02-04 | BS8: 2018-02-05 | BT8: 2018-02-06 | BU8: 2018-02-07 | BV8: 2018-02-08 | BW8: 2018-02-09 | BX8: 2018-02-10 | BY8: 2018-02-11 | BZ8: 2018-02-12 | CA8: 2018-02-13 | CB8: 2018-02-14 | CC8: 2018-02-15 | CD8: 2018-02-16 | CE8: 2018-02-17 | CF8: 2018-02-18 | CG8: 2018-02-19 | CH8: =CG8+1 -> 2018-02-20 | CI8: 2018-02-21 | CJ8: 2018-02-22 | CK8: 2018-02-23 | CL8: 2018-02-24 | CM8: 2018-02-25 | CN8: 2018-02-26 | CO8: 2018-02-27 | CP8: 2018-02-28 | CQ8: 2018-03-01 | CR8: 2018-03-02 | CS8: 2018-03-03 | CT8: 2018-03-04 | CU8: 2018-03-05 | CV8: 2018-03-06 | CW8: 2018-03-07 | CX8: =CW8+1 -> 2018-03-08 | CY8: 2018-03-09 | CZ8: 2018-03-10 | DA8: 2018-03-11 | DB8: 2018-03-12 | DC8: 2018-03-13 | DD8: 2018-03-14 | DE8: 2018-03-15 | DF8: 2018-03-16 | DG8: 2018-03-17 | DH8: 2018-03-18 | DI8: 2018-03-19 | DJ8: 2018-03-20 | DK8: 2018-03-21 | DL8: 2018-03-22 | DM8: 2018-03-23 | DN8: =DM8+1 -> 2018-03-24 | DO8: 2018-03-25 | DP8: 2018-03-26 | DQ8: 2018-03-27 | DR8: 2018-03-28 | DS8: 2018-03-29 | DT8: 2018-03-30 | DU8: 2018-03-31 | DV8: 2018-04-01 | DW8: 2018-04-02 | DX8: 2018-04-03 | DY8: 2018-04-04 | DZ8: 2018-04-05 | EA8: 2018-04-06 | EB8: 2018-04-07 | EC8: 2018-04-08 | ED8: =EC8+1 -> 2018-04-09 | EE8: 2018-04-10 | EF8: 2018-04-11 | EG8: 2018-04-12 | EH8: 2018-04-13 | EI8: 2018-04-14 | EJ8: 2018-04-15 | EK8: 2018-04-16 | EL8: 2018-04-17 | EM8: 2018-04-18 | EN8: 2018-04-19 | EO8: 2018-04-20 | EP8: 2018-04-21 | EQ8: 2018-04-22 | ER8: 2018-04-23 | ES8: 2018-04-24 | ET8: =ES8+1 -> 2018-04-25 | EU8: 2018-04-26 | EV8: 2018-04-27 | EW8: 2018-04-28 | EX8: 2018-04-29 | EY8: 2018-04-30 | EZ8: 2018-05-01 | FA8: 2018-05-02 | FB8: 2018-05-03 | FC8: 2018-05-04 | FD8: 2018-05-05 | FE8: 2018-05-06 | FF8: 2018-05-07 | FG8: 2018-05-08 | FH8: 2018-05-09 | FI8: 2018-05-10 | FJ8: =FI8+1 -> 2018-05-11 | FK8: 2018-05-12 | FL8: 2018-05-13 | FM8: 2018-05-14 | FN8: 2018-05-15 | FO8: 2018-05-16 | FP8: 2018-05-17 | FQ8: 2018-05-18 | FR8: 2018-05-19 | FS8: 2018-05-20 | FT8: 2018-05-21 | FU8: 2018-05-22 | FV8: 2018-05-23 | FW8: 2018-05-24 | FX8: 2018-05-25 | FY8: 2018-05-26 | FZ8: =FY8+1 -> 2018-05-27 | GA8: 2018-05-28 | GB8: 2018-05-29 | GC8: 2018-05-30 | GD8: 2018-05-31 | GE8: 2018-06-01 | GF8: 2018-06-02 | GG8: 2018-06-03 | GH8: 2018-06-04 | GI8: 2018-06-05 | GJ8: 2018-06-06 | GK8: 2018-06-07 | GL8: 2018-06-08 | GM8: 2018-06-09 | GN8: 2018-06-10 | GO8: 2018-06-11 | GP8: =GO8+1 -> 2018-06-12 | GQ8: 2018-06-13 | GR8: 2018-06-14 | GS8: 2018-06-15 | GT8: 2018-06-16 | GU8: 2018-06-17 | GV8: 2018-06-18 | GW8: 2018-06-19 | GX8: 2018-06-20 | GY8: 2018-06-21 | GZ8: 2018-06-22 | HA8: 2018-06-23 | HB8: 2018-06-24 | HC8: 2018-06-25 | HD8: 2018-06-26 | HE8: 2018-06-27 | HF8: =HE8+1 -> 2018-06-28 | HG8: 2018-06-29 | HH8: 2018-06-30 | HI8: 2018-07-01 | HJ8: 2018-07-02 | HK8: 2018-07-03 | HL8: 2018-07-04 | HM8: 2018-07-05 | HN8: 2018-07-06 | HO8: 2018-07-07 | HP8: 2018-07-08 | HQ8: 2018-07-09 | HR8: 2018-07-10 | HS8: 2018-07-11 | HT8: 2018-07-12 | HU8: 2018-07-13 | HV8: =HU8+1 -> 2018-07-14 | HW8: 2018-07-15 | HX8: 2018-07-16 | HY8: 2018-07-17 | HZ8: 2018-07-18 | IA8: 2018-07-19 | IB8: 2018-07-20 | IC8: 2018-07-21 | ID8: 2018-07-22 | IE8: 2018-07-23 | IF8: 2018-07-24 | IG8: 2018-07-25 | IH8: 2018-07-26 | II8: 2018-07-27 | IJ8: 2018-07-28 | IK8: 2018-07-29 | IL8: =IK8+1 -> 2018-07-30 | IM8: 2018-07-31 | IN8: 2018-08-01 | IO8: 2018-08-02 | IP8: 2018-08-03 | IQ8: 2018-08-04 | IR8: 2018-08-05 | IS8: 2018-08-06 | IT8: 2018-08-07 | IU8: 2018-08-08 | IV8: 2018-08-09 | IW8: 2018-08-10 | IX8: 2018-08-11 | IY8: 2018-08-12 | IZ8: 2018-08-13 | JA8: 2018-08-14 | JB8: =JA8+1 -> 2018-08-15 | JC8: 2018-08-16 | JD8: 2018-08-17 | JE8: 2018-08-18 | JF8: 2018-08-19 | JG8: 2018-08-20 | JH8: 2018-08-21 | JI8: 2018-08-22 | JJ8: 2018-08-23 | JK8: 2018-08-24 | JL8: 2018-08-25 | JM8: 2018-08-26 | JN8: 2018-08-27 | JO8: 2018-08-28 | JP8: 2018-08-29 | JQ8: 2018-08-30 | JR8: =JQ8+1 -> 2018-08-31 | JS8: 2018-09-01 | JT8: 2018-09-02 | JU8: 2018-09-03 | JV8: 2018-09-04 | JW8: 2018-09-05 | JX8: 2018-09-06 | JY8: 2018-09-07 | JZ8: 2018-09-08 | KA8: 2018-09-09 | KB8: 2018-09-10 | KC8: 2018-09-11 | KD8: 2018-09-12 | KE8: 2018-09-13 | KF8: 2018-09-14 | KG8: 2018-09-15 | KH8: =KG8+1 -> 2018-09-16 | KI8: 2018-09-17 | KJ8: 2018-09-18 | KK8: 2018-09-19 | KL8: 2018-09-20 | KM8: 2018-09-21 | KN8: 2018-09-22 | KO8: 2018-09-23 | KP8: 2018-09-24 | KQ8: 2018-09-25 | KR8: 2018-09-26 | KS8: 2018-09-27 | KT8: 2018-09-28 | KU8: 2018-09-29 | KV8: 2018-09-30 | KW8: 2018-10-01 | KX8: =KW8+1 -> 2018-10-02 | KY8: 2018-10-03 | KZ8: 2018-10-04 | LA8: 2018-10-05 | LB8: 2018-10-06 | LC8: 2018-10-07 | LD8: 2018-10-08 | LE8: 2018-10-09 | LF8: 2018-10-10 | LG8: 2018-10-11 | LH8: 2018-10-12 | LI8: 2018-10-13 | LJ8: 2018-10-14 | LK8: 2018-10-15 | LL8: 2018-10-16 | LM8: 2018-10-17 | LN8: =LM8+1 -> 2018-10-18 | LO8: 2018-10-19 | LP8: 2018-10-20 | LQ8: 2018-10-21 | LR8: 2018-10-22 | LS8: 2018-10-23 | LT8: 2018-10-24 | LU8: 2018-10-25 | LV8: 2018-10-26 | LW8: 2018-10-27 | LX8: 2018-10-28 | LY8: 2018-10-29 | LZ8: 2018-10-30 | MA8: 2018-10-31 | MB8: 2018-11-01 | MC8: 2018-11-02 | MD8: =MC8+1 -> 2018-11-03 | ME8: 2018-11-04 | MF8: 2018-11-05 | MG8: 2018-11-06 | MH8: 2018-11-07 | MI8: 2018-11-08 | MJ8: 2018-11-09 | MK8: 2018-11-10 | ML8: 2018-11-11 | MM8: 2018-11-12 | MN8: 2018-11-13 | MO8: 2018-11-14 | MP8: 2018-11-15 | MQ8: 2018-11-16 | MR8: 2018-11-17 | MS8: 2018-11-18 | MT8: =MS8+1 -> 2018-11-19 | MU8: 2018-11-20 | MV8: 2018-11-21 | MW8: 2018-11-22 | MX8: 2018-11-23 | MY8: 2018-11-24 | MZ8: 2018-11-25 | NA8: 2018-11-26 | NB8: 2018-11-27 | NC8: 2018-11-28 | ND8: 2018-11-29 | NE8: 2018-11-30 | NF8: 2018-12-01 | NG8: 2018-12-02 | NH8: 2018-12-03 | NI8: 2018-12-04 | NJ8: =NI8+1 -> 2018-12-05 | NK8: 2018-12-06 | NL8: 2018-12-07 | NM8: 2018-12-08 | NN8: 2018-12-09 | NO8: 2018-12-10 | NP8: 2018-12-11 | NQ8: 2018-12-12 | NR8: 2018-12-13 | NS8: 2018-12-14 | NT8: 2018-12-15 | NU8: 2018-12-16 | NV8: 2018-12-17 | NW8: 2018-12-18 | NX8: 2018-12-19 | NY8: 2018-12-20 | NZ8: =NY8+1 -> 2018-12-21 | OA8: 2018-12-22 | OB8: 2018-12-23 | OC8: 2018-12-24 | OD8: 2018-12-25 | OE8: 2018-12-26 | OF8: 2018-12-27 | OG8: 2018-12-28 | OH8: 2018-12-29 | OI8: 2018-12-30 | OJ8: 2018-12-31 | OK8: 2019-01-01 | OL8: 2019-01-02 | OM8: 2019-01-03 | ON8: 2019-01-04 | OO8: 2019-01-05 | OP8: =OO8+1 -> 2019-01-06 | OQ8: 2019-01-07 | OR8: 2019-01-08 | OS8: 2019-01-09 | OT8: 2019-01-10 | OU8: 2019-01-11 | OV8: 2019-01-12 | OW8: 2019-01-13 | OX8: 2019-01-14 | OY8: 2019-01-15 | OZ8: 2019-01-16 | PA8: 2019-01-17 | PB8: 2019-01-18 | PC8: 2019-01-19 | PD8: 2019-01-20 | PE8: 2019-01-21 | PF8: =PE8+1 -> 2019-01-22 | PG8: 2019-01-23 | PH8: 2019-01-24 | PI8: 2019-01-25 | PJ8: 2019-01-26 | PK8: 2019-01-27 | PL8: 2019-01-28 | PM8: 2019-01-29 | PN8: 2019-01-30 | PO8: 2019-01-31
E9: =DATE(Accueil!C1+2017,1,1)-31 -> 2017-12-01 | F9: 2017-12-02 | G9: 2017-12-03 | H9: 2017-12-04 | I9: 2017-12-05 | J9: 2017-12-06 | K9: 2017-12-07 | L9: 2017-12-08 | M9: 2017-12-09 | N9: 2017-12-10 | O9: 2017-12-11 | P9: 2017-12-12 | Q9: 2017-12-13 | R9: 2017-12-14 | S9: 2017-12-15 | T9: 2017-12-16 | U9: 2017-12-17 | V9: 2017-12-18 | W9: 2017-12-19 | X9: 2017-12-20 | Y9: 2017-12-21 | Z9: 2017-12-22 | AA9: 2017-12-23 | AB9: 2017-12-24 | AC9: 2017-12-25 | AD9: 2017-12-26 | AE9: 2017-12-27 | AF9: 2017-12-28 | AG9: 2017-12-29 | AH9: 2017-12-30 | AI9: 2017-12-31 | AJ9: 2018-01-01 | AK9: 2018-01-02 | AL9: 2018-01-03 | AM9: 2018-01-04 | AN9: 2018-01-05 | AO9: 2018-01-06 | AP9: 2018-01-07 | AQ9: 2018-01-08 | AR9: 2018-01-09 | AS9: 2018-01-10 | AT9: 2018-01-11 | AU9: 2018-01-12 | AV9: 2018-01-13 | AW9: 2018-01-14 | AX9: 2018-01-15 | AY9: 2018-01-16 | AZ9: 2018-01-17 | BA9: 2018-01-18 | BB9: 2018-01-19 | BC9: 2018-01-20 | BD9: 2018-01-21 | BE9: 2018-01-22 | BF9: 2018-01-23 | BG9: 2018-01-24 | BH9: 2018-01-25 | BI9: 2018-01-26 | BJ9: 2018-01-27 | BK9: 2018-01-28 | BL9: 2018-01-29 | BM9: 2018-01-30 | BN9: 2018-01-31 | BO9: 2018-02-01 | BP9: 2018-02-02 | BQ9: 2018-02-03 | BR9: 2018-02-04 | BS9: 2018-02-05 | BT9: 2018-02-06 | BU9: 2018-02-07 | BV9: 2018-02-08 | BW9: 2018-02-09 | BX9: 2018-02-10 | BY9: 2018-02-11 | BZ9: 2018-02-12 | CA9: 2018-02-13 | CB9: 2018-02-14 | CC9: 2018-02-15 | CD9: 2018-02-16 | CE9: 2018-02-17 | CF9: 2018-02-18 | CG9: 2018-02-19 | CH9: 2018-02-20 | CI9: 2018-02-21 | CJ9: 2018-02-22 | CK9: 2018-02-23 | CL9: 2018-02-24 | CM9: 2018-02-25 | CN9: 2018-02-26 | CO9: 2018-02-27 | CP9: 2018-02-28 | CQ9: 2018-03-01 | CR9: 2018-03-02 | CS9: 2018-03-03 | CT9: 2018-03-04 | CU9: 2018-03-05 | CV9: 2018-03-06 | CW9: 2018-03-07 | CX9: 2018-03-08 | CY9: 2018-03-09 | CZ9: 2018-03-10 | DA9: 2018-03-11 | DB9: 2018-03-12 | DC9: 2018-03-13 | DD9: 2018-03-14 | DE9: 2018-03-15 | DF9: 2018-03-16 | DG9: 2018-03-17 | DH9: 2018-03-18 | DI9: 2018-03-19 | DJ9: 2018-03-20 | DK9: 2018-03-21 | DL9: 2018-03-22 | DM9: 2018-03-23 | DN9: 2018-03-24 | DO9: 2018-03-25 | DP9: 2018-03-26 | DQ9: 2018-03-27 | DR9: 2018-03-28 | DS9: 2018-03-29 | DT9: 2018-03-30 | DU9: 2018-03-31 | DV9: 2018-04-01 | DW9: 2018-04-02 | DX9: 2018-04-03 | DY9: 2018-04-04 | DZ9: 2018-04-05 | EA9: 2018-04-06 | EB9: 2018-04-07 | EC9: 2018-04-08 | ED9: 2018-04-09 | EE9: 2018-04-10 | EF9: 2018-04-11 | EG9: 2018-04-12 | EH9: 2018-04-13 | EI9: 2018-04-14 | EJ9: 2018-04-15 | EK9: 2018-04-16 | EL9: 2018-04-17 | EM9: 2018-04-18 | EN9: 2018-04-19 | EO9: 2018-04-20 | EP9: 2018-04-21 | EQ9: 2018-04-22 | ER9: 2018-04-23 | ES9: 2018-04-24 | ET9: 2018-04-25 | EU9: 2018-04-26 | EV9: 2018-04-27 | EW9: 2018-04-28 | EX9: 2018-04-29 | EY9: 2018-04-30 | EZ9: 2018-05-01 | FA9: 2018-05-02 | FB9: 2018-05-03 | FC9: 2018-05-04 | FD9: 2018-05-05 | FE9: 2018-05-06 | FF9: 2018-05-07 | FG9: 2018-05-08 | FH9: 2018-05-09 | FI9: 2018-05-10 | FJ9: 2018-05-11 | FK9: 2018-05-12 | FL9: 2018-05-13 | FM9: 2018-05-14 | FN9: 2018-05-15 | FO9: 2018-05-16 | FP9: 2018-05-17 | FQ9: 2018-05-18 | FR9: 2018-05-19 | FS9: 2018-05-20 | FT9: 2018-05-21 | FU9: 2018-05-22 | FV9: 2018-05-23 | FW9: 2018-05-24 | FX9: 2018-05-25 | FY9: 2018-05-26 | FZ9: 2018-05-27 | GA9: 2018-05-28 | GB9: 2018-05-29 | GC9: 2018-05-30 | GD9: 2018-05-31 | GE9: 2018-06-01 | GF9: 2018-06-02 | GG9: 2018-06-03 | GH9: 2018-06-04 | GI9: 2018-06-05 | GJ9: 2018-06-06 | GK9: 2018-06-07 | GL9: 2018-06-08 | GM9: 2018-06-09 | GN9: 2018-06-10 | GO9: 2018-06-11 | GP9: 2018-06-12 | GQ9: 2018-06-13 | GR9: 2018-06-14 | GS9: 2018-06-15 | GT9: 2018-06-16 | GU9: 2018-06-17 | GV9: 2018-06-18 | GW9: 2018-06-19 | GX9: 2018-06-20 | GY9: 2018-06-21 | GZ9: 2018-06-22 | HA9: 2018-06-23 | HB9: 2018-06-24 | HC9: 2018-06-25 | HD9: 2018-06-26 | HE9: 2018-06-27 | HF9: 2018-06-28 | HG9: 2018-06-29 | HH9: 2018-06-30 | HI9: 2018-07-01 | HJ9: 2018-07-02 | HK9: 2018-07-03 | HL9: 2018-07-04 | HM9: 2018-07-05 | HN9: 2018-07-06 | HO9: 2018-07-07 | HP9: 2018-07-08 | HQ9: 2018-07-09 | HR9: 2018-07-10 | HS9: 2018-07-11 | HT9: 2018-07-12 | HU9: 2018-07-13 | HV9: 2018-07-14 | HW9: 2018-07-15 | HX9: 2018-07-16 | HY9: 2018-07-17 | HZ9: 2018-07-18 | IA9: 2018-07-19 | IB9: 2018-07-20 | IC9: 2018-07-21 | ID9: 2018-07-22 | IE9: 2018-07-23 | IF9: 2018-07-24 | IG9: 2018-07-25 | IH9: 2018-07-26 | II9: 2018-07-27 | IJ9: 2018-07-28 | IK9: 2018-07-29 | IL9: 2018-07-30 | IM9: 2018-07-31 | IN9: 2018-08-01 | IO9: 2018-08-02 | IP9: 2018-08-03 | IQ9: 2018-08-04 | IR9: 2018-08-05 | IS9: 2018-08-06 | IT9: 2018-08-07 | IU9: 2018-08-08 | IV9: 2018-08-09 | IW9: 2018-08-10 | IX9: 2018-08-11 | IY9: 2018-08-12 | IZ9: 2018-08-13 | JA9: 2018-08-14 | JB9: 2018-08-15 | JC9: 2018-08-16 | JD9: 2018-08-17 | JE9: 2018-08-18 | JF9: 2018-08-19 | JG9: 2018-08-20 | JH9: 2018-08-21 | JI9: 2018-08-22 | JJ9: 2018-08-23 | JK9: 2018-08-24 | JL9: 2018-08-25 | JM9: 2018-08-26 | JN9: 2018-08-27 | JO9: 2018-08-28 | JP9: 2018-08-29 | JQ9: 2018-08-30 | JR9: 2018-08-31 | JS9: 2018-09-01 | JT9: 2018-09-02 | JU9: 2018-09-03 | JV9: 2018-09-04 | JW9: 2018-09-05 | JX9: 2018-09-06 | JY9: 2018-09-07 | JZ9: 2018-09-08 | KA9: 2018-09-09 | KB9: 2018-09-10 | KC9: 2018-09-11 | KD9: 2018-09-12 | KE9: 2018-09-13 | KF9: 2018-09-14 | KG9: 2018-09-15 | KH9: 2018-09-16 | KI9: 2018-09-17 | KJ9: 2018-09-18 | KK9: 2018-09-19 | KL9: 2018-09-20 | KM9: 2018-09-21 | KN9: 2018-09-22 | KO9: 2018-09-23 | KP9: 2018-09-24 | KQ9: 2018-09-25 | KR9: 2018-09-26 | KS9: 2018-09-27 | KT9: 2018-09-28 | KU9: 2018-09-29 | KV9: 2018-09-30 | KW9: 2018-10-01 | KX9: 2018-10-02 | KY9: 2018-10-03 | KZ9: 2018-10-04 | LA9: 2018-10-05 | LB9: 2018-10-06 | LC9: 2018-10-07 | LD9: 2018-10-08 | LE9: 2018-10-09 | LF9: 2018-10-10 | LG9: 2018-10-11 | LH9: 2018-10-12 | LI9: 2018-10-13 | LJ9: 2018-10-14 | LK9: 2018-10-15 | LL9: 2018-10-16 | LM9: 2018-10-17 | LN9: 2018-10-18 | LO9: 2018-10-19 | LP9: 2018-10-20 | LQ9: 2018-10-21 | LR9: 2018-10-22 | LS9: 2018-10-23 | LT9: 2018-10-24 | LU9: 2018-10-25 | LV9: 2018-10-26 | LW9: 2018-10-27 | LX9: 2018-10-28 | LY9: 2018-10-29 | LZ9: 2018-10-30 | MA9: 2018-10-31 | MB9: 2018-11-01 | MC9: 2018-11-02 | MD9: 2018-11-03 | ME9: 2018-11-04 | MF9: 2018-11-05 | MG9: 2018-11-06 | MH9: 2018-11-07 | MI9: 2018-11-08 | MJ9: 2018-11-09 | MK9: 2018-11-10 | ML9: 2018-11-11 | MM9: 2018-11-12 | MN9: 2018-11-13 | MO9: 2018-11-14 | MP9: 2018-11-15 | MQ9: 2018-11-16 | MR9: 2018-11-17 | MS9: 2018-11-18 | MT9: 2018-11-19 | MU9: 2018-11-20 | MV9: 2018-11-21 | MW9: 2018-11-22 | MX9: 2018-11-23 | MY9: 2018-11-24 | MZ9: 2018-11-25 | NA9: 2018-11-26 | NB9: 2018-11-27 | NC9: 2018-11-28 | ND9: 2018-11-29 | NE9: 2018-11-30 | NF9: 2018-12-01 | NG9: 2018-12-02 | NH9: 2018-12-03 | NI9: 2018-12-04 | NJ9: 2018-12-05 | NK9: 2018-12-06 | NL9: 2018-12-07 | NM9: 2018-12-08 | NN9: 2018-12-09 | NO9: 2018-12-10 | NP9: 2018-12-11 | NQ9: 2018-12-12 | NR9: 2018-12-13 | NS9: 2018-12-14 | NT9: 2018-12-15 | NU9: 2018-12-16 | NV9: 2018-12-17 | NW9: 2018-12-18 | NX9: 2018-12-19 | NY9: 2018-12-20 | NZ9: 2018-12-21 | OA9: 2018-12-22 | OB9: 2018-12-23 | OC9: 2018-12-24 | OD9: 2018-12-25 | OE9: 2018-12-26 | OF9: 2018-12-27 | OG9: 2018-12-28 | OH9: 2018-12-29 | OI9: 2018-12-30 | OJ9: 2018-12-31 | OK9: 2019-01-01 | OL9: 2019-01-02 | OM9: 2019-01-03 | ON9: 2019-01-04 | OO9: 2019-01-05 | OP9: 2019-01-06 | OQ9: 2019-01-07 | OR9: 2019-01-08 | OS9: 2019-01-09 | OT9: 2019-01-10 | OU9: 2019-01-11 | OV9: 2019-01-12 | OW9: 2019-01-13 | OX9: 2019-01-14 | OY9: 2019-01-15 | OZ9: 2019-01-16 | PA9: 2019-01-17 | PB9: 2019-01-18 | PC9: 2019-01-19 | PD9: 2019-01-20 | PE9: 2019-01-21 | PF9: 2019-01-22 | PG9: 2019-01-23 | PH9: 2019-01-24 | PI9: 2019-01-25 | PJ9: 2019-01-26 | PK9: 2019-01-27 | PL9: 2019-01-28 | PM9: 2019-01-29 | PN9: 2019-01-30 | PO9: 2019-01-31
A10: NOM & PRENOM | B10: SERVICE | C10: ENTREE | D10: SORTIE | E10: Colonne1 | F10: Colonne3 | G10: Colonne5 | H10: Colonne7 | I10: Colonne9 | J10: Colonne11 | K10: Colonne13 | L10: Colonne15 | M10: Colonne17 | N10: Colonne19 | O10: Colonne21 | P10: Colonne23 | Q10: Colonne25 | R10: Colonne27 | S10: Colonne29 | T10: Colonne31 | U10: Colonne33 | V10: Colonne35 | W10: Colonne37 | X10: Colonne39 | Y10: Colonne41 | Z10: Colonne43 | AA10: Colonne45 | AB10: Colonne47 | AC10: Colonne49 | AD10: Colonne51 | AE10: Colonne53 | AF10: Colonne55 | AG10: Colonne57 | AH10: Colonne59 | AI10: Colonne61 | AJ10: Colonne63 | AK10: Colonne66 | AL10: Colonne67 | AM10: Colonne68 | AN10: Colonne69 | AO10: Colonne70 | AP10: Colonne71 | AQ10: Colonne72 | AR10: Colonne73 | AS10: Colonne74 | AT10: Colonne75 | AU10: Colonne76 | AV10: Colonne77 | AW10: Colonne78 | AX10: Colonne79 | AY10: Colonne80 | AZ10: Colonne81 | BA10: Colonne82 | BB10: Colonne83 | BC10: Colonne84 | BD10: Colonne85 | BE10: Colonne86 | BF10: Colonne87 | BG10: Colonne88 | BH10: Colonne89 | BI10: Colonne90 | BJ10: Colonne91 | BK10: Colonne92 | BL10: Colonne93 | BM10: Colonne94 | BN10: Colonne95 | BO10: Colonne96 | BP10: Colonne97 | BQ10: Colonne98 | BR10: Colonne99 | BS10: Colonne100 | BT10: Colonne101 | BU10: Colonne102 | BV10: Colonne103 | BW10: Colonne104 | BX10: Colonne105 | BY10: Colonne106 | BZ10: Colonne107 | CA10: Colonne108 | CB10: Colonne109 | CC10: Colonne110 | CD10: Colonne111 | CE10: Colonne112 | CF10: Colonne113 | CG10: Colonne114 | CH10: Colonne115 | CI10: Colonne116 | CJ10: Colonne117 | CK10: Colonne118 | CL10: Colonne119 | CM10: Colonne120 | CN10: Colonne121 | CO10: Colonne122 | CP10: Colonne123 | CQ10: Colonne124 | CR10: Colonne125 | CS10: Colonne126 | CT10: Colonne127 | CU10: Colonne128 | CV10: Colonne129 | CW10: Colonne130 | CX10: Colonne131 | CY10: Colonne132 | CZ10: Colonne133 | DA10: Colonne134 | DB10: Colonne135 | DC10: Colonne136 | DD10: Colonne137 | DE10: Colonne138 | DF10: Colonne139 | DG10: Colonne140 | DH10: Colonne141 | DI10: Colonne142 | DJ10: Colonne143 | DK10: Colonne144 | DL10: Colonne145 | DM10: Colonne146 | DN10: Colonne147 | DO10: Colonne148 | DP10: Colonne149 | DQ10: Colonne150 | DR10: Colonne151 | DS10: Colonne152 | DT10: Colonne153 | DU10: Colonne154 | DV10: Colonne155 | DW10: Colonne156 | DX10: Colonne157 | DY10: Colonne158 | DZ10: Colonne159 | EA10: Colonne160 | EB10: Colonne161 | EC10: Colonne162 | ED10: Colonne163 | EE10: Colonne164 | EF10: Colonne165 | EG10: Colonne166 | EH10: Colonne167 | EI10: Colonne168 | EJ10: Colonne169 | EK10: Colonne170 | EL10: Colonne171 | EM10: Colonne172 | EN10: Colonne173 | EO10: Colonne174 | EP10: Colonne175 | EQ10: Colonne176 | ER10: Colonne177 | ES10: Colonne178 | ET10: Colonne179 | EU10: Colonne180 | EV10: Colonne181 | EW10: Colonne182 | EX10: Colonne183 | EY10: Colonne184 | EZ10: Colonne185 | FA10: Colonne186 | FB10: Colonne187 | FC10: Colonne188 | FD10: Colonne189 | FE10: Colonne190 | FF10: Colonne191 | FG10: Colonne192 | FH10: Colonne193 | FI10: Colonne194 | FJ10: Colonne195 | FK10: Colonne196 | FL10: Colonne197 | FM10: Colonne198 | FN10: Colonne199 | FO10: Colonne200 | FP10: Colonne201 | FQ10: Colonne202 | FR10: Colonne203 | FS10: Colonne204 | FT10: Colonne205 | FU10: Colonne206 | FV10: Colonne207 | FW10: Colonne208 | FX10: Colonne209 | FY10: Colonne210 | FZ10: Colonne211 | GA10: Colonne212 | GB10: Colonne213 | GC10: Colonne214 | GD10: Colonne215 | GE10: Colonne216 | GF10: Colonne217 | GG10: Colonne218 | GH10: Colonne219 | GI10: Colonne220 | GJ10: Colonne221 | GK10: Colonne222 | GL10: Colonne223 | GM10: Colonne224 | GN10: Colonne225 | GO10: Colonne226 | GP10: Colonne227 | GQ10: Colonne228 | GR10: Colonne229 | GS10: Colonne230 | GT10: Colonne231 | GU10: Colonne232 | GV10: Colonne233 | GW10: Colonne234 | GX10: Colonne235 | GY10: Colonne236 | GZ10: Colonne237 | HA10: Colonne238 | HB10: Colonne239 | HC10: Colonne240 | HD10: Colonne241 | HE10: Colonne242 | HF10: Colonne243 | HG10: Colonne244 | HH10: Colonne245 | HI10: Colonne246 | HJ10: Colonne247 | HK10: Colonne248 | HL10: Colonne249 | HM10: Colonne250 | HN10: Colonne251 | HO10: Colonne252 | HP10: Colonne253 | HQ10: Colonne254 | HR10: Colonne255 | HS10: Colonne256 | HT10: Colonne257 | HU10: Colonne258 | HV10: Colonne259 | HW10: Colonne260 | HX10: Colonne261 | HY10: Colonne262 | HZ10: Colonne263 | IA10: Colonne264 | IB10: Colonne265 | IC10: Colonne266 | ID10: Colonne267 | IE10: Colonne268 | IF10: Colonne269 | IG10: Colonne270 | IH10: Colonne271 | II10: Colonne272 | IJ10: Colonne273 | IK10: Colonne274 | IL10: Colonne275 | IM10: Colonne276 | IN10: Colonne277 | IO10: Colonne278 | IP10: Colonne279 | IQ10: Colonne280 | IR10: Colonne281 | IS10: Colonne282 | IT10: Colonne283 | IU10: Colonne284 | IV10: Colonne285 | IW10: Colonne286 | IX10: Colonne287 | IY10: Colonne288 | IZ10: Colonne289 | JA10: Colonne290 | JB10: Colonne291 | JC10: Colonne292 | JD10: Colonne293 | JE10: Colonne294 | JF10: Colonne295 | JG10: Colonne296 | JH10: Colonne297 | JI10: Colonne298 | JJ10: Colonne299 | JK10: Colonne300 | JL10: Colonne301 | JM10: Colonne302 | JN10: Colonne303 | JO10: Colonne304 | JP10: Colonne305 | JQ10: Colonne306 | JR10: Colonne307 | JS10: Colonne308 | JT10: Colonne309 | JU10: Colonne310 | JV10: Colonne311 | JW10: Colonne312 | JX10: Colonne313 | JY10: Colonne314 | JZ10: Colonne315 | KA10: Colonne316 | KB10: Colonne317 | KC10: Colonne318 | KD10: Colonne319 | KE10: Colonne320 | KF10: Colonne321 | KG10: Colonne322 | KH10: Colonne323 | KI10: Colonne324 | KJ10: Colonne325 | KK10: Colonne326 | KL10: Colonne327 | KM10: Colonne328 | KN10: Colonne329 | KO10: Colonne330 | KP10: Colonne331 | KQ10: Colonne332 | KR10: Colonne333 | KS10: Colonne334 | KT10: Colonne335 | KU10: Colonne336 | KV10: Colonne337 | KW10: Colonne338 | KX10: Colonne339 | KY10: Colonne340 | KZ10: Colonne341 | LA10: Colonne342 | LB10: Colonne343 | LC10: Colonne344 | LD10: Colonne345 | LE10: Colonne346 | LF10: Colonne347 | LG10: Colonne348 | LH10: Colonne349 | LI10: Colonne350 | LJ10: Colonne351 | LK10: Colonne352 | LL10: Colonne353 | LM10: Colonne354 | LN10: Colonne355 | LO10: Colonne356 | LP10: Colonne357 | LQ10: Colonne358 | LR10: Colonne359 | LS10: Colonne360 | LT10: Colonne361 | LU10: Colonne362 | LV10: Colonne363 | LW10: Colonne364 | LX10: Colonne365 | LY10: Colonne366 | LZ10: Colonne367 | MA10: Colonne368 | MB10: Colonne369 | MC10: Colonne370 | MD10: Colonne371 | ME10: Colonne372 | MF10: Colonne373 | MG10: Colonne374 | MH10: Colonne375 | MI10: Colonne376 | MJ10: Colonne377 | MK10: Colonne378 | ML10: Colonne379 | MM10: Colonne380 | MN10: Colonne381 | MO10: Colonne382 | MP10: Colonne383 | MQ10: Colonne384 | MR10: Colonne385 | MS10: Colonne386 | MT10: Colonne387 | MU10: Colonne388 | MV10: Colonne389 | MW10: Colonne390 | MX10: Colonne391 | MY10: Colonne392 | MZ10: Colonne393 | NA10: Colonne394 | NB10: Colonne395 | NC10: Colonne396 | ND10: Colonne397 | NE10: Colonne398 | NF10: Colonne399 | NG10: Colonne400 | NH10: Colonne401 | NI10: Colonne402 | NJ10: Colonne403 | NK10: Colonne404 | NL10: Colonne405 | NM10: Colonne406 | NN10: Colonne407 | NO10: Colonne408 | NP10: Colonne409 | NQ10: Colonne410 | NR10: Colonne411 | NS10: Colonne412 | NT10: Colonne413 | NU10: Colonne414 | NV10: Colonne415 | NW10: Colonne416 | NX10: Colonne417 | NY10: Colonne418 | NZ10: Colonne419 | OA10: Colonne420 | OB10: Colonne421 | OC10: Colonne422 | OD10: Colonne423 | OE10: Colonne424 | OF10: Colonne425 | OG10: Colonne426 | OH10: Colonne427 | OI10: Colonne428 | OJ10: Colonne429 | OK10: Colonne430 | OL10: Colonne431 | OM10: Colonne432 | ON10: Colonne433 | OO10: Colonne434 | OP10: Colonne435 | OQ10: Colonne436 | OR10: Colonne437 | OS10: Colonne438 | OT10: Colonne439 | OU10: Colonne440 | OV10: Colonne441 | OW10: Colonne442 | OX10: Colonne443 | OY10: Colonne444 | OZ10: Colonne445 | PA10: Colonne446 | PB10: Colonne447 | PC10: Colonne448 | PD10: Colonne449 | PE10: Colonne450 | PF10: Colonne451 | PG10: Colonne452 | PH10: Colonne453 | PI10: Colonne454 | PJ10: Colonne455 | PK10: Colonne456 | PL10: Colonne457 | PM10: Colonne458 | PN10: Colonne459 | PO10: Colonne460

Sheet PRIME
A1: =DATE(Accueil!C1+2017,1,1) -> 2018-01-01
A7: DATE DE RECHERCHE | E7: =$E$8 -> 2017-12-01 | AJ7: JANVIER | BO7: FEVRIER | CQ7: MARS | DV7: AVRIL | EZ7: MAI | GE7: JUIN | HI7: JUILLET | IN7: AOUT | JS7: SEPTEMBRE | KW7: OCTOBRE | MB7: NOVEMBRE | NF7: DECEMBRE | OK7: =$OK$8 -> 2019-01-01
E8: =DATE(Accueil!C1+2017,1,1)-31 -> 2017-12-01 | F8: =E8+1 -> 2017-12-02 | G8: 2017-12-03 | H8: 2017-12-04 | I8: 2017-12-05 | J8: 2017-12-06 | K8: 2017-12-07 | L8: 2017-12-08 | M8: 2017-12-09 | N8: 2017-12-10 | O8: 2017-12-11 | P8: 2017-12-12 | Q8: 2017-12-13 | R8: 2017-12-14 | S8: 2017-12-15 | T8: 2017-12-16 | U8: 2017-12-17 | V8: 2017-12-18 | W8: 2017-12-19 | X8: 2017-12-20 | Y8: 2017-12-21 | Z8: 2017-12-22 | AA8: 2017-12-23 | AB8: 2017-12-24 | AC8: 2017-12-25 | AD8: 2017-12-26 | AE8: 2017-12-27 | AF8: 2017-12-28 | AG8: 2017-12-29 | AH8: 2017-12-30 | AI8: 2017-12-31 | AJ8: 2018-01-01 | AK8: 2018-01-02 | AL8: 2018-01-03 | AM8: 2018-01-04 | AN8: 2018-01-05 | AO8: 2018-01-06 | AP8: 2018-01-07 | AQ8: 2018-01-08 | AR8: 2018-01-09 | AS8: 2018-01-10 | AT8: 2018-01-11 | AU8: 2018-01-12 | AV8: 2018-01-13 | AW8: 2018-01-14 | AX8: 2018-01-15 | AY8: 2018-01-16 | AZ8: 2018-01-17 | BA8: 2018-01-18 | BB8: 2018-01-19 | BC8: 2018-01-20 | BD8: 2018-01-21 | BE8: 2018-01-22 | BF8: 2018-01-23 | BG8: 2018-01-24 | BH8: 2018-01-25 | BI8: 2018-01-26 | BJ8: 2018-01-27 | BK8: 2018-01-28 | BL8: 2018-01-29 | BM8: 2018-01-30 | BN8: 2018-01-31 | BO8: 2018-02-01 | BP8: 2018-02-02 | BQ8: 2018-02-03 | BR8: =BQ8+1 -> 2018-02-04 | BS8: 2018-02-05 | BT8: 2018-02-06 | BU8: 2018-02-07 | BV8: 2018-02-08 | BW8: 2018-02-09 | BX8: 2018-02-10 | BY8: 2018-02-11 | BZ8: 2018-02-12 | CA8: 2018-02-13 | CB8: 2018-02-14 | CC8: 2018-02-15 | CD8: 2018-02-16 | CE8: 2018-02-17 | CF8: 2018-02-18 | CG8: 2018-02-19 | CH8: =CG8+1 -> 2018-02-20 | CI8: 2018-02-21 | CJ8: 2018-02-22 | CK8: 2018-02-23 | CL8: 2018-02-24 | CM8: 2018-02-25 | CN8: 2018-02-26 | CO8: 2018-02-27 | CP8: 2018-02-28 | CQ8: 2018-03-01 | CR8: 2018-03-02 | CS8: 2018-03-03 | CT8: 2018-03-04 | CU8: 2018-03-05 | CV8: 2018-03-06 | CW8: 2018-03-07 | CX8: =CW8+1 -> 2018-03-08 | CY8: 2018-03-09 | CZ8: 2018-03-10 | DA8: 2018-03-11 | DB8: 2018-03-12 | DC8: 2018-03-13 | DD8: 2018-03-14 | DE8: 2018-03-15 | DF8: 2018-03-16 | DG8: 2018-03-17 | DH8: 2018-03-18 | DI8: 2018-03-19 | DJ8: 2018-03-20 | DK8: 2018-03-21 | DL8: 2018-03-22 | DM8: 2018-03-23 | DN8: =DM8+1 -> 2018-03-24 | DO8: 2018-03-25 | DP8: 2018-03-26 | DQ8: 2018-03-27 | DR8: 2018-03-28 | DS8: 2018-03-29 | DT8: 2018-03-30 | DU8: 2018-03-31 | DV8: 2018-04-01 | DW8: 2018-04-02 | DX8: 2018-04-03 | DY8: 2018-04-04 | DZ8: 2018-04-05 | EA8: 2018-04-06 | EB8: 2018-04-07 | EC8: 2018-04-08 | ED8: =EC8+1 -> 2018-04-09 | EE8: 2018-04-10 | EF8: 2018-04-11 | EG8: 2018-04-12 | EH8: 2018-04-13 | EI8: 2018-04-14 | EJ8: 2018-04-15 | EK8: 2018-04-16 | EL8: 2018-04-17 | EM8: 2018-04-18 | EN8: 2018-04-19 | EO8: 2018-04-20 | EP8: 2018-04-21 | EQ8: 2018-04-22 | ER8: 2018-04-23 | ES8: 2018-04-24 | ET8: =ES8+1 -> 2018-04-25 | EU8: 2018-04-26 | EV8: 2018-04-27 | EW8: 2018-04-28 | EX8: 2018-04-29 | EY8: 2018-04-30 | EZ8: 2018-05-01 | FA8: 2018-05-02 | FB8: 2018-05-03 | FC8: 2018-05-04 | FD8: 2018-05-05 | FE8: 2018-05-06 | FF8: 2018-05-07 | FG8: 2018-05-08 | FH8: 2018-05-09 | FI8: 2018-05-10 | FJ8: =FI8+1 -> 2018-05-11 | FK8: 2018-05-12 | FL8: 2018-05-13 | FM8: 2018-05-14 | FN8: 2018-05-15 | FO8: 2018-05-16 | FP8: 2018-05-17 | FQ8: 2018-05-18 | FR8: 2018-05-19 | FS8: 2018-05-20 | FT8: 2018-05-21 | FU8: 2018-05-22 | FV8: 2018-05-23 | FW8: 2018-05-24 | FX8: 2018-05-25 | FY8: 2018-05-26 | FZ8: =FY8+1 -> 2018-05-27 | GA8: 2018-05-28 | GB8: 2018-05-29 | GC8: 2018-05-30 | GD8: 2018-05-31 | GE8: 2018-06-01 | GF8: 2018-06-02 | GG8: 2018-06-03 | GH8: 2018-06-04 | GI8: 2018-06-05 | GJ8: 2018-06-06 | GK8: 2018-06-07 | GL8: 2018-06-08 | GM8: 2018-06-09 | GN8: 2018-06-10 | GO8: 2018-06-11 | GP8: =GO8+1 -> 2018-06-12 | GQ8: 2018-06-13 | GR8: 2018-06-14 | GS8: 2018-06-15 | GT8: 2018-06-16 | GU8: 2018-06-17 | GV8: 2018-06-18 | GW8: 2018-06-19 | GX8: 2018-06-20 | GY8: 2018-06-21 | GZ8: 2018-06-22 | HA8: 2018-06-23 | HB8: 2018-06-24 | HC8: 2018-06-25 | HD8: 2018-06-26 | HE8: 2018-06-27 | HF8: =HE8+1 -> 2018-06-28 | HG8: 2018-06-29 | HH8: 2018-06-30 | HI8: 2018-07-01 | HJ8: 2018-07-02 | HK8: 2018-07-03 | HL8: 2018-07-04 | HM8: 2018-07-05 | HN8: 2018-07-06 | HO8: 2018-07-07 | HP8: 2018-07-08 | HQ8: 2018-07-09 | HR8: 2018-07-10 | HS8: 2018-07-11 | HT8: 2018-07-12 | HU8: 2018-07-13 | HV8: =HU8+1 -> 2018-07-14 | HW8: 2018-07-15 | HX8: 2018-07-16 | HY8: 2018-07-17 | HZ8: 2018-07-18 | IA8: 2018-07-19 | IB8: 2018-07-20 | IC8: 2018-07-21 | ID8: 2018-07-22 | IE8: 2018-07-23 | IF8: 2018-07-24 | IG8: 2018-07-25 | IH8: 2018-07-26 | II8: 2018-07-27 | IJ8: 2018-07-28 | IK8: 2018-07-29 | IL8: =IK8+1 -> 2018-07-30 | IM8: 2018-07-31 | IN8: 2018-08-01 | IO8: 2018-08-02 | IP8: 2018-08-03 | IQ8: 2018-08-04 | IR8: 2018-08-05 | IS8: 2018-08-06 | IT8: 2018-08-07 | IU8: 2018-08-08 | IV8: 2018-08-09 | IW8: 2018-08-10 | IX8: 2018-08-11 | IY8: 2018-08-12 | IZ8: 2018-08-13 | JA8: 2018-08-14 | JB8: =JA8+1 -> 2018-08-15 | JC8: 2018-08-16 | JD8: 2018-08-17 | JE8: 2018-08-18 | JF8: 2018-08-19 | JG8: 2018-08-20 | JH8: 2018-08-21 | JI8: 2018-08-22 | JJ8: 2018-08-23 | JK8: 2018-08-24 | JL8: 2018-08-25 | JM8: 2018-08-26 | JN8: 2018-08-27 | JO8: 2018-08-28 | JP8: 2018-08-29 | JQ8: 2018-08-30 | JR8: =JQ8+1 -> 2018-08-31 | JS8: 2018-09-01 | JT8: 2018-09-02 | JU8: 2018-09-03 | JV8: 2018-09-04 | JW8: 2018-09-05 | JX8: 2018-09-06 | JY8: 2018-09-07 | JZ8: 2018-09-08 | KA8: 2018-09-09 | KB8: 2018-09-10 | KC8: 2018-09-11 | KD8: 2018-09-12 | KE8: 2018-09-13 | KF8: 2018-09-14 | KG8: 2018-09-15 | KH8: =KG8+1 -> 2018-09-16 | KI8: 2018-09-17 | KJ8: 2018-09-18 | KK8: 2018-09-19 | KL8: 2018-09-20 | KM8: 2018-09-21 | KN8: 2018-09-22 | KO8: 2018-09-23 | KP8: 2018-09-24 | KQ8: 2018-09-25 | KR8: 2018-09-26 | KS8: 2018-09-27 | KT8: 2018-09-28 | KU8: 2018-09-29 | KV8: 2018-09-30 | KW8: 2018-10-01 | KX8: =KW8+1 -> 2018-10-02 | KY8: 2018-10-03 | KZ8: 2018-10-04 | LA8: 2018-10-05 | LB8: 2018-10-06 | LC8: 2018-10-07 | LD8: 2018-10-08 | LE8: 2018-10-09 | LF8: 2018-10-10 | LG8: 2018-10-11 | LH8: 2018-10-12 | LI8: 2018-10-13 | LJ8: 2018-10-14 | LK8: 2018-10-15 | LL8: 2018-10-16 | LM8: 2018-10-17 | LN8: =LM8+1 -> 2018-10-18 | LO8: 2018-10-19 | LP8: 2018-10-20 | LQ8: 2018-10-21 | LR8: 2018-10-22 | LS8: 2018-10-23 | LT8: 2018-10-24 | LU8: 2018-10-25 | LV8: 2018-10-26 | LW8: 2018-10-27 | LX8: 2018-10-28 | LY8: 2018-10-29 | LZ8: 2018-10-30 | MA8: 2018-10-31 | MB8: 2018-11-01 | MC8: 2018-11-02 | MD8: =MC8+1 -> 2018-11-03 | ME8: 2018-11-04 | MF8: 2018-11-05 | MG8: 2018-11-06 | MH8: 2018-11-07 | MI8: 2018-11-08 | MJ8: 2018-11-09 | MK8: 2018-11-10 | ML8: 2018-11-11 | MM8: 2018-11-12 | MN8: 2018-11-13 | MO8: 2018-11-14 | MP8: 2018-11-15 | MQ8: 2018-11-16 | MR8: 2018-11-17 | MS8: 2018-11-18 | MT8: =MS8+1 -> 2018-11-19 | MU8: 2018-11-20 | MV8: 2018-11-21 | MW8: 2018-11-22 | MX8: 2018-11-23 | MY8: 2018-11-24 | MZ8: 2018-11-25 | NA8: 2018-11-26 | NB8: 2018-11-27 | NC8: 2018-11-28 | ND8: 2018-11-29 | NE8: 2018-11-30 | NF8: 2018-12-01 | NG8: 2018-12-02 | NH8: 2018-12-03 | NI8: 2018-12-04 | NJ8: =NI8+1 -> 2018-12-05 | NK8: 2018-12-06 | NL8: 2018-12-07 | NM8: 2018-12-08 | NN8: 2018-12-09 | NO8: 2018-12-10 | NP8: 2018-12-11 | NQ8: 2018-12-12 | NR8: 2018-12-13 | NS8: 2018-12-14 | NT8: 2018-12-15 | NU8: 2018-12-16 | NV8: 2018-12-17 | NW8: 2018-12-18 | NX8: 2018-12-19 | NY8: 2018-12-20 | NZ8: =NY8+1 -> 2018-12-21 | OA8: 2018-12-22 | OB8: 2018-12-23 | OC8: 2018-12-24 | OD8: 2018-12-25 | OE8: 2018-12-26 | OF8: 2018-12-27 | OG8: 2018-12-28 | OH8: 2018-12-29 | OI8: 2018-12-30 | OJ8: 2018-12-31 | OK8: 2019-01-01 | OL8: 2019-01-02 | OM8: 2019-01-03 | ON8: 2019-01-04 | OO8: 2019-01-05 | OP8: =OO8+1 -> 2019-01-06 | OQ8: 2019-01-07 | OR8: 2019-01-08 | OS8: 2019-01-09 | OT8: 2019-01-10 | OU8: 2019-01-11 | OV8: 2019-01-12 | OW8: 2019-01-13 | OX8: 2019-01-14 | OY8: 2019-01-15 | OZ8: 2019-01-16 | PA8: 2019-01-17 | PB8: 2019-01-18 | PC8: 2019-01-19 | PD8: 2019-01-20 | PE8: 2019-01-21 | PF8: =PE8+1 -> 2019-01-22 | PG8: 2019-01-23 | PH8: 2019-01-24 | PI8: 2019-01-25 | PJ8: 2019-01-26 | PK8: 2019-01-27 | PL8: 2019-01-28 | PM8: 2019-01-29 | PN8: 2019-01-30 | PO8: 2019-01-31
E9: =DATE(Accueil!C1+2017,1,1)-31 -> 2017-12-01 | F9: 2017-12-02 | G9: 2017-12-03 | H9: 2017-12-04 | I9: 2017-12-05 | J9: 2017-12-06 | K9: 2017-12-07 | L9: 2017-12-08 | M9: 2017-12-09 | N9: 2017-12-10 | O9: 2017-12-11 | P9: 2017-12-12 | Q9: 2017-12-13 | R9: 2017-12-14 | S9: 2017-12-15 | T9: 2017-12-16 | U9: 2017-12-17 | V9: 2017-12-18 | W9: 2017-12-19 | X9: 2017-12-20 | Y9: 2017-12-21 | Z9: 2017-12-22 | AA9: 2017-12-23 | AB9: 2017-12-24 | AC9: 2017-12-25 | AD9: 2017-12-26 | AE9: 2017-12-27 | AF9: 2017-12-28 | AG9: 2017-12-29 | AH9: 2017-12-30 | AI9: 2017-12-31 | AJ9: 2018-01-01 | AK9: 2018-01-02 | AL9: 2018-01-03 | AM9: 2018-01-04 | AN9: 2018-01-05 | AO9: 2018-01-06 | AP9: 2018-01-07 | AQ9: 2018-01-08 | AR9: 2018-01-09 | AS9: 2018-01-10 | AT9: 2018-01-11 | AU9: 2018-01-12 | AV9: 2018-01-13 | AW9: 2018-01-14 | AX9: 2018-01-15 | AY9: 2018-01-16 | AZ9: 2018-01-17 | BA9: 2018-01-18 | BB9: 2018-01-19 | BC9: 2018-01-20 | BD9: 2018-01-21 | BE9: 2018-01-22 | BF9: 2018-01-23 | BG9: 2018-01-24 | BH9: 2018-01-25 | BI9: 2018-01-26 | BJ9: 2018-01-27 | BK9: 2018-01-28 | BL9: 2018-01-29 | BM9: 2018-01-30 | BN9: 2018-01-31 | BO9: 2018-02-01 | BP9: 2018-02-02 | BQ9: 2018-02-03 | BR9: 2018-02-04 | BS9: 2018-02-05 | BT9: 2018-02-06 | BU9: 2018-02-07 | BV9: 2018-02-08 | BW9: 2018-02-09 | BX9: 2018-02-10 | BY9: 2018-02-11 | BZ9: 2018-02-12 | CA9: 2018-02-13 | CB9: 2018-02-14 | CC9: 2018-02-15 | CD9: 2018-02-16 | CE9: 2018-02-17 | CF9: 2018-02-18 | CG9: 2018-02-19 | CH9: 2018-02-20 | CI9: 2018-02-21 | CJ9: 2018-02-22 | CK9: 2018-02-23 | CL9: 2018-02-24 | CM9: 2018-02-25 | CN9: 2018-02-26 | CO9: 2018-02-27 | CP9: 2018-02-28 | CQ9: 2018-03-01 | CR9: 2018-03-02 | CS9: 2018-03-03 | CT9: 2018-03-04 | CU9: 2018-03-05 | CV9: 2018-03-06 | CW9: 2018-03-07 | CX9: 2018-03-08 | CY9: 2018-03-09 | CZ9: 2018-03-10 | DA9: 2018-03-11 | DB9: 2018-03-12 | DC9: 2018-03-13 | DD9: 2018-03-14 | DE9: 2018-03-15 | DF9: 2018-03-16 | DG9: 2018-03-17 | DH9: 2018-03-18 | DI9: 2018-03-19 | DJ9: 2018-03-20 | DK9: 2018-03-21 | DL9: 2018-03-22 | DM9: 2018-03-23 | DN9: 2018-03-24 | DO9: 2018-03-25 | DP9: 2018-03-26 | DQ9: 2018-03-27 | DR9: 2018-03-28 | DS9: 2018-03-29 | DT9: 2018-03-30 | DU9: 2018-03-31 | DV9: 2018-04-01 | DW9: 2018-04-02 | DX9: 2018-04-03 | DY9: 2018-04-04 | DZ9: 2018-04-05 | EA9: 2018-04-06 | EB9: 2018-04-07 | EC9: 2018-04-08 | ED9: 2018-04-09 | EE9: 2018-04-10 | EF9: 2018-04-11 | EG9: 2018-04-12 | EH9: 2018-04-13 | EI9: 2018-04-14 | EJ9: 2018-04-15 | EK9: 2018-04-16 | EL9: 2018-04-17 | EM9: 2018-04-18 | EN9: 2018-04-19 | EO9: 2018-04-20 | EP9: 2018-04-21 | EQ9: 2018-04-22 | ER9: 2018-04-23 | ES9: 2018-04-24 | ET9: 2018-04-25 | EU9: 2018-04-26 | EV9: 2018-04-27 | EW9: 2018-04-28 | EX9: 2018-04-29 | EY9: 2018-04-30 | EZ9: 2018-05-01 | FA9: 2018-05-02 | FB9: 2018-05-03 | FC9: 2018-05-04 | FD9: 2018-05-05 | FE9: 2018-05-06 | FF9: 2018-05-07 | FG9: 2018-05-08 | FH9: 2018-05-09 | FI9: 2018-05-10 | FJ9: 2018-05-11 | FK9: 2018-05-12 | FL9: 2018-05-13 | FM9: 2018-05-14 | FN9: 2018-05-15 | FO9: 2018-05-16 | FP9: 2018-05-17 | FQ9: 2018-05-18 | FR9: 2018-05-19 | FS9: 2018-05-20 | FT9: 2018-05-21 | FU9: 2018-05-22 | FV9: 2018-05-23 | FW9: 2018-05-24 | FX9: 2018-05-25 | FY9: 2018-05-26 | FZ9: 2018-05-27 | GA9: 2018-05-28 | GB9: 2018-05-29 | GC9: 2018-05-30 | GD9: 2018-05-31 | GE9: 2018-06-01 | GF9: 2018-06-02 | GG9: 2018-06-03 | GH9: 2018-06-04 | GI9: 2018-06-05 | GJ9: 2018-06-06 | GK9: 2018-06-07 | GL9: 2018-06-08 | GM9: 2018-06-09 | GN9: 2018-06-10 | GO9: 2018-06-11 | GP9: 2018-06-12 | GQ9: 2018-06-13 | GR9: 2018-06-14 | GS9: 2018-06-15 | GT9: 2018-06-16 | GU9: 2018-06-17 | GV9: 2018-06-18 | GW9: 2018-06-19 | GX9: 2018-06-20 | GY9: 2018-06-21 | GZ9: 2018-06-22 | HA9: 2018-06-23 | HB9: 2018-06-24 | HC9: 2018-06-25 | HD9: 2018-06-26 | HE9: 2018-06-27 | HF9: 2018-06-28 | HG9: 2018-06-29 | HH9: 2018-06-30 | HI9: 2018-07-01 | HJ9: 2018-07-02 | HK9: 2018-07-03 | HL9: 2018-07-04 | HM9: 2018-07-05 | HN9: 2018-07-06 | HO9: 2018-07-07 | HP9: 2018-07-08 | HQ9: 2018-07-09 | HR9: 2018-07-10 | HS9: 2018-07-11 | HT9: 2018-07-12 | HU9: 2018-07-13 | HV9: 2018-07-14 | HW9: 2018-07-15 | HX9: 2018-07-16 | HY9: 2018-07-17 | HZ9: 2018-07-18 | IA9: 2018-07-19 | IB9: 2018-07-20 | IC9: 2018-07-21 | ID9: 2018-07-22 | IE9: 2018-07-23 | IF9: 2018-07-24 | IG9: 2018-07-25 | IH9: 2018-07-26 | II9: 2018-07-27 | IJ9: 2018-07-28 | IK9: 2018-07-29 | IL9: 2018-07-30 | IM9: 2018-07-31 | IN9: 2018-08-01 | IO9: 2018-08-02 | IP9: 2018-08-03 | IQ9: 2018-08-04 | IR9: 2018-08-05 | IS9: 2018-08-06 | IT9: 2018-08-07 | IU9: 2018-08-08 | IV9: 2018-08-09 | IW9: 2018-08-10 | IX9: 2018-08-11 | IY9: 2018-08-12 | IZ9: 2018-08-13 | JA9: 2018-08-14 | JB9: 2018-08-15 | JC9: 2018-08-16 | JD9: 2018-08-17 | JE9: 2018-08-18 | JF9: 2018-08-19 | JG9: 2018-08-20 | JH9: 2018-08-21 | JI9: 2018-08-22 | JJ9: 2018-08-23 | JK9: 2018-08-24 | JL9: 2018-08-25 | JM9: 2018-08-26 | JN9: 2018-08-27 | JO9: 2018-08-28 | JP9: 2018-08-29 | JQ9: 2018-08-30 | JR9: 2018-08-31 | JS9: 2018-09-01 | JT9: 2018-09-02 | JU9: 2018-09-03 | JV9: 2018-09-04 | JW9: 2018-09-05 | JX9: 2018-09-06 | JY9: 2018-09-07 | JZ9: 2018-09-08 | KA9: 2018-09-09 | KB9: 2018-09-10 | KC9: 2018-09-11 | KD9: 2018-09-12 | KE9: 2018-09-13 | KF9: 2018-09-14 | KG9: 2018-09-15 | KH9: 2018-09-16 | KI9: 2018-09-17 | KJ9: 2018-09-18 | KK9: 2018-09-19 | KL9: 2018-09-20 | KM9: 2018-09-21 | KN9: 2018-09-22 | KO9: 2018-09-23 | KP9: 2018-09-24 | KQ9: 2018-09-25 | KR9: 2018-09-26 | KS9: 2018-09-27 | KT9: 2018-09-28 | KU9: 2018-09-29 | KV9: 2018-09-30 | KW9: 2018-10-01 | KX9: 2018-10-02 | KY9: 2018-10-03 | KZ9: 2018-10-04 | LA9: 2018-10-05 | LB9: 2018-10-06 | LC9: 2018-10-07 | LD9: 2018-10-08 | LE9: 2018-10-09 | LF9: 2018-10-10 | LG9: 2018-10-11 | LH9: 2018-10-12 | LI9: 2018-10-13 | LJ9: 2018-10-14 | LK9: 2018-10-15 | LL9: 2018-10-16 | LM9: 2018-10-17 | LN9: 2018-10-18 | LO9: 2018-10-19 | LP9: 2018-10-20 | LQ9: 2018-10-21 | LR9: 2018-10-22 | LS9: 2018-10-23 | LT9: 2018-10-24 | LU9: 2018-10-25 | LV9: 2018-10-26 | LW9: 2018-10-27 | LX9: 2018-10-28 | LY9: 2018-10-29 | LZ9: 2018-10-30 | MA9: 2018-10-31 | MB9: 2018-11-01 | MC9: 2018-11-02 | MD9: 2018-11-03 | ME9: 2018-11-04 | MF9: 2018-11-05 | MG9: 2018-11-06 | MH9: 2018-11-07 | MI9: 2018-11-08 | MJ9: 2018-11-09 | MK9: 2018-11-10 | ML9: 2018-11-11 | MM9: 2018-11-12 | MN9: 2018-11-13 | MO9: 2018-11-14 | MP9: 2018-11-15 | MQ9: 2018-11-16 | MR9: 2018-11-17 | MS9: 2018-11-18 | MT9: 2018-11-19 | MU9: 2018-11-20 | MV9: 2018-11-21 | MW9: 2018-11-22 | MX9: 2018-11-23 | MY9: 2018-11-24 | MZ9: 2018-11-25 | NA9: 2018-11-26 | NB9: 2018-11-27 | NC9: 2018-11-28 | ND9: 2018-11-29 | NE9: 2018-11-30 | NF9: 2018-12-01 | NG9: 2018-12-02 | NH9: 2018-12-03 | NI9: 2018-12-04 | NJ9: 2018-12-05 | NK9: 2018-12-06 | NL9: 2018-12-07 | NM9: 2018-12-08 | NN9: 2018-12-09 | NO9: 2018-12-10 | NP9: 2018-12-11 | NQ9: 2018-12-12 | NR9: 2018-12-13 | NS9: 2018-12-14 | NT9: 2018-12-15 | NU9: 2018-12-16 | NV9: 2018-12-17 | NW9: 2018-12-18 | NX9: 2018-12-19 | NY9: 2018-12-20 | NZ9: 2018-12-21 | OA9: 2018-12-22 | OB9: 2018-12-23 | OC9: 2018-12-24 | OD9: 2018-12-25 | OE9: 2018-12-26 | OF9: 2018-12-27 | OG9: 2018-12-28 | OH9: 2018-12-29 | OI9: 2018-12-30 | OJ9: 2018-12-31 | OK9: 2019-01-01 | OL9: 2019-01-02 | OM9: 2019-01-03 | ON9: 2019-01-04 | OO9: 2019-01-05 | OP9: 2019-01-06 | OQ9: 2019-01-07 | OR9: 2019-01-08 | OS9: 2019-01-09 | OT9: 2019-01-10 | OU9: 2019-01-11 | OV9: 2019-01-12 | OW9: 2019-01-13 | OX9: 2019-01-14 | OY9: 2019-01-15 | OZ9: 2019-01-16 | PA9: 2019-01-17 | PB9: 2019-01-18 | PC9: 2019-01-19 | PD9: 2019-01-20 | PE9: 2019-01-21 | PF9: 2019-01-22 | PG9: 2019-01-23 | PH9: 2019-01-24 | PI9: 2019-01-25 | PJ9: 2019-01-26 | PK9: 2019-01-27 | PL9: 2019-01-28 | PM9: 2019-01-29 | PN9: 2019-01-30 | PO9: 2019-01-31
A10: NOM & PRENOM | B10: SERVICE | C10: ENTREE | D10: SORTIE | E10: Colonne1 | F10: Colonne3 | G10: Colonne5 | H10: Colonne7 | I10: Colonne9 | J10: Colonne11 | K10: Colonne13 | L10: Colonne15 | M10: Colonne17 | N10: Colonne19 | O10: Colonne21 | P10: Colonne23 | Q10: Colonne25 | R10: Colonne27 | S10: Colonne29 | T10: Colonne31 | U10: Colonne33 | V10: Colonne35 | W10: Colonne37 | X10: Colonne39 | Y10: Colonne41 | Z10: Colonne43 | AA10: Colonne45 | AB10: Colonne47 | AC10: Colonne49 | AD10: Colonne51 | AE10: Colonne53 | AF10: Colonne55 | AG10: Colonne57 | AH10: Colonne59 | AI10: Colonne61 | AJ10: Colonne63 | AK10: Colonne66 | AL10: Colonne67 | AM10: Colonne68 | AN10: Colonne69 | AO10: Colonne70 | AP10: Colonne71 | AQ10: Colonne72 | AR10: Colonne73 | AS10: Colonne74 | AT10: Colonne75 | AU10: Colonne76 | AV10: Colonne77 | AW10: Colonne78 | AX10: Colonne79 | AY10: Colonne80 | AZ10: Colonne81 | BA10: Colonne82 | BB10: Colonne83 | BC10: Colonne84 | BD10: Colonne85 | BE10: Colonne86 | BF10: Colonne87 | BG10: Colonne88 | BH10: Colonne89 | BI10: Colonne90 | BJ10: Colonne91 | BK10: Colonne92 | BL10: Colonne93 | BM10: Colonne94 | BN10: Colonne95 | BO10: Colonne96 | BP10: Colonne97 | BQ10: Colonne98 | BR10: Colonne99 | BS10: Colonne100 | BT10: Colonne101 | BU10: Colonne102 | BV10: Colonne103 | BW10: Colonne104 | BX10: Colonne105 | BY10: Colonne106 | BZ10: Colonne107 | CA10: Colonne108 | CB10: Colonne109 | CC10: Colonne110 | CD10: Colonne111 | CE10: Colonne112 | CF10: Colonne113 | CG10: Colonne114 | CH10: Colonne115 | CI10: Colonne116 | CJ10: Colonne117 | CK10: Colonne118 | CL10: Colonne119 | CM10: Colonne120 | CN10: Colonne121 | CO10: Colonne122 | CP10: Colonne123 | CQ10: Colonne124 | CR10: Colonne125 | CS10: Colonne126 | CT10: Colonne127 | CU10: Colonne128 | CV10: Colonne129 | CW10: Colonne130 | CX10: Colonne131 | CY10: Colonne132 | CZ10: Colonne133 | DA10: Colonne134 | DB10: Colonne135 | DC10: Colonne136 | DD10: Colonne137 | DE10: Colonne138 | DF10: Colonne139 | DG10: Colonne140 | DH10: Colonne141 | DI10: Colonne142 | DJ10: Colonne143 | DK10: Colonne144 | DL10: Colonne145 | DM10: Colonne146 | DN10: Colonne147 | DO10: Colonne148 | DP10: Colonne149 | DQ10: Colonne150 | DR10: Colonne151 | DS10: Colonne152 | DT10: Colonne153 | DU10: Colonne154 | DV10: Colonne155 | DW10: Colonne156 | DX10: Colonne157 | DY10: Colonne158 | DZ10: Colonne159 | EA10: Colonne160 | EB10: Colonne161 | EC10: Colonne162 | ED10: Colonne163 | EE10: Colonne164 | EF10: Colonne165 | EG10: Colonne166 | EH10: Colonne167 | EI10: Colonne168 | EJ10: Colonne169 | EK10: Colonne170 | EL10: Colonne171 | EM10: Colonne172 | EN10: Colonne173 | EO10: Colonne174 | EP10: Colonne175 | EQ10: Colonne176 | ER10: Colonne177 | ES10: Colonne178 | ET10: Colonne179 | EU10: Colonne180 | EV10: Colonne181 | EW10: Colonne182 | EX10: Colonne183 | EY10: Colonne184 | EZ10: Colonne185 | FA10: Colonne186 | FB10: Colonne187 | FC10: Colonne188 | FD10: Colonne189 | FE10: Colonne190 | FF10: Colonne191 | FG10: Colonne192 | FH10: Colonne193 | FI10: Colonne194 | FJ10: Colonne195 | FK10: Colonne196 | FL10: Colonne197 | FM10: Colonne198 | FN10: Colonne199 | FO10: Colonne200 | FP10: Colonne201 | FQ10: Colonne202 | FR10: Colonne203 | FS10: Colonne204 | FT10: Colonne205 | FU10: Colonne206 | FV10: Colonne207 | FW10: Colonne208 | FX10: Colonne209 | FY10: Colonne210 | FZ10: Colonne211 | GA10: Colonne212 | GB10: Colonne213 | GC10: Colonne214 | GD10: Colonne215 | GE10: Colonne216 | GF10: Colonne217 | GG10: Colonne218 | GH10: Colonne219 | GI10: Colonne220 | GJ10: Colonne221 | GK10: Colonne222 | GL10: Colonne223 | GM10: Colonne224 | GN10: Colonne225 | GO10: Colonne226 | GP10: Colonne227 | GQ10: Colonne228 | GR10: Colonne229 | GS10: Colonne230 | GT10: Colonne231 | GU10: Colonne232 | GV10: Colonne233 | GW10: Colonne234 | GX10: Colonne235 | GY10: Colonne236 | GZ10: Colonne237 | HA10: Colonne238 | HB10: Colonne239 | HC10: Colonne240 | HD10: Colonne241 | HE10: Colonne242 | HF10: Colonne243 | HG10: Colonne244 | HH10: Colonne245 | HI10: Colonne246 | HJ10: Colonne247 | HK10: Colonne248 | HL10: Colonne249 | HM10: Colonne250 | HN10: Colonne251 | HO10: Colonne252 | HP10: Colonne253 | HQ10: Colonne254 | HR10: Colonne255 | HS10: Colonne256 | HT10: Colonne257 | HU10: Colonne258 | HV10: Colonne259 | HW10: Colonne260 | HX10: Colonne261 | HY10: Colonne262 | HZ10: Colonne263 | IA10: Colonne264 | IB10: Colonne265 | IC10: Colonne266 | ID10: Colonne267 | IE10: Colonne268 | IF10: Colonne269 | IG10: Colonne270 | IH10: Colonne271 | II10: Colonne272 | IJ10: Colonne273 | IK10: Colonne274 | IL10: Colonne275 | IM10: Colonne276 | IN10: Colonne277 | IO10: Colonne278 | IP10: Colonne279 | IQ10: Colonne280 | IR10: Colonne281 | IS10: Colonne282 | IT10: Colonne283 | IU10: Colonne284 | IV10: Colonne285 | IW10: Colonne286 | IX10: Colonne287 | IY10: Colonne288 | IZ10: Colonne289 | JA10: Colonne290 | JB10: Colonne291 | JC10: Colonne292 | JD10: Colonne293 | JE10: Colonne294 | JF10: Colonne295 | JG10: Colonne296 | JH10: Colonne297 | JI10: Colonne298 | JJ10: Colonne299 | JK10: Colonne300 | JL10: Colonne301 | JM10: Colonne302 | JN10: Colonne303 | JO10: Colonne304 | JP10: Colonne305 | JQ10: Colonne306 | JR10: Colonne307 | JS10: Colonne308 | JT10: Colonne309 | JU10: Colonne310 | JV10: Colonne311 | JW10: Colonne312 | JX10: Colonne313 | JY10: Colonne314 | JZ10: Colonne315 | KA10: Colonne316 | KB10: Colonne317 | KC10: Colonne318 | KD10: Colonne319 | KE10: Colonne320 | KF10: Colonne321 | KG10: Colonne322 | KH10: Colonne323 | KI10: Colonne324 | KJ10: Colonne325 | KK10: Colonne326 | KL10: Colonne327 | KM10: Colonne328 | KN10: Colonne329 | KO10: Colonne330 | KP10: Colonne331 | KQ10: Colonne332 | KR10: Colonne333 | KS10: Colonne334 | KT10: Colonne335 | KU10: Colonne336 | KV10: Colonne337 | KW10: Colonne338 | KX10: Colonne339 | KY10: Colonne340 | KZ10: Colonne341 | LA10: Colonne342 | LB10: Colonne343 | LC10: Colonne344 | LD10: Colonne345 | LE10: Colonne346 | LF10: Colonne347 | LG10: Colonne348 | LH10: Colonne349 | LI10: Colonne350 | LJ10: Colonne351 | LK10: Colonne352 | LL10: Colonne353 | LM10: Colonne354 | LN10: Colonne355 | LO10: Colonne356 | LP10: Colonne357 | LQ10: Colonne358 | LR10: Colonne359 | LS10: Colonne360 | LT10: Colonne361 | LU10: Colonne362 | LV10: Colonne363 | LW10: Colonne364 | LX10: Colonne365 | LY10: Colonne366 | LZ10: Colonne367 | MA10: Colonne368 | MB10: Colonne369 | MC10: Colonne370 | MD10: Colonne371 | ME10: Colonne372 | MF10: Colonne373 | MG10: Colonne374 | MH10: Colonne375 | MI10: Colonne376 | MJ10: Colonne377 | MK10: Colonne378 | ML10: Colonne379 | MM10: Colonne380 | MN10: Colonne381 | MO10: Colonne382 | MP10: Colonne383 | MQ10: Colonne384 | MR10: Colonne385 | MS10: Colonne386 | MT10: Colonne387 | MU10: Colonne388 | MV10: Colonne389 | MW10: Colonne390 | MX10: Colonne391 | MY10: Colonne392 | MZ10: Colonne393 | NA10: Colonne394 | NB10: Colonne395 | NC10: Colonne396 | ND10: Colonne397 | NE10: Colonne398 | NF10: Colonne399 | NG10: Colonne400 | NH10: Colonne401 | NI10: Colonne402 | NJ10: Colonne403 | NK10: Colonne404 | NL10: Colonne405 | NM10: Colonne406 | NN10: Colonne407 | NO10: Colonne408 | NP10: Colonne409 | NQ10: Colonne410 | NR10: Colonne411 | NS10: Colonne412 | NT10: Colonne413 | NU10: Colonne414 | NV10: Colonne415 | NW10: Colonne416 | NX10: Colonne417 | NY10: Colonne418 | NZ10: Colonne419 | OA10: Colonne420 | OB10: Colonne421 | OC10: Colonne422 | OD10: Colonne423 | OE10: Colonne424 | OF10: Colonne425 | OG10: Colonne426 | OH10: Colonne427 | OI10: Colonne428 | OJ10: Colonne429 | OK10: Colonne430 | OL10: Colonne431 | OM10: Colonne432 | ON10: Colonne433 | OO10: Colonne434 | OP10: Colonne435 | OQ10: Colonne436 | OR10: Colonne437 | OS10: Colonne438 | OT10: Colonne439 | OU10: Colonne440 | OV10: Colonne441 | OW10: Colonne442 | OX10: Colonne443 | OY10: Colonne444 | OZ10: Colonne445 | PA10: Colonne446 | PB10: Colonne447 | PC10: Colonne448 | PD10: Colonne449 | PE10: Colonne450 | PF10: Colonne451 | PG10: Colonne452 | PH10: Colonne453 | PI10: Colonne454 | PJ10: Colonne455 | PK10: Colonne456 | PL10: Colonne457 | PM10: Colonne458 | PN10: Colonne459 | PO10: Colonne460

Sheet 01
A1: JANVIER | D1: ="Période du "&TEXT(NOMENCLATURE!$E$4,"jj mmmm aaaa")&" au "&TEXT(NOMENCLATURE!$E$5,"jj mmmm aaaa") -> Période du 18 décembre 2017 au 21 janvier 2018
B2: STC | C2: =COUNTIF(JANVIER[STC],"OUI") -> 0
A5: NOM & PRENOM | B5: SERVICE | C5: CONTRAT | D5: ENTREE | E5: SORTIE | F5: HEURES CONTRAT | G5: SALAIRE DE BASE | H5: R.I.S. | I5: MALADIE | J5: AT TRAVAIL | K5: AT TRAJET | L5: ENFANT MALADE | M5: ABSENCE INJUSTIFIEE | N5: C.S.S. | O5: MATERNITE | P5: CONGE PARENTAL | Q5: PRIME VOLANTE | R5: INDEMNITE PASSAGE | S5: PRIME CUISINE | T5: PRIME TECHNICITE | U5: PRIME ASSIDUITE | V5: MAINTIENT SALAIRE | W5: PRECARITE | X5: INDEMNITE CP | Y5: BRUT | Z5: RTT | AA5: 1/2 RTT | AB5: CC | AC5: CP | AD5: RECUP. | AE5: EVENEMENT | AF5: FORMATION | AG5: MUTUELLE | AH5: RTM | AI5: IJSS | AJ5: ACOMPTE | AK5: AVANCE | AL5: TENUE | AM5: STC | AN5: NET
G6: =VLOOKUP(JANVIER[[#This Row],[NOM & PRENOM]],Tableau1[],10) ->  | H6: =VLOOKUP(JANVIER[[#This Row],[NOM & PRENOM]],Tableau1[],11) -> 
G7: =VLOOKUP(JANVIER[[#This Row],[NOM & PRENOM]],Tableau1[],10) ->  | H7: =VLOOKUP(JANVIER[[#This Row],[NOM & PRENOM]],Tableau1[],11) -> 
G8: =VLOOKUP(JANVIER[[#This Row],[NOM & PRENOM]],Tableau1[],10) ->  | H8: =VLOOKUP(JANVIER[[#This Row],[NOM & PRENOM]],Tableau1[],11) -> 
G9: =VLOOKUP(JANVIER[[#This Row],[NOM & PRENOM]],Tableau1[],10) ->  | H9: =VLOOKUP(JANVIER[[#This Row],[NOM & PRENOM]],Tableau1[],11) -> 
G10: =VLOOKUP(JANVIER[[#This Row],[NOM & PRENOM]],Tableau1[],10) ->  | H10: =VLOOKUP(JANVIER[[#This Row],[NOM & PRENOM]],Tableau1[],11) -> 
G11: =VLOOKUP(JANVIER[[#This Row],[NOM & PRENOM]],Tableau1[],10) ->  | H11: =VLOOKUP(JANVIER[[#This Row],[NOM & PRENOM]],Tableau1[],11) -> 
G12: =VLOOKUP(JANVIER[[#This Row],[NOM & PRENOM]],Tableau1[],10) ->  | H12: =VLOOKUP(JANVIER[[#This Row],[NOM & PRENOM]],Tableau1[],11) -> 
G13: =VLOOKUP(JANVIER[[#This Row],[NOM & PRENOM]],Tableau1[],10) ->  | H13: =VLOOKUP(JANVIER[[#This Row],[NOM & PRENOM]],Tableau1[],11) -> 
G14: =VLOOKUP(JANVIER[[#This Row],[NOM & PRENOM]],Tableau1[],10) ->  | H14: =VLOOKUP(JANVIER[[#This Row],[NOM & PRENOM]],Tableau1[],11) -> 
G15: =VLOOKUP(JANVIER[[#This Row],[NOM & PRENOM]],Tableau1[],10) ->  | H15: =VLOOKUP(JANVIER[[#This Row],[NOM & PRENOM]],Tableau1[],11) -> 
G16: =VLOOKUP(JANVIER[[#This Row],[NOM & PRENOM]],Tableau1[],10) ->  | H16: =VLOOKUP(JANVIER[[#This Row],[NOM & PRENOM]],Tableau1[],11) -> 
G17: =VLOOKUP(JANVIER[[#This Row],[NOM & PRENOM]],Tableau1[],10) ->  | H17: =VLOOKUP(JANVIER[[#This Row],[NOM & PRENOM]],Tableau1[],11) -> 
G18: =VLOOKUP(JANVIER[[#This Row],[NOM & PRENOM]],Tableau1[],10) ->  | H18: =VLOOKUP(JANVIER[[#This Row],[NOM & PRENOM]],Tableau1[],11) -> 
G19: =VLOOKUP(JANVIER[[#This Row],[NOM & PRENOM]],Tableau1[],10) ->  | H19: =VLOOKUP(JANVIER[[#This Row],[NOM & PRENOM]],Tableau1[],11) -> 
G20: =VLOOKUP(JANVIER[[#This Row],[NOM & PRENOM]],Tableau1[],10) ->  | H20: =VLOOKUP(JANVIER[[#This Row],[NOM & PRENOM]],Tableau1[],11) -> 
G21: =VLOOKUP(JANVIER[[#This Row],[NOM & PRENOM]],Tableau1[],10) ->  | H21: =VLOOKUP(JANVIER[[#This Row],[NOM & PRENOM]],Tableau1[],11) -> 
G22: =VLOOKUP(JANVIER[[#This Row],[NOM & PRENOM]],Tableau1[],10) ->  | H22: =VLOOKUP(JANVIER[[#This Row],[NOM & PRENOM]],Tableau1[],11) -> 
G23: =VLOOKUP(JANVIER[[#This Row],[NOM & PRENOM]],Tableau1[],10) ->  | H23: =VLOOKUP(JANVIER[[#This Row],[NOM & PRENOM]],Tableau1[],11) -> 
G24: =VLOOKUP(JANVIER[[#This Row],[NOM & PRENOM]],Tableau1[],10) ->  | H24: =VLOOKUP(JANVIER[[#This Row],[NOM & PRENOM]],Tableau1[],11) -> 
G25: =VLOOKUP(JANVIER[[#This Row],[NOM & PRENOM]],Tableau1[],10) ->  | H25: =VLOOKUP(JANVIER[[#This Row],[NOM & PRENOM]],Tableau1[],11) -> 
G26: =VLOOKUP(JANVIER[[#This Row],[NOM & PRENOM]],Tableau1[],10) ->  | H26: =VLOOKUP(JANVIER[[#This Row],[NOM & PRENOM]],Tableau1[],11) -> 
G27: =VLOOKUP(JANVIER[[#This Row],[NOM & PRENOM]],Tableau1[],10) ->  | H27: =VLOOKUP(JANVIER[[#This Row],[NOM & PRENOM]],Tableau1[],11) -> 
G28: =VLOOKUP(JANVIER[[#This Row],[NOM & PRENOM]],Tableau1[],10) ->  | H28: =VLOOKUP(JANVIER[[#This Row],[NOM & PRENOM]],Tableau1[],11) -> 
G29: =VLOOKUP(JANVIER[[#This Row],[NOM & PRENOM]],Tableau1[],10) ->  | H29: =VLOOKUP(JANVIER[[#This Row],[NOM & PRENOM]],Tableau1[],11) -> 
G30: =VLOOKUP(JANVIER[[#This Row],[NOM & PRENOM]],Tableau1[],10) ->  | H30: =VLOOKUP(JANVIER[[#This Row],[NOM & PRENOM]],Tableau1[],11) -> 
G31: =VLOOKUP(JANVIER[[#This Row],[NOM & PRENOM]],Tableau1[],10) ->  | H31: =VLOOKUP(JANVIER[[#This Row],[NOM & PRENOM]],Tableau1[],11) -> 
G32: =VLOOKUP(JANVIER[[#This Row],[NOM & PRENOM]],Tableau1[],10) ->  | H32: =VLOOKUP(JANVIER[[#This Row],[NOM & PRENOM]],Tableau1[],11) -> 
G33: =VLOOKUP(JANVIER[[#This Row],[NOM & PRENOM]],Tableau1[],10) ->  | H33: =VLOOKUP(JANVIER[[#This Row],[NOM & PRENOM]],Tableau1[],11) -> 
G34: =VLOOKUP(JANVIER[[#This Row],[NOM & PRENOM]],Tableau1[],10) ->  | H34: =VLOOKUP(JANVIER[[#This Row],[NOM & PRENOM]],Tableau1[],11) -> 
G35: =VLOOKUP(JANVIER[[#This Row],[NOM & PRENOM]],Tableau1[],10) ->  | H35: =VLOOKUP(JANVIER[[#This Row],[NOM & PRENOM]],Tableau1[],11) -> 
G36: =VLOOKUP(JANVIER[[#This Row],[NOM & PRENOM]],Tableau1[],10) ->  | H36: =VLOOKUP(JANVIER[[#This Row],[NOM & PRENOM]],Tableau1[],11) -> 
G37: =VLOOKUP(JANVIER[[#This Row],[NOM & PRENOM]],Tableau1[],10) ->  | H37: =VLOOKUP(JANVIER[[#This Row],[NOM & PRENOM]],Tableau1[],11) -> 
G38: =VLOOKUP(JANVIER[[#This Row],[NOM & PRENOM]],Tableau1[],10) ->  | H38: =VLOOKUP(JANVIER[[#This Row],[NOM & PRENOM]],Tableau1[],11) -> 
G39: =VLOOKUP(JANVIER[[#This Row],[NOM & PRENOM]],Tableau1[],10) ->  | H39: =VLOOKUP(JANVIER[[#This Row],[NOM & PRENOM]],Tableau1[],11) -> 
G40: =VLOOKUP(JANVIER[[#This Row],[NOM & PRENOM]],Tableau1[],10) ->  | H40: =VLOOKUP(JANVIER[[#This Row],[NOM & PRENOM]],Tableau1[],11) -> 
G41: =VLOOKUP(JANVIER[[#This Row],[NOM & PRENOM]],Tableau1[],10) ->  | H41: =VLOOKUP(JANVIER[[#This Row],[NOM & PRENOM]],Tableau1[],11) -> 
G42: =VLOOKUP(JANVIER[[#This Row],[NOM & PRENOM]],Tableau1[],10) ->  | H42: =VLOOKUP(JANVIER[[#This Row],[NOM & PRENOM]],Tableau1[],11) -> 
G43: =VLOOKUP(JANVIER[[#This Row],[NOM & PRENOM]],Tableau1[],10) ->  | H43: =VLOOKUP(JANVIER[[#This Row],[NOM & PRENOM]],Tableau1[],11) -> 
G44: =VLOOKUP(JANVIER[[#This Row],[NOM & PRENOM]],Tableau1[],10) ->  | H44: =VLOOKUP(JANVIER[[#This Row],[NOM & PRENOM]],Tableau1[],11) -> 
G45: =VLOOKUP(JANVIER[[#This Row],[NOM & PRENOM]],Tableau1[],10) ->  | H45: =VLOOKUP(JANVIER[[#This Row],[NOM & PRENOM]],Tableau1[],11) -> 
G46: =VLOOKUP(JANVIER[[#This Row],[NOM & PRENOM]],Tableau1[],10) ->  | H46: =VLOOKUP(JANVIER[[#This Row],[NOM & PRENOM]],Tableau1[],11) -> 
G47: =VLOOKUP(JANVIER[[#This Row],[NOM & PRENOM]],Tableau1[],10) ->  | H47: =VLOOKUP(JANVIER[[#This Row],[NOM & PRENOM]],Tableau1[],11) -> 
G48: =VLOOKUP(JANVIER[[#This Row],[NOM & PRENOM]],Tableau1[],10) ->  | H48: =VLOOKUP(JANVIER[[#This Row],[NOM & PRENOM]],Tableau1[],11) -> 
G49: =VLOOKUP(JANVIER[[#This Row],[NOM & PRENOM]],Tableau1[],10) ->  | H49: =VLOOKUP(JANVIER[[#This Row],[NOM & PRENOM]],Tableau1[],11) -> 
G50: =VLOOKUP(JANVIER[[#This Row],[NOM & PRENOM]],Tableau1[],10) ->  | H50: =VLOOKUP(JANVIER[[#This Row],[NOM & PRENOM]],Tableau1[],11) -> 
G51: =VLOOKUP(JANVIER[[#This Row],[NOM & PRENOM]],Tableau1[],10) ->  | H51: =VLOOKUP(JANVIER[[#This Row],[NOM & PRENOM]],Tableau1[],11) -> 
G52: =VLOOKUP(JANVIER[[#This Row],[NOM & PRENOM]],Tableau1[],10) ->  | H52: =VLOOKUP(JANVIER[[#This Row],[NOM & PRENOM]],Tableau1[],11) -> 
G53: =VLOOKUP(JANVIER[[#This Row],[NOM & PRENOM]],Tableau1[],10) ->  | H53: =VLOOKUP(JANVIER[[#This Row],[NOM & PRENOM]],Tableau1[],11) -> 
G54: =VLOOKUP(JANVIER[[#This Row],[NOM & PRENOM]],Tableau1[],10) ->  | H54: =VLOOKUP(JANVIER[[#This Row],[NOM & PRENOM]],Tableau1[],11) -> 
G55: =VLOOKUP(JANVIER[[#This Row],[NOM & PRENOM]],Tableau1[],10) ->  | H55: =VLOOKUP(JANVIER[[#This Row],[NOM & PRENOM]],Tableau1[],11) -> 
G56: =VLOOKUP(JANVIER[[#This Row],[NOM & PRENOM]],Tableau1[],10) ->  | H56: =VLOOKUP(JANVIER[[#This Row],[NOM & PRENOM]],Tableau1[],11) -> 
G57: =VLOOKUP(JANVIER[[#This Row],[NOM & PRENOM]],Tableau1[],10) ->  | H57: =VLOOKUP(JANVIER[[#This Row],[NOM & PRENOM]],Tableau1[],11) -> 
G58: =VLOOKUP(JANVIER[[#This Row],[NOM & PRENOM]],Tableau1[],10) ->  | H58: =VLOOKUP(JANVIER[[#This Row],[NOM & PRENOM]],Tableau1[],11) -> 
G59: =VLOOKUP(JANVIER[[#This Row],[NOM & PRENOM]],Tableau1[],10) ->  | H59: =VLOOKUP(JANVIER[[#This Row],[NOM & PRENOM]],Tableau1[],11) -> 
G60: =VLOOKUP(JANVIER[[#This Row],[NOM & PRENOM]],Tableau1[],10) ->  | H60: =VLOOKUP(JANVIER[[#This Row],[NOM & PRENOM]],Tableau1[],11) -> 
G61: =VLOOKUP(JANVIER[[#This Row],[NOM & PRENOM]],Tableau1[],10) ->  | H61: =VLOOKUP(JANVIER[[#This Row],[NOM & PRENOM]],Tableau1[],11) -> 
G62: =VLOOKUP(JANVIER[[#This Row],[NOM & PRENOM]],Tableau1[],10) ->  | H62: =VLOOKUP(JANVIER[[#This Row],[NOM & PRENOM]],Tableau1[],11) -> 
G63: =VLOOKUP(JANVIER[[#This Row],[NOM & PRENOM]],Tableau1[],10) ->  | H63: =VLOOKUP(JANVIER[[#This Row],[NOM & PRENOM]],Tableau1[],11) -> 
G64: =VLOOKUP(JANVIER[[#This Row],[NOM & PRENOM]],Tableau1[],10) ->  | H64: =VLOOKUP(JANVIER[[#This Row],[NOM & PRENOM]],Tableau1[],11) -> 
G65: =VLOOKUP(JANVIER[[#This Row],[NOM & PRENOM]],Tableau1[],10) ->  | H65: =VLOOKUP(JANVIER[[#This Row],[NOM & PRENOM]],Tableau1[],11) -> 
G66: =VLOOKUP(JANVIER[[#This Row],[NOM & PRENOM]],Tableau1[],10) ->  | H66: =VLOOKUP(JANVIER[[#This Row],[NOM & PRENOM]],Tableau1[],11) -> 
G67: =VLOOKUP(JANVIER[[#This Row],[NOM & PRENOM]],Tableau1[],10) ->  | H67: =VLOOKUP(JANVIER[[#This Row],[NOM & PRENOM]],Tableau1[],11) -> 
G68: =VLOOKUP(JANVIER[[#This Row],[NOM & PRENOM]],Tableau1[],10) ->  | H68: =VLOOKUP(JANVIER[[#This Row],[NOM & PRENOM]],Tableau1[],11) -> 
G69: =VLOOKUP(JANVIER[[#This Row],[NOM & PRENOM]],Tableau1[],10) ->  | H69: =VLOOKUP(JANVIER[[#This Row],[NOM & PRENOM]],Tableau1[],11) -> 
G70: =VLOOKUP(JANVIER[[#This Row],[NOM & PRENOM]],Tableau1[],10) ->  | H70: =VLOOKUP(JANVIER[[#This Row],[NOM & PRENOM]],Tableau1[],11) -> 
G71: =VLOOKUP(JANVIER[[#This Row],[NOM & PRENOM]],Tableau1[],10) ->  | H71: =VLOOKUP(JANVIER[[#This Row],[NOM & PRENOM]],Tableau1[],11) -> 
G72: =VLOOKUP(JANVIER[[#This Row],[NOM & PRENOM]],Tableau1[],10) ->  | H72: =VLOOKUP(JANVIER[[#This Row],[NOM & PRENOM]],Tableau1[],11) -> 
G73: =VLOOKUP(JANVIER[[#This Row],[NOM & PRENOM]],Tableau1[],10) ->  | H73: =VLOOKUP(JANVIER[[#This Row],[NOM & PRENOM]],Tableau1[],11) -> 
G74: =VLOOKUP(JANVIER[[#This Row],[NOM & PRENOM]],Tableau1[],10) ->  | H74: =VLOOKUP(JANVIER[[#This Row],[NOM & PRENOM]],Tableau1[],11) -> 
G75: =VLOOKUP(JANVIER[[#This Row],[NOM & PRENOM]],Tableau1[],10) ->  | H75: =VLOOKUP(JANVIER[[#This Row],[NOM & PRENOM]],Tableau1[],11) -> 
G76: =VLOOKUP(JANVIER[[#This Row],[NOM & PRENOM]],Tableau1[],10) ->  | H76: =VLOOKUP(JANVIER[[#This Row],[NOM & PRENOM]],Tableau1[],11) -> 
G77: =VLOOKUP(JANVIER[[#This Row],[NOM & PRENOM]],Tableau1[],10) ->  | H77: =VLOOKUP(JANVIER[[#This Row],[NOM & PRENOM]],Tableau1[],11) -> 
G78: =VLOOKUP(JANVIER[[#This Row],[NOM & PRENOM]],Tableau1[],10) ->  | H78: =VLOOKUP(JANVIER[[#This Row],[NOM & PRENOM]],Tableau1[],11) -> 
G79: =VLOOKUP(JANVIER[[#This Row],[NOM & PRENOM]],Tableau1[],10) ->  | H79: =VLOOKUP(JANVIER[[#This Row],[NOM & PRENOM]],Tableau1[],11) -> 
G80: =VLOOKUP(JANVIER[[#This Row],[NOM & PRENOM]],Tableau1[],10) ->  | H80: =VLOOKUP(JANVIER[[#This Row],[NOM & PRENOM]],Tableau1[],11) -> 
G81: =VLOOKUP(JANVIER[[#This Row],[NOM & PRENOM]],Tableau1[],10) ->  | H81: =VLOOKUP(JANVIER[[#This Row],[NOM & PRENOM]],Tableau1[],11) -> 
G82: =VLOOKUP(JANVIER[[#This Row],[NOM & PRENOM]],Tableau1[],10) ->  | H82: =VLOOKUP(JANVIER[[#This Row],[NOM & PRENOM]],Tableau1[],11) -> 
G83: =VLOOKUP(JANVIER[[#This Row],[NOM & PRENOM]],Tableau1[],10) ->  | H83: =VLOOKUP(JANVIER[[#This Row],[NOM & PRENOM]],Tableau1[],11) -> 
G84: =VLOOKUP(JANVIER[[#This Row],[NOM & PRENOM]],Tableau1[],10) ->  | H84: =VLOOKUP(JANVIER[[#This Row],[NOM & PRENOM]],Tableau1[],11) -> 
G85: =VLOOKUP(JANVIER[[#This Row],[NOM & PRENOM]],Tableau1[],10) ->  | H85: =VLOOKUP(JANVIER[[#This Row],[NOM & PRENOM]],Tableau1[],11) -> 
G86: =VLOOKUP(JANVIER[[#This Row],[NOM & PRENOM]],Tableau1[],10) ->  | H86: =VLOOKUP(JANVIER[[#This Row],[NOM & PRENOM]],Tableau1[],11) -> 
G87: =VLOOKUP(JANVIER[[#This Row],[NOM & PRENOM]],Tableau1[],10) ->  | H87: =VLOOKUP(JANVIER[[#This Row],[NOM & PRENOM]],Tableau1[],11) -> 
G88: =VLOOKUP(JANVIER[[#This Row],[NOM & PRENOM]],Tableau1[],10) ->  | H88: =VLOOKUP(JANVIER[[#This Row],[NOM & PRENOM]],Tableau1[],11) -> 
G89: =VLOOKUP(JANVIER[[#This Row],[NOM & PRENOM]],Tableau1[],10) ->  | H89: =VLOOKUP(JANVIER[[#This Row],[NOM & PRENOM]],Tableau1[],11) -> 
G90: =VLOOKUP(JANVIER[[#This Row],[NOM & PRENOM]],Tableau1[],10) ->  | H90: =VLOOKUP(JANVIER[[#This Row],[NOM & PRENOM]],Tableau1[],11) -> 
G91: =VLOOKUP(JANVIER[[#This Row],[NOM & PRENOM]],Tableau1[],10) ->  | H91: =VLOOKUP(JANVIER[[#This Row],[NOM & PRENOM]],Tableau1[],11) -> 
G92: =VLOOKUP(JANVIER[[#This Row],[NOM & PRENOM]],Tableau1[],10) ->  | H92: =VLOOKUP(JANVIER[[#This Row],[NOM & PRENOM]],Tableau1[],11) -> 
G93: =VLOOKUP(JANVIER[[#This Row],[NOM & PRENOM]],Tableau1[],10) ->  | H93: =VLOOKUP(JANVIER[[#This Row],[NOM & PRENOM]],Tableau1[],11) -> 
G94: =VLOOKUP(JANVIER[[#This Row],[NOM & PRENOM]],Tableau1[],10) ->  | H94: =VLOOKUP(JANVIER[[#This Row],[NOM & PRENOM]],Tableau1[],11) -> 
G95: =VLOOKUP(JANVIER[[#This Row],[NOM & PRENOM]],Tableau1[],10) ->  | H95: =VLOOKUP(JANVIER[[#This Row],[NOM & PRENOM]],Tableau1[],11) -> 
G96: =VLOOKUP(JANVIER[[#This Row],[NOM & PRENOM]],Tableau1[],10) ->  | H96: =VLOOKUP(JANVIER[[#This Row],[NOM & PRENOM]],Tableau1[],11) -> 
G97: =VLOOKUP(JANVIER[[#This Row],[NOM & PRENOM]],Tableau1[],10) ->  | H97: =VLOOKUP(JANVIER[[#This Row],[NOM & PRENOM]],Tableau1[],11) -> 
G98: =VLOOKUP(JANVIER[[#This Row],[NOM & PRENOM]],Tableau1[],10) ->  | H98: =VLOOKUP(JANVIER[[#This Row],[NOM & PRENOM]],Tableau1[],11) -> 
G99: =VLOOKUP(JANVIER[[#This Row],[NOM & PRENOM]],Tableau1[],10) ->  | H99: =VLOOKUP(JANVIER[[#This Row],[NOM & PRENOM]],Tableau1[],11) -> 
G100: =VLOOKUP(JANVIER[[#This Row],[NOM & PRENOM]],Tableau1[],10) ->  | H100: =VLOOKUP(JANVIER[[#This Row],[NOM & PRENOM]],Tableau1[],11) -> 
G101: =VLOOKUP(JANVIER[[#This Row],[NOM & PRENOM]],Tableau1[],10) ->  | H101: =VLOOKUP(JANVIER[[#This Row],[NOM & PRENOM]],Tableau1[],11) -> 
G102: =VLOOKUP(JANVIER[[#This Row],[NOM & PRENOM]],Tableau1[],10) ->  | H102: =VLOOKUP(JANVIER[[#This Row],[NOM & PRENOM]],Tableau1[],11) -> 
G103: =VLOOKUP(JANVIER[[#This Row],[NOM & PRENOM]],Tableau1[],10) ->  | H103: =VLOOKUP(JANVIER[[#This Row],[NOM & PRENOM]],Tableau1[],11) -> 
G104: =VLOOKUP(JANVIER[[#This Row],[NOM & PRENOM]],Tableau1[],10) ->  | H104: =VLOOKUP(JANVIER[[#This Row],[NOM & PRENOM]],Tableau1[],11) -> 
G105: =VLOOKUP(JANVIER[[#This Row],[NOM & PRENOM]],Tableau1[],10) ->  | H105: =VLOOKUP(JANVIER[[#This Row],[NOM & PRENOM]],Tableau1[],11) -> 
G106: =VLOOKUP(JANVIER[[#This Row],[NOM & PRENOM]],Tableau1[],10) ->  | H106: =VLOOKUP(JANVIER[[#This Row],[NOM & PRENOM]],Tableau1[],11) -> 
G107: =VLOOKUP(JANVIER[[#This Row],[NOM & PRENOM]],Tableau1[],10) ->  | H107: =VLOOKUP(JANVIER[[#This Row],[NOM & PRENOM]],Tableau1[],11) -> 
G108: =VLOOKUP(JANVIER[[#This Row],[NOM & PRENOM]],Tableau1[],10) ->  | H108: =VLOOKUP(JANVIER[[#This Row],[NOM & PRENOM]],Tableau1[],11) -> 
G109: =VLOOKUP(JANVIER[[#This Row],[NOM & PRENOM]],Tableau1[],10) ->  | H109: =VLOOKUP(JANVIER[[#This Row],[NOM & PRENOM]],Tableau1[],11) -> 
G110: =VLOOKUP(JANVIER[[#This Row],[NOM & PRENOM]],Tableau1[],10) ->  | H110: =VLOOKUP(JANVIER[[#This Row],[NOM & PRENOM]],Tableau1[],11) -> 
G111: =VLOOKUP(JANVIER[[#This Row],[NOM & PRENOM]],Tableau1[],10) ->  | H111: =VLOOKUP(JANVIER[[#This Row],[NOM & PRENOM]],Tableau1[],11) -> 
G112: =VLOOKUP(JANVIER[[#This Row],[NOM & PRENOM]],Tableau1[],10) ->  | H112: =VLOOKUP(JANVIER[[#This Row],[NOM & PRENOM]],Tableau1[],11) -> 
G113: =VLOOKUP(JANVIER[[#This Row],[NOM & PRENOM]],Tableau1[],10) ->  | H113: =VLOOKUP(JANVIER[[#This Row],[NOM & PRENOM]],Tableau1[],11) -> 
G114: =VLOOKUP(JANVIER[[#This Row],[NOM & PRENOM]],Tableau1[],10) ->  | H114: =VLOOKUP(JANVIER[[#This Row],[NOM & PRENOM]],Tableau1[],11) -> 
G115: =VLOOKUP(JANVIER[[#This Row],[NOM & PRENOM]],Tableau1[],10) ->  | H115: =VLOOKUP(JANVIER[[#This Row],[NOM & PRENOM]],Tableau1[],11) -> 
G116: =VLOOKUP(JANVIER[[#This Row],[NOM & PRENOM]],Tableau1[],10) ->  | H116: =VLOOKUP(JANVIER[[#This Row],[NOM & PRENOM]],Tableau1[],11) -> 
G117: =VLOOKUP(JANVIER[[#This Row],[NOM & PRENOM]],Tableau1[],10) ->  | H117: =VLOOKUP(JANVIER[[#This Row],[NOM & PRENOM]],Tableau1[],11) -> 
G118: =VLOOKUP(JANVIER[[#This Row],[NOM & PRENOM]],Tableau1[],10) ->  | H118: =VLOOKUP(JANVIER[[#This Row],[NOM & PRENOM]],Tableau1[],11) -> 
G119: =VLOOKUP(JANVIER[[#This Row],[NOM & PRENOM]],Tableau1[],10) ->  | H119: =VLOOKUP(JANVIER[[#This Row],[NOM & PRENOM]],Tableau1[],11) -> 
G120: =VLOOKUP(JANVIER[[#This Row],[NOM & PRENOM]],Tableau1[],10) ->  | H120: =VLOOKUP(JANVIER[[#This Row],[NOM & PRENOM]],Tableau1[],11) -> 
G121: =VLOOKUP(JANVIER[[#This Row],[NOM & PRENOM]],Tableau1[],10) ->  | H121: =VLOOKUP(JANVIER[[#This Row],[NOM & PRENOM]],Tableau1[],11) -> 
G122: =VLOOKUP(JANVIER[[#This Row],[NOM & PRENOM]],Tableau1[],10) ->  | H122: =VLOOKUP(JANVIER[[#This Row],[NOM & PRENOM]],Tableau1[],11) -> 
G123: =VLOOKUP(JANVIER[[#This Row],[NOM & PRENOM]],Tableau1[],10) ->  | H123: =VLOOKUP(JANVIER[[#This Row],[NOM & PRENOM]],Tableau1[],11) -> 
G124: =VLOOKUP(JANVIER[[#This Row],[NOM & PRENOM]],Tableau1[],10) ->  | H124: =VLOOKUP(JANVIER[[#This Row],[NOM & PRENOM]],Tableau1[],11) -> 
G125: =VLOOKUP(JANVIER[[#This Row],[NOM & PRENOM]],Tableau1[],10) ->  | H125: =VLOOKUP(JANVIER[[#This Row],[NOM & PRENOM]],Tableau1[],11) -> 
G126: =VLOOKUP(JANVIER[[#This Row],[NOM & PRENOM]],Tableau1[],10) ->  | H126: =VLOOKUP(JANVIER[[#This Row],[NOM & PRENOM]],Tableau1[],11) -> 
G127: =VLOOKUP(JANVIER[[#This Row],[NOM & PRENOM]],Tableau1[],10) ->  | H127: =VLOOKUP(JANVIER[[#This Row],[NOM & PRENOM]],Tableau1[],11) -> 
G128: =VLOOKUP(JANVIER[[#This Row],[NOM & PRENOM]],Tableau1[],10) ->  | H128: =VLOOKUP(JANVIER[[#This Row],[NOM & PRENOM]],Tableau1[],11) -> 
G129: =VLOOKUP(JANVIER[[#This Row],[NOM & PRENOM]],Tableau1[],10) ->  | H129: =VLOOKUP(JANVIER[[#This Row],[NOM & PRENOM]],Tableau1[],11) -> 
G130: =VLOOKUP(JANVIER[[#This Row],[NOM & PRENOM]],Tableau1[],10) ->  | H130: =VLOOKUP(JANVIER[[#This Row],[NOM & PRENOM]],Tableau1[],11) -> 
G131: =VLOOKUP(JANVIER[[#This Row],[NOM & PRENOM]],Tableau1[],10) ->  | H131: =VLOOKUP(JANVIER[[#This Row],[NOM & PRENOM]],Tableau1[],11) -> 
G132: =VLOOKUP(JANVIER[[#This Row],[NOM & PRENOM]],Tableau1[],10) ->  | H132: =VLOOKUP(JANVIER[[#This Row],[NOM & PRENOM]],Tableau1[],11) -> 
G133: =VLOOKUP(JANVIER[[#This Row],[NOM & PRENOM]],Tableau1[],10) ->  | H133: =VLOOKUP(JANVIER[[#This Row],[NOM & PRENOM]],Tableau1[],11) -> 
G134: =VLOOKUP(JANVIER[[#This Row],[NOM & PRENOM]],Tableau1[],10) ->  | H134: =VLOOKUP(JANVIER[[#This Row],[NOM & PRENOM]],Tableau1[],11) -> 
G135: =VLOOKUP(JANVIER[[#This Row],[NOM & PRENOM]],Tableau1[],10) ->  | H135: =VLOOKUP(JANVIER[[#This Row],[NOM & PRENOM]],Tableau1[],11) -> 
G136: =VLOOKUP(JANVIER[[#This Row],[NOM & PRENOM]],Tableau1[],10) ->  | H136: =VLOOKUP(JANVIER[[#This Row],[NOM & PRENOM]],Tableau1[],11) -> 
G137: =VLOOKUP(JANVIER[[#This Row],[NOM & PRENOM]],Tableau1[],10) ->  | H137: =VLOOKUP(JANVIER[[#This Row],[NOM & PRENOM]],Tableau1[],11) -> 
G138: =VLOOKUP(JANVIER[[#This Row],[NOM & PRENOM]],Tableau1[],10) ->  | H138: =VLOOKUP(JANVIER[[#This Row],[NOM & PRENOM]],Tableau1[],11) -> 
G139: =VLOOKUP(JANVIER[[#This Row],[NOM & PRENOM]],Tableau1[],10) ->  | H139: =VLOOKUP(JANVIER[[#This Row],[NOM & PRENOM]],Tableau1[],11) -> 
G140: =VLOOKUP(JANVIER[[#This Row],[NOM & PRENOM]],Tableau1[],10) ->  | H140: =VLOOKUP(JANVIER[[#This Row],[NOM & PRENOM]],Tableau1[],11) -> 
G141: =VLOOKUP(JANVIER[[#This Row],[NOM & PRENOM]],Tableau1[],10) ->  | H141: =VLOOKUP(JANVIER[[#This Row],[NOM & PRENOM]],Tableau1[],11) -> 
G142: =VLOOKUP(JANVIER[[#This Row],[NOM & PRENOM]],Tableau1[],10) ->  | H142: =VLOOKUP(JANVIER[[#This Row],[NOM & PRENOM]],Tableau1[],11) -> 
G143: =VLOOKUP(JANVIER[[#This Row],[NOM & PRENOM]],Tableau1[],10) ->  | H143: =VLOOKUP(JANVIER[[#This Row],[NOM & PRENOM]],Tableau1[],11) -> 
G144: =VLOOKUP(JANVIER[[#This Row],[NOM & PRENOM]],Tableau1[],10) ->  | H144: =VLOOKUP(JANVIER[[#This Row],[NOM & PRENOM]],Tableau1[],11) -> 
G145: =VLOOKUP(JANVIER[[#This Row],[NOM & PRENOM]],Tableau1[],10) ->  | H145: =VLOOKUP(JANVIER[[#This Row],[NOM & PRENOM]],Tableau1[],11) -> 
G146: =VLOOKUP(JANVIER[[#This Row],[NOM & PRENOM]],Tableau1[],10) ->  | H146: =VLOOKUP(JANVIER[[#This Row],[NOM & PRENOM]],Tableau1[],11) -> 
G147: =VLOOKUP(JANVIER[[#This Row],[NOM & PRENOM]],Tableau1[],10) ->  | H147: =VLOOKUP(JANVIER[[#This Row],[NOM & PRENOM]],Tableau1[],11) -> 
G148: =VLOOKUP(JANVIER[[#This Row],[NOM & PRENOM]],Tableau1[],10) ->  | H148: =VLOOKUP(JANVIER[[#This Row],[NOM & PRENOM]],Tableau1[],11) -> 
G149: =VLOOKUP(JANVIER[[#This Row],[NOM & PRENOM]],Tableau1[],10) ->  | H149: =VLOOKUP(JANVIER[[#This Row],[NOM & PRENOM]],Tableau1[],11) -> 
G150: =VLOOKUP(JANVIER[[#This Row],[NOM & PRENOM]],Tableau1[],10) ->  | H150: =VLOOKUP(JANVIER[[#This Row],[NOM & PRENOM]],Tableau1[],11) -> 
G151: =VLOOKUP(JANVIER[[#This Row],[NOM & PRENOM]],Tableau1[],10) ->  | H151: =VLOOKUP(JANVIER[[#This Row],[NOM & PRENOM]],Tableau1[],11) -> 
G152: =VLOOKUP(JANVIER[[#This Row],[NOM & PRENOM]],Tableau1[],10) ->  | H152: =VLOOKUP(JANVIER[[#This Row],[NOM & PRENOM]],Tableau1[],11) -> 
G153: =VLOOKUP(JANVIER[[#This Row],[NOM & PRENOM]],Tableau1[],10) ->  | H153: =VLOOKUP(JANVIER[[#This Row],[NOM & PRENOM]],Tableau1[],11) -> 
G154: =VLOOKUP(JANVIER[[#This Row],[NOM & PRENOM]],Tableau1[],10) ->  | H154: =VLOOKUP(JANVIER[[#This Row],[NOM & PRENOM]],Tableau1[],11) -> 
G155: =VLOOKUP(JANVIER[[#This Row],[NOM & PRENOM]],Tableau1[],10) ->  | H155: =VLOOKUP(JANVIER[[#This Row],[NOM & PRENOM]],Tableau1[],11) -> 
G156: =VLOOKUP(JANVIER[[#This Row],[NOM & PRENOM]],Tableau1[],10) ->  | H156: =VLOOKUP(JANVIER[[#This Row],[NOM & PRENOM]],Tableau1[],11) -> 
G157: =VLOOKUP(JANVIER[[#This Row],[NOM & PRENOM]],Tableau1[],10) ->  | H157: =VLOOKUP(JANVIER[[#This Row],[NOM & PRENOM]],Tableau1[],11) -> 
G158: =VLOOKUP(JANVIER[[#This Row],[NOM & PRENOM]],Tableau1[],10) ->  | H158: =VLOOKUP(JANVIER[[#This Row],[NOM & PRENOM]],Tableau1[],11) -> 
G159: =VLOOKUP(JANVIER[[#This Row],[NOM & PRENOM]],Tableau1[],10) ->  | H159: =VLOOKUP(JANVIER[[#This Row],[NOM & PRENOM]],Tableau1[],11) -> 
G160: =VLOOKUP(JANVIER[[#This Row],[NOM & PRENOM]],Tableau1[],10) ->  | H160: =VLOOKUP(JANVIER[[#This Row],[NOM & PRENOM]],Tableau1[],11) -> 
G161: =VLOOKUP(JANVIER[[#This Row],[NOM & PRENOM]],Tableau1[],10) ->  | H161: =VLOOKUP(JANVIER[[#This Row],[NOM & PRENOM]],Tableau1[],11) -> 
G162: =VLOOKUP(JANVIER[[#This Row],[NOM & PRENOM]],Tableau1[],10) ->  | H162: =VLOOKUP(JANVIER[[#This Row],[NOM & PRENOM]],Tableau1[],11) -> 
G163: =VLOOKUP(JANVIER[[#This Row],[NOM & PRENOM]],Tableau1[],10) ->  | H163: =VLOOKUP(JANVIER[[#This Row],[NOM & PRENOM]],Tableau1[],11) -> 
G164: =VLOOKUP(JANVIER[[#This Row],[NOM & PRENOM]],Tableau1[],10) ->  | H164: =VLOOKUP(JANVIER[[#This Row],[NOM & PRENOM]],Tableau1[],11) -> 
G165: =VLOOKUP(JANVIER[[#This Row],[NOM & PRENOM]],Tableau1[],10) ->  | H165: =VLOOKUP(JANVIER[[#This Row],[NOM & PRENOM]],Tableau1[],11) -> 
G166: =VLOOKUP(JANVIER[[#This Row],[NOM & PRENOM]],Tableau1[],10) ->  | H166: =VLOOKUP(JANVIER[[#This Row],[NOM & PRENOM]],Tableau1[],11) -> 
G167: =VLOOKUP(JANVIER[[#This Row],[NOM & PRENOM]],Tableau1[],10) ->  | H167: =VLOOKUP(JANVIER[[#This Row],[NOM & PRENOM]],Tableau1[],11) -> 
G168: =VLOOKUP(JANVIER[[#This Row],[NOM & PRENOM]],Tableau1[],10) ->  | H168: =VLOOKUP(JANVIER[[#This Row],[NOM & PRENOM]],Tableau1[],11) -> 
G169: =VLOOKUP(JANVIER[[#This Row],[NOM & PRENOM]],Tableau1[],10) ->  | H169: =VLOOKUP(JANVIER[[#This Row],[NOM & PRENOM]],Tableau1[],11) -> 
G170: =VLOOKUP(JANVIER[[#This Row],[NOM & PRENOM]],Tableau1[],10) ->  | H170: =VLOOKUP(JANVIER[[#This Row],[NOM & PRENOM]],Tableau1[],11) -> 
G171: =VLOOKUP(JANVIER[[#This Row],[NOM & PRENOM]],Tableau1[],10) ->  | H171: =VLOOKUP(JANVIER[[#This Row],[NOM & PRENOM]],Tableau1[],11) -> 
G172: =VLOOKUP(JANVIER[[#This Row],[NOM & PRENOM]],Tableau1[],10) ->  | H172: =VLOOKUP(JANVIER[[#This Row],[NOM & PRENOM]],Tableau1[],11) -> 
G173: =VLOOKUP(JANVIER[[#This Row],[NOM & PRENOM]],Tableau1[],10) ->  | H173: =VLOOKUP(JANVIER[[#This Row],[NOM & PRENOM]],Tableau1[],11) -> 
G174: =VLOOKUP(JANVIER[[#This Row],[NOM & PRENOM]],Tableau1[],10) ->  | H174: =VLOOKUP(JANVIER[[#This Row],[NOM & PRENOM]],Tableau1[],11) -> 
G175: =VLOOKUP(JANVIER[[#This Row],[NOM & PRENOM]],Tableau1[],10) ->  | H175: =VLOOKUP(JANVIER[[#This Row],[NOM & PRENOM]],Tableau1[],11) -> 
G176: =VLOOKUP(JANVIER[[#This Row],[NOM & PRENOM]],Tableau1[],10) ->  | H176: =VLOOKUP(JANVIER[[#This Row],[NOM & PRENOM]],Tableau1[],11) -> 
G177: =VLOOKUP(JANVIER[[#This Row],[NOM & PRENOM]],Tableau1[],10) ->  | H177: =VLOOKUP(JANVIER[[#This Row],[NOM & PRENOM]],Tableau1[],11) -> 
G178: =VLOOKUP(JANVIER[[#This Row],[NOM & PRENOM]],Tableau1[],10) ->  | H178: =VLOOKUP(JANVIER[[#This Row],[NOM & PRENOM]],Tableau1[],11) -> 
G179: =VLOOKUP(JANVIER[[#This Row],[NOM & PRENOM]],Tableau1[],10) ->  | H179: =VLOOKUP(JANVIER[[#This Row],[NOM & PRENOM]],Tableau1[],11) -> 
G180: =VLOOKUP(JANVIER[[#This Row],[NOM & PRENOM]],Tableau1[],10) ->  | H180: =VLOOKUP(JANVIER[[#This Row],[NOM & PRENOM]],Tableau1[],11) -> 
G181: =VLOOKUP(JANVIER[[#This Row],[NOM & PRENOM]],Tableau1[],10) ->  | H181: =VLOOKUP(JANVIER[[#This Row],[NOM & PRENOM]],Tableau1[],11) -> 
G182: =VLOOKUP(JANVIER[[#This Row],[NOM & PRENOM]],Tableau1[],10) ->  | H182: =VLOOKUP(JANVIER[[#This Row],[NOM & PRENOM]],Tableau1[],11) -> 
G183: =VLOOKUP(JANVIER[[#This Row],[NOM & PRENOM]],Tableau1[],10) ->  | H183: =VLOOKUP(JANVIER[[#This Row],[NOM & PRENOM]],Tableau1[],11) -> 
G184: =VLOOKUP(JANVIER[[#This Row],[NOM & PRENOM]],Tableau1[],10) ->  | H184: =VLOOKUP(JANVIER[[#This Row],[NOM & PRENOM]],Tableau1[],11) -> 
G185: =VLOOKUP(JANVIER[[#This Row],[NOM & PRENOM]],Tableau1[],10) ->  | H185: =VLOOKUP(JANVIER[[#This Row],[NOM & PRENOM]],Tableau1[],11) -> 
G186: =VLOOKUP(JANVIER[[#This Row],[NOM & PRENOM]],Tableau1[],10) ->  | H186: =VLOOKUP(JANVIER[[#This Row],[NOM & PRENOM]],Tableau1[],11) -> 
G187: =VLOOKUP(JANVIER[[#This Row],[NOM & PRENOM]],Tableau1[],10) ->  | H187: =VLOOKUP(JANVIER[[#This Row],[NOM & PRENOM]],Tableau1[],11) -> 
G188: =VLOOKUP(JANVIER[[#This Row],[NOM & PRENOM]],Tableau1[],10) ->  | H188: =VLOOKUP(JANVIER[[#This Row],[NOM & PRENOM]],Tableau1[],11) -> 
G189: =VLOOKUP(JANVIER[[#This Row],[NOM & PRENOM]],Tableau1[],10) ->  | H189: =VLOOKUP(JANVIER[[#This Row],[NOM & PRENOM]],Tableau1[],11) -> 
G190: =VLOOKUP(JANVIER[[#This Row],[NOM & PRENOM]],Tableau1[],10) ->  | H190: =VLOOKUP(JANVIER[[#This Row],[NOM & PRENOM]],Tableau1[],11) -> 
G191: =VLOOKUP(JANVIER[[#This Row],[NOM & PRENOM]],Tableau1[],10) ->  | H191: =VLOOKUP(JANVIER[[#This Row],[NOM & PRENOM]],Tableau1[],11) -> 
G192: =VLOOKUP(JANVIER[[#This Row],[NOM & PRENOM]],Tableau1[],10) ->  | H192: =VLOOKUP(JANVIER[[#This Row],[NOM & PRENOM]],Tableau1[],11) -> 
G193: =VLOOKUP(JANVIER[[#This Row],[NOM & PRENOM]],Tableau1[],10) ->  | H193: =VLOOKUP(JANVIER[[#This Row],[NOM & PRENOM]],Tableau1[],11) -> 
G194: =VLOOKUP(JANVIER[[#This Row],[NOM & PRENOM]],Tableau1[],10) ->  | H194: =VLOOKUP(JANVIER[[#This Row],[NOM & PRENOM]],Tableau1[],11) -> 
G195: =VLOOKUP(JANVIER[[#This Row],[NOM & PRENOM]],Tableau1[],10) ->  | H195: =VLOOKUP(JANVIER[[#This Row],[NOM & PRENOM]],Tableau1[],11) -> 
G196: =VLOOKUP(JANVIER[[#This Row],[NOM & PRENOM]],Tableau1[],10) ->  | H196: =VLOOKUP(JANVIER[[#This Row],[NOM & PRENOM]],Tableau1[],11) -> 
G197: =VLOOKUP(JANVIER[[#This Row],[NOM & PRENOM]],Tableau1[],10) ->  | H197: =VLOOKUP(JANVIER[[#This Row],[NOM & PRENOM]],Tableau1[],11) -> 
G198: =VLOOKUP(JANVIER[[#This Row],[NOM & PRENOM]],Tableau1[],10) ->  | H198: =VLOOKUP(JANVIER[[#This Row],[NOM & PRENOM]],Tableau1[],11) -> 
G199: =VLOOKUP(JANVIER[[#This Row],[NOM & PRENOM]],Tableau1[],10) ->  | H199: =VLOOKUP(JANVIER[[#This Row],[NOM & PRENOM]],Tableau1[],11) -> 
G200: =VLOOKUP(JANVIER[[#This Row],[NOM & PRENOM]],Tableau1[],10) ->  | H200: =VLOOKUP(JANVIER[[#This Row],[NOM & PRENOM]],Tableau1[],11) -> 
G201: =VLOOKUP(JANVIER[[#This Row],[NOM & PRENOM]],Tableau1[],10) ->  | H201: =VLOOKUP(JANVIER[[#This Row],[NOM & PRENOM]],Tableau1[],11) -> 
G202: =VLOOKUP(JANVIER[[#This Row],[NOM & PRENOM]],Tableau1[],10) ->  | H202: =VLOOKUP(JANVIER[[#This Row],[NOM & PRENOM]],Tableau1[],11) -> 
... 802 more rows

Sheet 02
A1: FEVRIER | D1: ="Période du "&TEXT(NOMENCLATURE!$E$8,"jj mmmm aaaa")&" au "&TEXT(NOMENCLATURE!$E$9,"jj mmmm aaaa") -> Période du 22 janvier 2018 au 18 février 2018
B2: STC | C2: =COUNTIF(FEVRIER[STC],"OUI") -> 0
A5: NOM & PRENOM | B5: SERVICE | C5: CONTRAT | D5: ENTREE | E5: SORTIE | F5: HEURES CONTRAT | G5: SALAIRE DE BASE | H5: R.I.S. | I5: MALADIE | J5: AT TRAVAIL | K5: AT TRAJET | L5: ENFANT MALADE | M5: ABSENCE INJUSTIFIEE | N5: C.S.S. | O5: MATERNITE | P5: CONGE PARENTAL | Q5: PRIME VOLANTE | R5: INDEMNITE PASSAGE | S5: PRIME CUISINE | T5: PRIME TECHNICITE | U5: PRIME ASSIDUITE | V5: MAINTIENT SALAIRE | W5: PRECARITE | X5: INDEMNITE CP | Y5: BRUT | Z5: RTT | AA5: 1/2 RTT | AB5: CC | AC5: CP | AD5: RECUP. | AE5: EVENEMENT | AF5: FORMATION | AG5: MUTUELLE | AH5: RTM | AI5: IJSS | AJ5: ACOMPTE | AK5: AVANCE | AL5: TENUE | AM5: STC | AN5: NET

Sheet 03
A1: MARS | D1: ="Période du "&TEXT(NOMENCLATURE!$E$12,"jj mmmm aaaa")&" au "&TEXT(NOMENCLATURE!$E$13,"jj mmmm aaaa") -> Période du 19 février 2018 au 25 mars 2018
B2: STC | C2: =COUNTIF(MARS[STC],"OUI") -> 0
A5: NOM & PRENOM | B5: SERVICE | C5: CONTRAT | D5: ENTREE | E5: SORTIE | F5: HEURES CONTRAT | G5: SALAIRE DE BASE | H5: R.I.S. | I5: MALADIE | J5: AT TRAVAIL | K5: AT TRAJET | L5: ENFANT MALADE | M5: ABSENCE INJUSTIFIEE | N5: C.S.S. | O5: MATERNITE | P5: CONGE PARENTAL | Q5: PRIME VOLANTE | R5: INDEMNITE PASSAGE | S5: PRIME CUISINE | T5: PRIME TECHNICITE | U5: PRIME ASSIDUITE | V5: MAINTIENT SALAIRE | W5: PRECARITE | X5: INDEMNITE CP | Y5: BRUT | Z5: RTT | AA5: 1/2 RTT | AB5: CC | AC5: CP | AD5: RECUP. | AE5: EVENEMENT | AF5: FORMATION | AG5: MUTUELLE | AH5: RTM | AI5: IJSS | AJ5: ACOMPTE | AK5: AVANCE | AL5: TENUE | AM5: STC | AN5: NET

Sheet 04
A1: AVRIL | D1: ="Période du "&TEXT(NOMENCLATURE!$E$16,"jj mmmm aaaa")&" au "&TEXT(NOMENCLATURE!$E$17,"jj mmmm aaaa") -> Période du 26 mars 2018 au 22 avril 2018
B2: STC | C2: =COUNTIF(AVRIL[STC],"OUI") -> 0
A5: NOM & PRENOM | B5: SERVICE | C5: CONTRAT | D5: ENTREE | E5: SORTIE | F5: HEURES CONTRAT | G5: SALAIRE DE BASE | H5: R.I.S. | I5: MALADIE | J5: AT TRAVAIL | K5: AT TRAJET | L5: ENFANT MALADE | M5: ABSENCE INJUSTIFIEE | N5: C.S.S. | O5: MATERNITE | P5: CONGE PARENTAL | Q5: PRIME VOLANTE | R5: INDEMNITE PASSAGE | S5: PRIME CUISINE | T5: PRIME TECHNICITE | U5: PRIME ASSIDUITE | V5: MAINTIENT SALAIRE | W5: PRECARITE | X5: INDEMNITE CP | Y5: BRUT | Z5: RTT | AA5: 1/2 RTT | AB5: CC | AC5: CP | AD5: RECUP. | AE5: EVENEMENT | AF5: FORMATION | AG5: MUTUELLE | AH5: RTM | AI5: IJSS | AJ5: ACOMPTE | AK5: AVANCE | AL5: TENUE | AM5: STC | AN5: NET
D7: 43185 | E7: 43212

Sheet 05
A1: MAI | D1: ="Période du "&TEXT(NOMENCLATURE!$E$20,"jj mmmm aaaa")&" au "&TEXT(NOMENCLATURE!$E$21,"jj mmmm aaaa") -> Période du 23 avril 2018 au 20 mai 2018
B2: STC | C2: =COUNTIF(MAI[STC],"OUI") -> 0
A5: NOM & PRENOM | B5: SERVICE | C5: CONTRAT | D5: ENTREE | E5: SORTIE | F5: HEURES CONTRAT | G5: SALAIRE DE BASE | H5: R.I.S. | I5: MALADIE | J5: AT TRAVAIL | K5: AT TRAJET | L5: ENFANT MALADE | M5: ABSENCE INJUSTIFIEE | N5: C.S.S. | O5: MATERNITE | P5: CONGE PARENTAL | Q5: PRIME VOLANTE | R5: INDEMNITE PASSAGE | S5: PRIME CUISINE | T5: PRIME TECHNICITE | U5: PRIME ASSIDUITE | V5: MAINTIENT SALAIRE | W5: PRECARITE | X5: INDEMNITE CP | Y5: BRUT | Z5: RTT | AA5: 1/2 RTT | AB5: CC | AC5: CP | AD5: RECUP. | AE5: EVENEMENT | AF5: FORMATION | AG5: MUTUELLE | AH5: RTM | AI5: IJSS | AJ5: ACOMPTE | AK5: AVANCE | AL5: TENUE | AM5: STC | AN5: NET
D7: 43213 | E7: 43240

Sheet 06
A1: JUIN | D1: ="Période du "&TEXT(NOMENCLATURE!$E$24,"jj mmmm aaaa")&" au "&TEXT(NOMENCLATURE!$E$25,"jj mmmm aaaa") -> Période du 21 mai 2018 au 24 juin 2018
B2: STC | C2: =COUNTIF(JUIN[STC],"OUI") -> 0
A5: NOM & PRENOM | B5: SERVICE | C5: CONTRAT | D5: ENTREE | E5: SORTIE | F5: HEURES CONTRAT | G5: SALAIRE DE BASE | H5: R.I.S. | I5: MALADIE | J5: AT TRAVAIL | K5: AT TRAJET | L5: ENFANT MALADE | M5: ABSENCE INJUSTIFIEE | N5: C.S.S. | O5: MATERNITE | P5: CONGE PARENTAL | Q5: PRIME VOLANTE | R5: INDEMNITE PASSAGE | S5: PRIME CUISINE | T5: PRIME TECHNICITE | U5: PRIME ASSIDUITE | V5: MAINTIENT SALAIRE | W5: PRECARITE | X5: INDEMNITE CP | Y5: BRUT | Z5: RTT | AA5: 1/2 RTT | AB5: CC | AC5: CP | AD5: RECUP. | AE5: EVENEMENT | AF5: FORMATION | AG5: MUTUELLE | AH5: RTM | AI5: IJSS | AJ5: ACOMPTE | AK5: AVANCE | AL5: TENUE | AM5: STC | AN5: NET
D7: 43241 | E7: 43275

Sheet 07
A1: JUILLET | D1: ="Période du "&TEXT(NOMENCLATURE!$H$4,"jj mmmm aaaa")&" au "&TEXT(NOMENCLATURE!$H$5,"jj mmmm aaaa") -> Période du 25 juin 2018 au 22 juillet 2018
B2: STC | C2: =COUNTIF(JUILLET[STC],"OUI") -> 0
A5: NOM & PRENOM | B5: SERVICE | C5: CONTRAT | D5: ENTREE | E5: SORTIE | F5: HEURES CONTRAT | G5: SALAIRE DE BASE | H5: R.I.S. | I5: MALADIE | J5: AT TRAVAIL | K5: AT TRAJET | L5: ENFANT MALADE | M5: ABSENCE INJUSTIFIEE | N5: C.S.S. | O5: MATERNITE | P5: CONGE PARENTAL | Q5: PRIME VOLANTE | R5: INDEMNITE PASSAGE | S5: PRIME CUISINE | T5: PRIME TECHNICITE | U5: PRIME ASSIDUITE | V5: MAINTIENT SALAIRE | W5: PRECARITE | X5: INDEMNITE CP | Y5: BRUT | Z5: RTT | AA5: 1/2 RTT | AB5: CC | AC5: CP | AD5: RECUP. | AE5: EVENEMENT | AF5: FORMATION | AG5: MUTUELLE | AH5: RTM | AI5: IJSS | AJ5: ACOMPTE | AK5: AVANCE | AL5: TENUE | AM5: STC | AN5: NET
D7: 43276 | E7: 43303

Sheet 08
A1: AOUT | D1: ="Période du "&TEXT(NOMENCLATURE!$H$8,"jj mmmm aaaa")&" au "&TEXT(NOMENCLATURE!$H$9,"jj mmmm aaaa") -> Période du 23 juillet 2018 au 26 août 2018
B2: STC | C2: =COUNTIF(AOUT[STC],"OUI") -> 0
A5: NOM & PRENOM | B5: SERVICE | C5: CONTRAT | D5: ENTREE | E5: SORTIE | F5: HEURES CONTRAT | G5: SALAIRE DE BASE | H5: R.I.S. | I5: MALADIE | J5: AT TRAVAIL | K5: AT TRAJET | L5: ENFANT MALADE | M5: ABSENCE INJUSTIFIEE | N5: C.S.S. | O5: MATERNITE | P5: CONGE PARENTAL | Q5: PRIME VOLANTE | R5: INDEMNITE PASSAGE | S5: PRIME CUISINE | T5: PRIME TECHNICITE | U5: PRIME ASSIDUITE | V5: MAINTIENT SALAIRE | W5: PRECARITE | X5: INDEMNITE CP | Y5: BRUT | Z5: RTT | AA5: 1/2 RTT | AB5: CC | AC5: CP | AD5: RECUP. | AE5: EVENEMENT | AF5: FORMATION | AG5: MUTUELLE | AH5: RTM | AI5: IJSS | AJ5: ACOMPTE | AK5: AVANCE | AL5: TENUE | AM5: STC | AN5: NET
D7: 43304 | E7: 43338

Sheet 09
A1: SEPTEMBRE | D1: ="Période du "&TEXT(NOMENCLATURE!$H$12,"jj mmmm aaaa")&" au "&TEXT(NOMENCLATURE!$H$13,"jj mmmm aaaa") -> Période du 27 août 2018 au 23 septembre 2018
B2: STC | C2: =COUNTIF(SEPTEMBRE[STC],"OUI") -> 0
A5: NOM & PRENOM | B5: SERVICE | C5: CONTRAT | D5: ENTREE | E5: SORTIE | F5: HEURES CONTRAT | G5: SALAIRE DE BASE | H5: R.I.S. | I5: MALADIE | J5: AT TRAVAIL | K5: AT TRAJET | L5: ENFANT MALADE | M5: ABSENCE INJUSTIFIEE | N5: C.S.S. | O5: MATERNITE | P5: CONGE PARENTAL | Q5: PRIME VOLANTE | R5: INDEMNITE PASSAGE | S5: PRIME CUISINE | T5: PRIME TECHNICITE | U5: PRIME ASSIDUITE | V5: MAINTIENT SALAIRE | W5: PRECARITE | X5: INDEMNITE CP | Y5: BRUT | Z5: RTT | AA5: 1/2 RTT | AB5: CC | AC5: CP | AD5: RECUP. | AE5: EVENEMENT | AF5: FORMATION | AG5: MUTUELLE | AH5: RTM | AI5: IJSS | AJ5: ACOMPTE | AK5: AVANCE | AL5: TENUE | AM5: STC | AN5: NET
D7: 43339 | E7: 43366

Sheet 10
A1: OCTOBRE | D1: ="Période du "&TEXT(NOMENCLATURE!$H$16,"jj mmmm aaaa")&" au "&TEXT(NOMENCLATURE!$H$17,"jj mmmm aaaa") -> Période du 24 septembre 2018 au 21 octobre 2018
B2: STC | C2: =COUNTIF(OCTOBRE[STC],"OUI") -> 0
A5: NOM & PRENOM | B5: SERVICE | C5: CONTRAT | D5: ENTREE | E5: SORTIE | F5: HEURES CONTRAT | G5: SALAIRE DE BASE | H5: R.I.S. | I5: MALADIE | J5: AT TRAVAIL | K5: AT TRAJET | L5: ENFANT MALADE | M5: ABSENCE INJUSTIFIEE | N5: C.S.S. | O5: MATERNITE | P5: CONGE PARENTAL | Q5: PRIME VOLANTE | R5: INDEMNITE PASSAGE | S5: PRIME CUISINE | T5: PRIME TECHNICITE | U5: PRIME ASSIDUITE | V5: MAINTIENT SALAIRE | W5: PRECARITE | X5: INDEMNITE CP | Y5: BRUT | Z5: RTT | AA5: 1/2 RTT | AB5: CC | AC5: CP | AD5: RECUP. | AE5: EVENEMENT | AF5: FORMATION | AG5: MUTUELLE | AH5: RTM | AI5: IJSS | AJ5: ACOMPTE | AK5: AVANCE | AL5: TENUE | AM5: STC | AN5: NET
D7: 43367 | E7: 43394

Sheet 11
A1: NOVEMBRE | D1: ="Période du "&TEXT(NOMENCLATURE!$H$20,"jj mmmm aaaa")&" au "&TEXT(NOMENCLATURE!$H$21,"jj mmmm aaaa") -> Période du 22 octobre 2018 au 18 novembre 2018
B2: STC | C2: =COUNTIF(NOVEMBRE[STC],"OUI") -> 0
A5: NOM & PRENOM | B5: SERVICE | C5: CONTRAT | D5: ENTREE | E5: SORTIE | F5: HEURES CONTRAT | G5: SALAIRE DE BASE | H5: R.I.S. | I5: MALADIE | J5: AT TRAVAIL | K5: AT TRAJET | L5: ENFANT MALADE | M5: ABSENCE INJUSTIFIEE | N5: C.S.S. | O5: MATERNITE | P5: CONGE PARENTAL | Q5: PRIME VOLANTE | R5: INDEMNITE PASSAGE | S5: PRIME CUISINE | T5: PRIME TECHNICITE | U5: PRIME ASSIDUITE | V5: MAINTIENT SALAIRE | W5: PRECARITE | X5: INDEMNITE CP | Y5: BRUT | Z5: RTT | AA5: 1/2 RTT | AB5: CC | AC5: CP | AD5: RECUP. | AE5: EVENEMENT | AF5: FORMATION | AG5: MUTUELLE | AH5: RTM | AI5: IJSS | AJ5: ACOMPTE | AK5: AVANCE | AL5: TENUE | AM5: STC | AN5: NET
D7: 43395 | E7: 43422

Sheet 12
A1: DECEMBRE | D1: ="Période du "&TEXT(NOMENCLATURE!$H$24,"jj mmmm aaaa")&" au "&TEXT(NOMENCLATURE!$H$25,"jj mmmm aaaa") -> Période du 19 novembre 2018 au 16 décembre 2018
B2: STC | C2: =COUNTIF(DECEMBRE[STC],"OUI") -> 0
A5: NOM & PRENOM | B5: SERVICE | C5: CONTRAT | D5: ENTREE | E5: SORTIE | F5: HEURES CONTRAT | G5: SALAIRE DE BASE | H5: R.I.S. | I5: MALADIE | J5: AT TRAVAIL | K5: AT TRAJET | L5: ENFANT MALADE | M5: ABSENCE INJUSTIFIEE | N5: C.S.S. | O5: MATERNITE | P5: CONGE PARENTAL | Q5: PRIME VOLANTE | R5: INDEMNITE PASSAGE | S5: PRIME CUISINE | T5: PRIME TECHNICITE | U5: PRIME ASSIDUITE | V5: MAINTIENT SALAIRE | W5: PRECARITE | X5: INDEMNITE CP | Y5: BRUT | Z5: RTT | AA5: 1/2 RTT | AB5: CC | AC5: CP | AD5: RECUP. | AE5: EVENEMENT | AF5: FORMATION | AG5: MUTUELLE | AH5: RTM | AI5: IJSS | AJ5: ACOMPTE | AK5: AVANCE | AL5: TENUE | AM5: STC | AN5: NET
D7: 43423 | E7: 43450

Sheet SYNTHESE
B1: SYNTHESE ANNUELLE
B5: Informations salariés | F5: RTT | J5: CC | N5: Congés payés | Q5: Récupération | R5: Congés sans solde ou Abs. Conv. Perso | S5: Absences diverses
A6: Colonne1 | B6: Nom prénom | C6: Service | D6: Date entrée | E6: Date Sortie | F6: Acquis | G6: Travaillé | H6: Pris | I6: Restants | J6: Acquis2 | K6: Travaillé3 | L6: Pris4 | M6: Restants5 | N6: Acquis6 | O6: Pris7 | P6: Restants au 31/05 | Q6: Pris8 | R6: Nb de jours | S6: Maladie | T6: AT Travail | U6: AT trajet | V6: Mater / Pater | W6: Parental | X6: Autre absence | Y6: Formation

Sheet INDIVIDUEL
E1: SYNTHESE INDIVIDUELLE - RTT / CC / CP
A7: Nom Prénom salarié :
A8: Sélectionner le salarié dans la liste déroulante
H12: SYNTHESE DES COMPTEURS
H13: RTT | L13: CC | P13: Congés payés
H14: Acquis | I14: Travaillé | J14: Pris | K14: Restants | L14: Acquis | M14: Travaillé | N14: Pris | O14: Restants | P14: Acquis | Q14: Pris | R14: Restants au 31/05
H15: 0 | I15: 0 | J15: 0 | K15: 0 | L15: 0 | M15: 0 | N15: 0 | O15: 0 | P15: 0 | Q15: 0 | R15: 0
A21: DÉTAIL MENSUEL
A23: JANVIER | C23: FÉVRIER | E23: MARS | G23: AVRIL | I23: MAI | K23: JUIN | M23: JUILLET | O23: AOÛT | Q23: SEPTEMBRE | S23: OCTOBRE | U23: NOVEMBRE | W23: DÉCEMBRE
A24: =DATE(Accueil!$C$1+2017,1,1) -> 2018-01-01 | C24: =DATE(Accueil!$C$1+2017,2,1) -> 2018-02-01 | E24: =DATE(Accueil!$C$1+2017,3,1) -> 2018-03-01 | G24: =DATE(Accueil!$C$1+2017,4,1) -> 2018-04-01 | I24: =DATE(Accueil!$C$1+2017,5,1) -> 2018-05-01 | K24: =DATE(Accueil!$C$1+2017,6,1) -> 2018-06-01 | M24: =DATE(Accueil!$C$1+2017,7,1) -> 2018-07-01 | O24: =DATE(Accueil!$C$1+2017,8,1) -> 2018-08-01 | Q24: =DATE(Accueil!$C$1+2017,9,1) -> 2018-09-01 | S24: =DATE(Accueil!$C$1+2017,10,1) -> 2018-10-01 | U24: =DATE(Accueil!$C$1+2017,11,1) -> 2018-11-01 | W24: =DATE(Accueil!$C$1+2017,12,1) -> 2018-12-01
A25: =+A24+1 -> 2018-01-02 | C25: =+C24+1 -> 2018-02-02 | E25: =E24+1 -> 2018-03-02 | G25: =G24+1 -> 2018-04-02 | I25: =I24+1 -> 2018-05-02 | K25: =K24+1 -> 2018-06-02 | M25: =M24+1 -> 2018-07-02 | O25: =O24+1 -> 2018-08-02 | Q25: =Q24+1 -> 2018-09-02 | S25: =S24+1 -> 2018-10-02 | U25: =U24+1 -> 2018-11-02 | W25: =W24+1 -> 2018-12-02
A26: =+A25+1 -> 2018-01-03 | C26: =+C25+1 -> 2018-02-03 | E26: =E25+1 -> 2018-03-03 | G26: =G25+1 -> 2018-04-03 | I26: =I25+1 -> 2018-05-03 | K26: =K25+1 -> 2018-06-03 | M26: =M25+1 -> 2018-07-03 | O26: =O25+1 -> 2018-08-03 | Q26: =Q25+1 -> 2018-09-03 | S26: =S25+1 -> 2018-10-03 | U26: =U25+1 -> 2018-11-03 | W26: =W25+1 -> 2018-12-03
A27: 2018-01-04 | C27: 2018-02-04 | E27: 2018-03-04 | G27: 2018-04-04 | I27: 2018-05-04 | K27: 2018-06-04 | M27: 2018-07-04 | O27: 2018-08-04 | Q27: 2018-09-04 | S27: 2018-10-04 | U27: 2018-11-04 | W27: 2018-12-04
A28: 2018-01-05 | C28: 2018-02-05 | E28: 2018-03-05 | G28: 2018-04-05 | I28: 2018-05-05 | K28: 2018-06-05 | M28: 2018-07-05 | O28: 2018-08-05 | Q28: 2018-09-05 | S28: 2018-10-05 | U28: 2018-11-05 | W28: 2018-12-05
A29: 2018-01-06 | C29: 2018-02-06 | E29: 2018-03-06 | G29: 2018-04-06 | I29: 2018-05-06 | K29: 2018-06-06 | M29: 2018-07-06 | O29: 2018-08-06 | Q29: 2018-09-06 | S29: 2018-10-06 | U29: 2018-11-06 | W29: 2018-12-06
A30: 2018-01-07 | C30: 2018-02-07 | E30: 2018-03-07 | G30: 2018-04-07 | I30: 2018-05-07 | K30: 2018-06-07 | M30: 2018-07-07 | O30: 2018-08-07 | Q30: 2018-09-07 | S30: 2018-10-07 | U30: 2018-11-07 | W30: 2018-12-07
A31: 2018-01-08 | C31: 2018-02-08 | E31: 2018-03-08 | G31: 2018-04-08 | I31: 2018-05-08 | K31: 2018-06-08 | M31: 2018-07-08 | O31: 2018-08-08 | Q31: 2018-09-08 | S31: 2018-10-08 | U31: 2018-11-08 | W31: 2018-12-08
A32: 2018-01-09 | C32: 2018-02-09 | E32: 2018-03-09 | G32: 2018-04-09 | I32: 2018-05-09 | K32: 2018-06-09 | M32: 2018-07-09 | O32: 2018-08-09 | Q32: 2018-09-09 | S32: 2018-10-09 | U32: 2018-11-09 | W32: 2018-12-09
A33: 2018-01-10 | C33: 2018-02-10 | E33: 2018-03-10 | G33: 2018-04-10 | I33: 2018-05-10 | K33: 2018-06-10 | M33: 2018-07-10 | O33: 2018-08-10 | Q33: 2018-09-10 | S33: 2018-10-10 | U33: 2018-11-10 | W33: 2018-12-10
A34: 2018-01-11 | C34: 2018-02-11 | E34: 2018-03-11 | G34: 2018-04-11 | I34: 2018-05-11 | K34: 2018-06-11 | M34: 2018-07-11 | O34: 2018-08-11 | Q34: 2018-09-11 | S34: 2018-10-11 | U34: 2018-11-11 | W34: 2018-12-11
A35: 2018-01-12 | C35: 2018-02-12 | E35: 2018-03-12 | G35: 2018-04-12 | I35: 2018-05-12 | K35: 2018-06-12 | M35: 2018-07-12 | O35: 2018-08-12 | Q35: 2018-09-12 | S35: 2018-10-12 | U35: 2018-11-12 | W35: 2018-12-12
A36: 2018-01-13 | C36: 2018-02-13 | E36: 2018-03-13 | G36: 2018-04-13 | I36: 2018-05-13 | K36: 2018-06-13 | M36: 2018-07-13 | O36: 2018-08-13 | Q36: 2018-09-13 | S36: 2018-10-13 | U36: 2018-11-13 | W36: 2018-12-13
A37: 2018-01-14 | C37: 2018-02-14 | E37: 2018-03-14 | G37: 2018-04-14 | I37: 2018-05-14 | K37: 2018-06-14 | M37: 2018-07-14 | O37: 2018-08-14 | Q37: 2018-09-14 | S37: 2018-10-14 | U37: 2018-11-14 | W37: 2018-12-14
A38: 2018-01-15 | C38: 2018-02-15 | E38: 2018-03-15 | G38: 2018-04-15 | I38: 2018-05-15 | K38: 2018-06-15 | M38: 2018-07-15 | O38: 2018-08-15 | Q38: 2018-09-15 | S38: 2018-10-15 | U38: 2018-11-15 | W38: 2018-12-15
A39: 2018-01-16 | C39: 2018-02-16 | E39: 2018-03-16 | G39: 2018-04-16 | I39: 2018-05-16 | K39: 2018-06-16 | M39: 2018-07-16 | O39: 2018-08-16 | Q39: 2018-09-16 | S39: 2018-10-16 | U39: 2018-11-16 | W39: 2018-12-16
A40: 2018-01-17 | C40: 2018-02-17 | E40: 2018-03-17 | G40: 2018-04-17 | I40: 2018-05-17 | K40: 2018-06-17 | M40: 2018-07-17 | O40: 2018-08-17 | Q40: 2018-09-17 | S40: 2018-10-17 | U40: 2018-11-17 | W40: 2018-12-17
A41: 2018-01-18 | C41: 2018-02-18 | E41: 2018-03-18 | G41: 2018-04-18 | I41: 2018-05-18 | K41: 2018-06-18 | M41: 2018-07-18 | O41: 2018-08-18 | Q41: 2018-09-18 | S41: 2018-10-18 | U41: 2018-11-18 | W41: 2018-12-18
A42: 2018-01-19 | C42: 2018-02-19 | E42: 2018-03-19 | G42: 2018-04-19 | I42: 2018-05-19 | K42: 2018-06-19 | M42: 2018-07-19 | O42: 2018-08-19 | Q42: 2018-09-19 | S42: 2018-10-19 | U42: 2018-11-19 | W42: 2018-12-19
A43: 2018-01-20 | C43: 2018-02-20 | E43: 2018-03-20 | G43: 2018-04-20 | I43: 2018-05-20 | K43: 2018-06-20 | M43: 2018-07-20 | O43: 2018-08-20 | Q43: 2018-09-20 | S43: 2018-10-20 | U43: 2018-11-20 | W43: 2018-12-20
A44: 2018-01-21 | C44: 2018-02-21 | E44: 2018-03-21 | G44: 2018-04-21 | I44: 2018-05-21 | K44: 2018-06-21 | M44: 2018-07-21 | O44: 2018-08-21 | Q44: 2018-09-21 | S44: 2018-10-21 | U44: 2018-11-21 | W44: 2018-12-21
A45: 2018-01-22 | C45: 2018-02-22 | E45: 2018-03-22 | G45: 2018-04-22 | I45: 2018-05-22 | K45: 2018-06-22 | M45: 2018-07-22 | O45: 2018-08-22 | Q45: 2018-09-22 | S45: 2018-10-22 | U45: 2018-11-22 | W45: 2018-12-22
A46: 2018-01-23 | C46: 2018-02-23 | E46: 2018-03-23 | G46: 2018-04-23 | I46: 2018-05-23 | K46: 2018-06-23 | M46: 2018-07-23 | O46: 2018-08-23 | Q46: 2018-09-23 | S46: 2018-10-23 | U46: 2018-11-23 | W46: 2018-12-23
A47: 2018-01-24 | C47: 2018-02-24 | E47: 2018-03-24 | G47: 2018-04-24 | I47: 2018-05-24 | K47: 2018-06-24 | M47: 2018-07-24 | O47: 2018-08-24 | Q47: 2018-09-24 | S47: 2018-10-24 | U47: 2018-11-24 | W47: 2018-12-24
A48: 2018-01-25 | C48: 2018-02-25 | E48: 2018-03-25 | G48: 2018-04-25 | I48: 2018-05-25 | K48: 2018-06-25 | M48: 2018-07-25 | O48: 2018-08-25 | Q48: 2018-09-25 | S48: 2018-10-25 | U48: 2018-11-25 | W48: 2018-12-25
A49: 2018-01-26 | C49: 2018-02-26 | E49: 2018-03-26 | G49: 2018-04-26 | I49: 2018-05-26 | K49: 2018-06-26 | M49: 2018-07-26 | O49: 2018-08-26 | Q49: 2018-09-26 | S49: 2018-10-26 | U49: 2018-11-26 | W49: 2018-12-26
A50: 2018-01-27 | C50: 2018-02-27 | E50: 2018-03-27 | G50: 2018-04-27 | I50: 2018-05-27 | K50: 2018-06-27 | M50: 2018-07-27 | O50: 2018-08-27 | Q50: 2018-09-27 | S50: 2018-10-27 | U50: 2018-11-27 | W50: 2018-12-27
A51: 2018-01-28 | C51: 2018-02-28 | E51: 2018-03-28 | G51: 2018-04-28 | I51: 2018-05-28 | K51: 2018-06-28 | M51: 2018-07-28 | O51: 2018-08-28 | Q51: 2018-09-28 | S51: 2018-10-28 | U51: 2018-11-28 | W51: 2018-12-28
A52: 2018-01-29 | C52: 2018-03-01 | E52: 2018-03-29 | G52: 2018-04-29 | I52: 2018-05-29 | K52: 2018-06-29 | M52: 2018-07-29 | O52: 2018-08-29 | Q52: 2018-09-29 | S52: 2018-10-29 | U52: 2018-11-29 | W52: 2018-12-29
A53: 2018-01-30 | E53: 2018-03-30 | G53: 2018-04-30 | I53: 2018-05-30 | K53: 2018-06-30 | M53: 2018-07-30 | O53: 2018-08-30 | Q53: 2018-09-30 | S53: 2018-10-30 | U53: 2018-11-30 | W53: 2018-12-30
A54: 2018-01-31 | E54: 2018-03-31 | I54: 2018-05-31 | M54: 2018-07-31 | O54: 2018-08-31 | S54: 2018-10-31 | W54: 2018-12-31

Sheet SUVI ACOMPTES
C2: =+COUNTIF(ACOMPTE[JANVIER],">0") -> 0 | D2: =+COUNTIF(ACOMPTE[FEVRIER],">0") -> 0 | E2: =+COUNTIF(ACOMPTE[MARS],">0") -> 0 | F2: =+COUNTIF(ACOMPTE[AVRIL],">0") -> 0 | G2: =+COUNTIF(ACOMPTE[MAI],">0") -> 0 | H2: =+COUNTIF(ACOMPTE[JUIN],">0") -> 0 | I2: =+COUNTIF(ACOMPTE[JUILLET],">0") -> 0 | J2: =+COUNTIF(ACOMPTE[AOUT],">0") -> 0 | K2: =+COUNTIF(ACOMPTE[SEPTEMBRE],">0") -> 0 | L2: =+COUNTIF(ACOMPTE[OCTOBRE],">0") -> 0 | M2: =+COUNTIF(ACOMPTE[NOVEMBRE],">0") -> 0 | N2: =+COUNTIF(ACOMPTE[DECEMBRE],">0") -> 0
A4: SALARIES | B4: SERVICE | C4: JANVIER | D4: FEVRIER | E4: MARS | F4: AVRIL | G4: MAI | H4: JUIN | I4: JUILLET | J4: AOUT | K4: SEPTEMBRE | L4: OCTOBRE | M4: NOVEMBRE | N4: DECEMBRE

Sheet SUIVI ATD
E2: =+COUNTIF(ATD[JANVIER],">0") -> 0 | F2: =+COUNTIF(ATD[FEVRIER],">0") -> 0 | G2: =+COUNTIF(ATD[MARS],">0") -> 0 | H2: =+COUNTIF(ATD[AVRIL],">0") -> 0 | I2: =+COUNTIF(ATD[MAI],">0") -> 0 | J2: =+COUNTIF(ATD[JUIN],">0") -> 0 | K2: =+COUNTIF(ATD[JUILLET],">0") -> 0 | L2: =+COUNTIF(ATD[AOUT],">0") -> 0 | M2: =+COUNTIF(ATD[SEPTEMBRE],">0") -> 0 | N2: =+COUNTIF(ATD[OCTOBRE],">0") -> 0 | O2: =+COUNTIF(ATD[NOVEMBRE],">0") -> 0 | P2: =+COUNTIF(ATD[DECEMBRE],">0") -> 0
A4: SALARIES | B4: SERVICE | C4: debut | D4: fin | E4: JANVIER | F4: FEVRIER | G4: MARS | H4: AVRIL | I4: MAI | J4: JUIN | K4: JUILLET | L4: AOUT | M4: SEPTEMBRE | N4: OCTOBRE | O4: NOVEMBRE | P4: DECEMBRE

Sheet SUIVI TENUES
C3: =+COUNTIF(TENUE[SEPTEMBRE],">0") -> 0 | D3: =+COUNTIF(TENUE[OCTOBRE],">0") -> 0 | E3: =+COUNTIF(TENUE[NOVEMBRE],">0") -> 0 | F3: =+COUNTIF(TENUE[DECEMBRE],">0") -> 0
A5: SALARIES | B5: SERVICE | C5: SEPTEMBRE | D5: OCTOBRE | E5: NOVEMBRE | F5: DECEMBRE

Sheet NOMENCLATURE
A1: Année | B1: =Accueil!$C$1+2017 -> 2018 | D1: PERIODE | J1: REVENUE MINIMUM DE BRANCHE | N1: SMIC | P1: 1498.5
A3: 1er Janvier | B3: =DATE($B$1,1,1) -> 2018-01-01 | D3: JANVIER | G3: JUILLET | P3: =+P1/151.67 -> 9.88
A4: Pâques | B4: =ROUND(DATE($B$1,4,MOD(234-11*MOD($B$1,19),30))/7,)*7-6 -> 2018-04-01 | D4: DU | E4: 43087 | G4: DU | H4: =$E$25+1 -> 43276 | J4: VALEUR DU POINT | L4: 54.05
A5: Lundi de Pâques | B5: =B4+1 -> 2018-04-02 | D5: AU | E5: 43121 | G5: AU | H5: 43303 | N5: PLAFOND S.S.
A6: 1er Mai | B6: =DATE($B$1,5,1) -> 2018-05-01 | J6: COEF | K6: SALAIRE ANNUEL | L6: SALAIRE MENSUEL | N6: ANNEE | P6: 39732
A7: 8 Mai | B7: =DATE($B$1,5,8) -> 2018-05-08 | D7: FEVRIER | G7: AOUT | J7: 292 | K7: 18102 | L7: =+K7/12 -> 1508.5 | N7: TRIMESTRE | P7: =P6/4 -> 9933
A8: Ascenscion | B8: =B4+39 -> 2018-05-10 | D8: DU | E8: =$E$5+1 -> 43122 | G8: DU | H8: =$H$5+1 -> 43304 | J8: 293 | K8: =+K7+15 -> 18117 | L8: =+K8/12 -> 1509.75 | N8: MOIS | P8: =+P6/12 -> 3311
A9: Pentecôte | B9: =B4+49 -> 2018-05-20 | D9: AU | E9: 43149 | G9: AU | H9: 43338 | J9: 294 | K9: =+K8+15 -> 18132 | L9: 1511 | N9: SEMAINE | P9: =+P6/52 -> 764
A10: 14 Juillet | B10: =DATE($B$1,7,14) -> 2018-07-14 | J10: 295 | K10: =+K9+15 -> 18147 | L10: =+K10/12 -> 1512.25 | N10: JOUR | P10: =P6/218 -> 182
A11: 15 Août | B11: =DATE($B$1,8,15) -> 2018-08-15 | D11: MARS | G11: SEPTEMBRE | J11: 296 | K11: =+K10+15 -> 18162 | L11: 1513.5 | N11: HEURE | P11: =P6/1589 -> 25
A12: 1er Novembre | B12: =DATE($B$1,11,1) -> 2018-11-01 | D12: DU | E12: =$E$9+1 -> 43150 | G12: DU | H12: =$H$9+1 -> 43339 | J12: 297 | K12: 18177 | L12: 1514.75
A13: 11 Novembre | B13: =DATE($B$1,11,11) -> 2018-11-11 | D13: AU | E13: 43184 | G13: AU | H13: 43366 | J13: 298 | K13: 18192 | L13: 1516
A14: 25 Décembre | B14: =DATE($B$1,12,25) -> 2018-12-25 | J14: 299 | K14: 18207 | L14: 1517.25
D15: AVRIL | G15: OCTOBRE | J15: 300 | K15: 18222 | L15: 1518.5
D16: DU | E16: =$E$13+1 -> 43185 | G16: DU | H16: =$H$13+1 -> 43367 | J16: 301 | K16: 18237 | L16: 1519.75
A17: Lundi de Pentecôte | B17: =B4+50 -> 2018-05-21 | D17: AU | E17: 43212 | G17: AU | H17: 43394 | J17: 302 | K17: 18252 | L17: 1521
J18: 303 | K18: 18267 | L18: 1522.25
D19: MAI | G19: NOVEMBRE | J19: 304 | K19: =+K18+15 -> 18282 | L19: 1523.5
D20: DU | E20: =$E$17+1 -> 43213 | G20: DU | H20: =$H$17+1 -> 43395 | J20: 305 | K20: 18297 | L20: 1524.75
D21: AU | E21: 43240 | G21: AU | H21: 43422 | J21: 306 | K21: 18312 | L21: 1526
J22: 307 | K22: 18327 | L22: 1527.25
D23: JUIN | G23: DECEMBRE | J23: 308 | K23: 18342 | L23: 1528.5
D24: DU | E24: =$E$21+1 -> 43241 | G24: DU | H24: =$H$21+1 -> 43423 | J24: 309 | K24: 18357 | L24: 1529.75
D25: AU | E25: 43275 | G25: AU | H25: 43450 | J25: 310 | K25: 18372 | L25: 1531
J26: 311 | K26: 18387 | L26: 1532.25
J27: 312 | K27: 18402 | L27: 1533.5
J28: 313 | K28: 18417 | L28: 1534.75
J29: 314 | K29: 18432 | L29: 1536
J30: 315 | K30: 18447 | L30: 1537.25
J31: 316 | K31: 18462 | L31: 1538.5
J32: 317 | K32: 18477 | L32: 1539.75
J33: 318 | K33: 18492 | L33: 1541
J34: 319 | K34: 18507 | L34: 1542.25
J35: 320 | K35: 18522 | L35: 1543.5
J36: 321 | K36: 18537 | L36: 1544.75
J37: 322 | K37: 18552 | L37: 1546
J38: 323 | K38: 18567 | L38: 1547.25
J39: 324 | K39: 18582 | L39: 1548.5
J40: 325 | K40: 18597 | L40: 1549.75
J41: 326 | K41: 18612 | L41: 1551
J42: 327 | K42: 18627 | L42: 1552.25
J43: 328 | K43: 18642 | L43: 1553.5
J44: 329 | K44: 18657 | L44: 1554.75
J45: 330 | K45: 18672 | L45: 1556
J46: 331 | K46: 18687 | L46: 1557.25
J47: 332 | K47: 18702 | L47: 1558.5
J48: 333 | K48: 18717 | L48: 1559.75
J49: 334 | K49: 18732 | L49: 1561
J50: 335 | K50: 18747 | L50: 1562.25
J51: 336 | K51: 18762 | L51: 1563.5
J52: 337 | K52: 18777 | L52: 1564.75
J53: 338 | K53: 18792 | L53: 1566
J54: 339 | K54: 18807 | L54: 1567.25
J55: 340 | K55: 18822 | L55: 1568.5
J56: 341 | K56: 18837 | L56: 1569.75
J57: 342 | K57: 18852 | L57: 1571
J58: 343 | K58: 18867 | L58: 1572.25
J59: 344 | K59: 18882 | L59: 1573.5
J60: 345 | K60: 18897 | L60: 1574.75
J61: 346 | K61: 18912 | L61: 1576
J62: 347 | K62: 18927 | L62: 1577.25
J63: 348 | K63: 18942 | L63: 1578.5
J64: 349 | K64: 18957 | L64: 1579.75
J65: 350 | K65: 18972 | L65: 1581
J66: 351 | K66: 18987 | L66: 1582.25
J67: 352 | L67: =(J67*$L$4)/12 -> 1585.47
J68: 353 | L68: =(J68*$L$4)/12 -> 1589.97
J69: 354 | L69: 1594.48
J70: 355 | L70: 1598.98
J71: 356 | L71: 1603.48
J72: 357 | L72: 1607.99
J73: 358 | L73: 1612.49
J74: 359 | L74: 1617
J75: 360 | L75: 1621.5
J76: 361 | L76: 1626
J77: 362 | L77: 1630.51
J78: 363 | L78: 1635.01
J79: 364 | L79: 1639.52
J80: 365 | L80: 1644.02
J81: 366 | L81: 1648.53
J82: 367 | L82: 1653.03
J83: 368 | L83: 1657.53
J84: 369 | L84: 1662.04
J85: 370 | L85: 1666.54
J86: 371 | L86: 1671.05
J87: 372 | L87: 1675.55
J88: 373 | L88: 1680.05
J89: 374 | L89: 1684.56
J90: 375 | L90: 1689.06
J91: 376 | L91: 1693.57
J92: 377 | L92: 1698.07
J93: 378 | L93: 1702.58
J94: 379 | L94: 1707.08
J95: 380 | L95: 1711.58
J96: 381 | L96: 1716.09
J97: 382 | L97: 1720.59
J98: 383 | L98: 1725.1
J99: 384 | L99: 1729.6
J100: 385 | L100: 1734.1
J101: 386 | L101: 1738.61
J102: 387 | L102: 1743.11
J103: 388 | L103: 1747.62
J104: 389 | L104: 1752.12
J105: 390 | L105: 1756.63
J106: 391 | L106: 1761.13
J107: 392 | L107: 1765.63
J108: 393 | L108: 1770.14
J109: 394 | L109: 1774.64
J110: 395 | L110: 1779.15
J111: 396 | L111: 1783.65
J112: 397 | L112: 1788.15
J113: 398 | L113: 1792.66
J114: 399 | L114: 1797.16
J115: 400 | L115: 1801.67
J116: 401 | L116: 1806.17
J117: 402 | L117: 1810.68
J118: 403 | L118: 1815.18
J119: 404 | L119: 1819.68
J120: 405 | L120: 1824.19
J121: 406 | L121: 1828.69
J122: 407 | L122: 1833.2
J123: 408 | L123: 1837.7
J124: 409 | L124: 1842.2
J125: 410 | L125: 1846.71
J126: 411 | L126: 1851.21
J127: 412 | L127: 1855.72
J128: 413 | L128: 1860.22
J129: 414 | L129: 1864.73
J130: 415 | L130: 1869.23
J131: 416 | L131: 1873.73
J132: 417 | L132: =(J132*$L$4)/12 -> 1878.24
J133: 418 | L133: 1882.74
J134: 419 | L134: 1887.25
J135: 420 | L135: 1891.75
J136: 421 | L136: 1896.25
J137: 422 | L137: 1900.76
J138: 423 | L138: 1905.26
J139: 424 | L139: 1909.77
J140: 425 | L140: 1914.27
J141: 426 | L141: 1918.78
J142: 427 | L142: 1923.28
J143: 428 | L143: 1927.78
J144: 429 | L144: 1932.29
J145: 430 | L145: 1936.79
J146: 431 | L146: 1941.3
J147: 432 | L147: 1945.8
J148: 433 | L148: 1950.3
J149: 434 | L149: 1954.81
J150: 435 | L150: 1959.31
J151: 436 | L151: 1963.82
J152: 437 | L152: 1968.32
J153: 438 | L153: 1972.83
J154: 439 | L154: 1977.33
J155: 440 | L155: 1981.83
J156: 441 | L156: 1986.34
J157: 442 | L157: 1990.84
J158: 443 | L158: 1995.35
J159: 444 | L159: 1999.85
J160: 445 | L160: 2004.35
J161: 446 | L161: 2008.86
J162: 447 | L162: 2013.36
J163: 448 | L163: 2017.87
J164: 449 | L164: 2022.37
J165: 450 | L165: 2026.88
J166: 451 | L166: 2031.38
J167: 452 | L167: 2035.88
J168: 453 | L168: 2040.39
J169: 454 | L169: 2044.89
J170: 455 | L170: 2049.4
J171: 456 | L171: 2053.9
J172: 457 | L172: 2058.4
J173: 458 | L173: 2062.91
J174: 459 | L174: 2067.41
J175: 460 | L175: 2071.92
J176: 461 | L176: 2076.42
J177: 462 | L177: 2080.93
J178: 463 | L178: 2085.43
J179: 464 | L179: 2089.93
J180: 465 | L180: 2094.44
J181: 466 | L181: 2098.94
J182: 467 | L182: 2103.45
J183: 468 | L183: 2107.95
J184: 469 | L184: 2112.45
J185: 470 | L185: 2116.96
J186: 471 | L186: 2121.46
J187: 472 | L187: 2125.97
J188: 473 | L188: 2130.47
J189: 474 | L189: 2134.98
J190: 475 | L190: 2139.48
J191: 476 | L191: 2143.98
J192: 477 | L192: 2148.49
J193: 478 | L193: 2152.99
J194: 479 | L194: 2157.5
J195: 480 | L195: 2162
J196: 481 | L196: =(J196*$L$4)/12 -> 2166.5
J197: 482 | L197: 2171.01
J198: 483 | L198: 2175.51
J199: 484 | L199: 2180.02
J200: 485 | L200: 2184.52
J201: 486 | L201: 2189.03
... 314 more rows

Sheet CALCUL IJSS
A2: SMIC | B2: =+NOMENCLATURE!P1 -> 1498.5 | C2: =+NOMENCLATURE!P3 -> 9.88 | G2: PLAFOND ACCIDENT TRAVAIL | H2: < 29 JOURS | I2: 198.81 | J2: > 28 JOURS | K2: 265.09
B5: MALADIE | G5: ACCIDENT TRAVAIL
B7: SALAIRE BRUT 1 | C7: SALAIRE BRUT 2 | D7: SALAIRE BRUT 3 | E7: TOTAL | G7: SALAIRE BRUT | H7: NOMBRE DE JOURS | I7: TOTAL
E8: =SUM(B8:D8) -> 0
B9: NOMBRE DE JOUR SANS LA CARENCE | G9: IJSS JOURNALIER BRUT | I9: =IF(G8="","",(G8-(21%*G8))/30.42) -> 
B10: IJSS JOURNALIER BRUT | E10: =IF(E8>0,E8/91.25,"") ->  | G10: IJSS BRUT | I10: =IF(G8="","",(G8/30.42)*60%) -> 
B11: IJSS BRUT | E11: =IF(E8=0,"",E10*50%) ->  | G11: IJSS NET | I11: =IF(I10="","",I10*0.933) -> 
B12: IJSS NET | E12: =IF(E8=0,"",E11*0.933) ->  | G12: TOTAL | I12: =I11*H8 -> 
B13: TOTAL | E13: =IF(E8=0,"",E12*D9) ->  | G13: PLAFOND IJSS < A 29 JOURS | I13: =IF(I10="","",IF(I10>I2,I2,"")) -> 
B14: > A 30 JOURS AVEC 3 ENFANTS OU PLUS IJSS BRUT | E14: =IF(E8=0,"",(E8/91.25)*66.66%) ->  | G14: IJSS NET | I14: =IF(I13="","",I13*0.933) -> 
B15: > A 30 JOURS AVEC 3 ENFANTS OU PLUS IJSS NET | E15: =IF(E8=0,"",E14*0.933) ->  | G15: TOTAL | I15: =IF(I14="","",I14*H8) -> 
B16: TOTAL | E16: =IF(E8=0,"",D9*E15) ->  | G16: ARRET > A 28 JOURS IJSS BRUT | I16: =IF(G8="","",(G8/30.42)*80%) -> 
B17: PLAFOND IJSS | E17: =IF($E$8>NOMENCLATURE!$P$7,((35*52)*$C$2*1.8)/730,"") ->  | G17: ARRET > A 28 JOURS IJSS NET | I17: =IF(I16="","",I16*0.933) -> 
B18: IJSS NET | E18: =IF(E17="","",E17*0.933) ->  | G18: TOTAL | I18: =IF(I17="","",I17*H8) -> 
B19: TOTAL | E19: =IF(E17="","",E18*D9) ->  | G19: PLAFOND IJSS > A 28 JOURS | I19: =IF(I16="","",IF(I16>K2,K2,"")) -> 
B20: PLAFOND IJSS A 30 JOURS AVEC 3 ENFANTS OU PLUS | E20: =IF($E$8>NOMENCLATURE!$P$7,((35*52)*$C$2*1.8)/547.5,"") ->  | G20: IJSS NET | I20: =IF(I19="","",I19*0.933) -> 
B21: IJSS NET | E21: =IF(E20="","",E20*0.933) ->  | G21: TOTAL | I21: =IF(I20="","",I20*H8) -> 
B22: TOTAL | E22: =IF(E20="","",E21*D9) -> 
